﻿OBJECTID_1,OBJECTID,Date,Agency,Service,Spending_Category,Spending_Description,Fund,Amount,Vendor_Name,Date_Accuracy,name,GlobalID
1,201,2020/07/07 00:00:00+00,Public Works,Patapsco Wastewater Treatment Plant Maintenance,Professional Services,Professional Services,WasteWater Utility Fund,658.48,Teletrac Navman US ltd.,Day,TELETRAC NAVMAN US LTD.,93237e1e-40b6-4817-b509-dbf2a150a66a
2,202,2020/07/07 00:00:00+00,Public Works,Maintenance and Repair of Stormwater Systems,Professional Services,Professional Services,Stormwater Utility Fund,682.83,Teletrac Navman US ltd.,Day,TELETRAC NAVMAN US LTD.,7742c51c-e1dd-4864-8c9d-49c93ee9448f
3,203,2020/07/07 00:00:00+00,Public Works,Water Baltimore City Operations and Maintenance,Professional Services,Professional Services,Water Utility Fund,821.4,Teletrac Navman US ltd.,Day,TELETRAC NAVMAN US LTD.,0a40d0b8-e1c1-4dae-9cbe-cbeb9b44131a
4,204,2020/07/07 00:00:00+00,Public Works,Mechanical Sweeping Operation,Professional Services,Professional Services,General Fund,883.73,Teletrac Navman US ltd.,Day,TELETRAC NAVMAN US LTD.,05cb60b5-727d-48f9-b6f3-488db40d90ec
5,205,2020/07/07 00:00:00+00,Public Works,Watershed Safety,Professional Services,Professional Services,Water Utility Fund,970.78,Teletrac Navman US ltd.,Day,TELETRAC NAVMAN US LTD.,2a6004dc-aad5-4aeb-9a20-8a18e6fc318e
6,206,2020/07/07 00:00:00+00,Public Works,Wastewater Laboratory Services,Repairs and Maintenance,Equipment Maintenance,WasteWater Utility Fund,1003,EMD Millipore Corporation,Day,EMD MILLIPORE CORPORATION,52c87249-6ba3-410f-baa5-9691edacb642
7,207,2020/07/07 00:00:00+00,Public Works,Wastewater Maintenance and Repair of Sanitary Systems,Professional Services,Professional Services,WasteWater Utility Fund,1178.34,Teletrac Navman US ltd.,Day,TELETRAC NAVMAN US LTD.,5a1508f9-39c1-4d85-8886-1f870acda87f
8,208,2020/07/07 00:00:00+00,Public Works,Water and Wastewater Meter Operations Administration,Professional Services,Professional Services,Water Utility Fund,1264.97,Teletrac Navman US ltd.,Day,TELETRAC NAVMAN US LTD.,e2b1204c-3dfd-4377-b017-64eadeda6b16
9,209,2020/07/07 00:00:00+00,Public Works,Street and Alley Cleaning,Professional Services,Professional Services,General Fund,1647.99,Teletrac Navman US ltd.,Day,TELETRAC NAVMAN US LTD.,60f62d3c-5e7c-404b-824a-07b6ece471c8
10,210,2020/07/07 00:00:00+00,Public Works,Vacant Abandoned Property Cleaning and Boarding,Professional Services,Professional Services,General Fund,1881.33,Teletrac Navman US ltd.,Day,TELETRAC NAVMAN US LTD.,1de121db-fd91-4f0d-a14d-6615766843be
11,211,2020/07/07 00:00:00+00,Public Works,Stormwater Preventive Maintenance,Professional Services,Professional Services,Stormwater Utility Fund,3500,Mobile Dredging & Video Pipe INC.,Day,MOBILE DREDGING & VIDEO PIPE INC.,2e2cca83-3aa4-411b-84a9-49d0324c9e91
12,212,2020/07/07 00:00:00+00,Public Works,Stormwater Preventive Maintenance,Professional Services,Professional Services,Stormwater Utility Fund,3750,Mobile Dredging & Video Pipe INC.,Day,MOBILE DREDGING & VIDEO PIPE INC.,8352c6e2-7aad-49b0-9112-6600145c78a6
13,213,2020/07/07 00:00:00+00,Public Works,Mixed Refuse Collection,Professional Services,Professional Services,General Fund,3872.35,Teletrac Navman US ltd.,Day,TELETRAC NAVMAN US LTD.,d3f846a8-1885-4b2c-af94-e345200ba01f
14,214,2020/07/07 00:00:00+00,Public Works,Patapsco Wastewater Treatment Plant Operations,Facility Operating Supplies,Chemical Supplies,WasteWater Utility Fund,4374.98,PVS Chemical Solutions Inc.,Day,PVS CHEMICAL SOLUTIONS INC.,ee3be9e1-bee5-4917-9133-fb8abc01211a
15,215,2020/07/07 00:00:00+00,Public Works,Maintenance and Repair of Stormwater Systems,Repairs and Maintenance,Maintanance and Repair of Real Property,Stormwater Utility Fund,12879.59,Simpson of Maryland Inc.,Day,SIMPSON OF MARYLAND INC.,0b363ea7-d4da-47dd-b1c5-ef2e3f89d866
16,216,2020/07/07 00:00:00+00,Recreation and Parks,Cylburn Arboretum,Roads and Land Supplies,Supplies and Maintenance of Land-Parks,Special Revenue,7.99,Suburban Sales & Rental Center Inc.,Day,SUBURBAN SALES & RENTAL CENTER INC.,de0e7958-dc2b-40c7-9c05-050ecab67644
17,217,2020/07/07 00:00:00+00,Recreation and Parks,Parks Natural Resources Management,Repairs and Maintenance,Maintanance and Repair of Real Property,General Fund,13.41,Joseph Heil Company Inc,Day,JOSEPH HEIL COMPANY INC,f2dfdea1-a2d1-49a7-926e-f57a0bf32a75
18,218,2020/07/07 00:00:00+00,Recreation and Parks,Cylburn Arboretum,Roads and Land Supplies,Supplies and Maintenance of Land-Parks,Special Revenue,37.18,Suburban Sales & Rental Center Inc.,Day,SUBURBAN SALES & RENTAL CENTER INC.,e697b5c8-74ab-437d-adf3-8ba3035ec286
19,219,2020/07/07 00:00:00+00,Recreation and Parks,Cylburn Arboretum,Roads and Land Supplies,Supplies and Maintenance of Land-Parks,Special Revenue,59.99,Suburban Sales & Rental Center Inc.,Day,SUBURBAN SALES & RENTAL CENTER INC.,f7320b6c-2220-41f8-a094-a4879445dd67
20,220,2020/07/07 00:00:00+00,Recreation and Parks,Parks Natural Resources Management,Repairs and Maintenance,Maintanance and Repair of Real Property,General Fund,170,Joseph Heil Company Inc,Day,JOSEPH HEIL COMPANY INC,6ad460e4-6bb9-4aa0-9c5e-ea444b2a33f0
21,221,2020/07/07 00:00:00+00,Recreation and Parks,Parks Natural Resources Management,Repairs and Maintenance,Maintanance and Repair of Real Property,General Fund,180,Joseph Heil Company Inc,Day,JOSEPH HEIL COMPANY INC,2898b5b1-7dbf-4ebd-a8f1-2b31238f9a2b
22,222,2020/07/07 00:00:00+00,Recreation and Parks,Parks Natural Resources Management,Repairs and Maintenance,Maintanance and Repair of Real Property,General Fund,420,Joseph Heil Company Inc,Day,JOSEPH HEIL COMPANY INC,5b9199a4-b872-468b-829e-c768299831b6
23,223,2020/07/07 00:00:00+00,Recreation and Parks,Parks Natural Resources Management,Repairs and Maintenance,Maintanance and Repair of Real Property,General Fund,480,Joseph Heil Company Inc,Day,JOSEPH HEIL COMPANY INC,9022c759-de79-4f84-afe5-2d7e7c12c2f1
24,224,2020/07/07 00:00:00+00,Recreation and Parks,Druid Hill Park District Park Maintenance,Cleaning and Maintenance Supplies,General Operating and Maintenance Supplies,General Fund,1539.25,Mid Atlantic Fountain Design & Mfg. Company Inc,Day,MID ATLANTIC FOUNTAIN DESIGN & MFG. COMPANY INC,dbbf36a4-86f2-4967-be55-fa0f69495824
25,225,2020/07/07 00:00:00+00,Sheriff,Sheriff Deputy Division,Major Equipment - Field,Major Motor Vehicles,General Fund,16632,All Car Leasing,Day,ALL CAR LEASING,2b8c96e4-3222-48d7-a4b0-cbf8a4787c66
26,226,2020/07/07 00:00:00+00,Transportation,Traffic Management and Engineering,Professional Services,Professional Services,General Fund,3.29,Chesapeake Uniform,Day,CHESAPEAKE UNIFORM,3dca392c-77e3-422c-8cdf-cc1dba486e99
27,227,2020/07/07 00:00:00+00,Transportation,Traffic Management and Engineering,Professional Services,Professional Services,General Fund,3.29,Chesapeake Uniform,Day,CHESAPEAKE UNIFORM,f17bf3cb-513b-4c2b-84fe-141d3c567b02
28,228,2020/07/07 00:00:00+00,Transportation,Traffic Management and Engineering,Professional Services,Professional Services,General Fund,3.29,Chesapeake Uniform,Day,CHESAPEAKE UNIFORM,8a21b28d-0f4f-414f-af97-15023ce84444
29,229,2020/07/07 00:00:00+00,Transportation,Traffic Management and Engineering,Professional Services,Professional Services,General Fund,3.29,Chesapeake Uniform,Day,CHESAPEAKE UNIFORM,77959d6b-ffc1-4e20-b17a-b232de437b9c
30,230,2020/07/07 00:00:00+00,Transportation,Traffic Management and Engineering,Professional Services,Professional Services,General Fund,3.29,Chesapeake Uniform,Day,CHESAPEAKE UNIFORM,540dd883-0cec-4db2-947a-90dc84e8eec1
31,231,2020/07/07 00:00:00+00,Transportation,Traffic Management and Engineering,Professional Services,Professional Services,General Fund,3.29,Chesapeake Uniform,Day,CHESAPEAKE UNIFORM,411b47bd-9c55-4daa-b505-180347904bb9
32,232,2020/07/07 00:00:00+00,Transportation,Traffic Management and Engineering,Professional Services,Professional Services,General Fund,3.29,Chesapeake Uniform,Day,CHESAPEAKE UNIFORM,e4d371d5-f141-4dfe-adc4-d1bcc7fa8124
33,233,2020/07/07 00:00:00+00,Transportation,Traffic Management and Engineering,Professional Services,Professional Services,General Fund,3.29,Chesapeake Uniform,Day,CHESAPEAKE UNIFORM,e1132341-3587-495e-83d6-e71a446ce3f2
34,234,2020/07/07 00:00:00+00,Transportation,Traffic Management and Engineering,Professional Services,Professional Services,General Fund,3.29,Chesapeake Uniform,Day,CHESAPEAKE UNIFORM,35bffced-5701-45e9-aa05-ed141a44bd97
35,235,2020/07/07 00:00:00+00,Transportation,Traffic Management and Engineering,Professional Services,Professional Services,General Fund,3.29,Chesapeake Uniform,Day,CHESAPEAKE UNIFORM,999e368e-00fb-40cd-929a-151d30ca2216
36,236,2020/07/07 00:00:00+00,Transportation,Traffic Management and Engineering,Professional Services,Professional Services,General Fund,3.29,Chesapeake Uniform,Day,CHESAPEAKE UNIFORM,48409fbe-cb51-4669-831a-6f8ee266494d
37,237,2020/07/07 00:00:00+00,Transportation,Traffic Management and Engineering,Professional Services,Professional Services,General Fund,3.29,Chesapeake Uniform,Day,CHESAPEAKE UNIFORM,312942d8-6de3-4a35-87bc-9b88a076c32d
38,238,2020/07/07 00:00:00+00,Transportation,Traffic Management and Engineering,Professional Services,Professional Services,General Fund,3.29,Chesapeake Uniform,Day,CHESAPEAKE UNIFORM,56aa39de-5655-447e-b2e1-8876b30c27ea
39,239,2020/07/07 00:00:00+00,Transportation,Traffic Management and Engineering,Professional Services,Professional Services,General Fund,3.29,Chesapeake Uniform,Day,CHESAPEAKE UNIFORM,6ee01e3f-4c7e-42ce-9d2a-badf110ae28f
40,240,2020/07/07 00:00:00+00,Transportation,Traffic Management and Engineering,Professional Services,Professional Services,General Fund,3.29,Chesapeake Uniform,Day,CHESAPEAKE UNIFORM,0c8ccbf8-c2fc-44ed-9eb9-b91a9f11a6aa
41,241,2020/07/07 00:00:00+00,Transportation,Traffic Management and Engineering,Professional Services,Professional Services,General Fund,6.08,Chesapeake Uniform,Day,CHESAPEAKE UNIFORM,ce85deb3-d7da-4d3f-9e51-41fb89ffe6b4
42,242,2020/07/07 00:00:00+00,Transportation,Traffic Management and Engineering,Professional Services,Professional Services,General Fund,6.08,Chesapeake Uniform,Day,CHESAPEAKE UNIFORM,fe0058e1-3adc-4da7-84eb-eebf4305b8d4
43,243,2020/07/07 00:00:00+00,Transportation,Traffic Management and Engineering,Professional Services,Professional Services,General Fund,6.08,Chesapeake Uniform,Day,CHESAPEAKE UNIFORM,581c3ea1-d5dd-433e-bd88-aaec9ec7f883
44,244,2020/07/07 00:00:00+00,Transportation,Traffic Management and Engineering,Professional Services,Professional Services,General Fund,6.08,Chesapeake Uniform,Day,CHESAPEAKE UNIFORM,21d88f4e-f93f-4780-908b-be83937ccc29
45,245,2020/07/07 00:00:00+00,Transportation,Traffic Management and Engineering,Professional Services,Professional Services,General Fund,6.08,Chesapeake Uniform,Day,CHESAPEAKE UNIFORM,7b924e87-6a98-4d78-a778-c55e34d19810
46,246,2020/07/07 00:00:00+00,Transportation,Traffic Management and Engineering,Professional Services,Professional Services,General Fund,6.08,Chesapeake Uniform,Day,CHESAPEAKE UNIFORM,a66bf692-0d84-42d4-ae30-5448f5f960ef
47,247,2020/07/07 00:00:00+00,Transportation,Traffic Management and Engineering,Professional Services,Professional Services,General Fund,6.08,Chesapeake Uniform,Day,CHESAPEAKE UNIFORM,7e1e6d59-241c-4dcd-9663-00639b9850bb
48,248,2020/07/07 00:00:00+00,Transportation,Traffic Management and Engineering,Professional Services,Professional Services,General Fund,6.08,Chesapeake Uniform,Day,CHESAPEAKE UNIFORM,d675697c-ece2-4fd8-a52a-f5943f8c16f3
49,249,2020/07/07 00:00:00+00,Transportation,Traffic Management and Engineering,Professional Services,Professional Services,General Fund,6.08,Chesapeake Uniform,Day,CHESAPEAKE UNIFORM,2784f658-de55-4339-8cf7-42a863f84a49
50,250,2020/07/07 00:00:00+00,Transportation,Traffic Management and Engineering,Professional Services,Professional Services,General Fund,6.08,Chesapeake Uniform,Day,CHESAPEAKE UNIFORM,245d069b-d781-4b80-b92b-7eba36311462
51,101,2020/07/07 00:00:00+00,Public Works,Wastewater Maintenance and Repair of Sanitary Systems,Professional Services,Professional Services,WasteWater Utility Fund,4.77,Teletrac Navman US ltd.,Day,TELETRAC NAVMAN US LTD.,d64cc27e-0a26-4e1f-88e0-feb71a9370c9
52,102,2020/07/07 00:00:00+00,Public Works,Cleaning of Business Districts,Professional Services,Professional Services,General Fund,5.51,Teletrac Navman US ltd.,Day,TELETRAC NAVMAN US LTD.,08a38e9a-d17d-484e-ace2-37e2946a9e87
53,103,2020/07/07 00:00:00+00,Public Works,Water Engineering,Professional Services,Professional Services,Water Utility Fund,5.59,Teletrac Navman US ltd.,Day,TELETRAC NAVMAN US LTD.,8b97b713-fbee-4190-9af6-60efa9fde267
54,104,2020/07/07 00:00:00+00,Public Works,Wastewater Pollution Control,Professional Services,Professional Services,WasteWater Utility Fund,5.74,Teletrac Navman US ltd.,Day,TELETRAC NAVMAN US LTD.,2423bed2-6f67-4bdd-84ad-def92213fa18
55,105,2020/07/07 00:00:00+00,Public Works,Casino Support Sanitation Staffing (DPW),Employee Supplies,Clothing And Footwear,Baltimore Casino,5.82,Cintas Corporation No. 2,Day,CINTAS CORPORATION NO. 2,9b597ec2-95b8-4cb0-a7e3-f92ed13396c1
56,106,2020/07/07 00:00:00+00,Public Works,Cleaning of Business Districts,Employee Supplies,Clothing And Footwear,General Fund,5.82,Cintas Corporation No. 2,Day,CINTAS CORPORATION NO. 2,c82b8a13-90d8-4e8b-b3f0-6b5b6d69a3ef
57,107,2020/07/07 00:00:00+00,Public Works,Water Conservation Baltimore City,Professional Services,Professional Services,Water Utility Fund,6.36,Teletrac Navman US ltd.,Day,TELETRAC NAVMAN US LTD.,d174e851-e69f-4b52-9703-41c55bed5b41
58,108,2020/07/07 00:00:00+00,Public Works,Condominium Collections,Professional Services,Professional Services,General Fund,6.36,Teletrac Navman US ltd.,Day,TELETRAC NAVMAN US LTD.,3ca130f7-8b92-49a7-a185-fecb4ec7c67d
59,109,2020/07/07 00:00:00+00,Public Works,Patapsco Wastewater Treatment Plant Maintenance,Professional Services,Professional Services,WasteWater Utility Fund,6.66,Teletrac Navman US ltd.,Day,TELETRAC NAVMAN US LTD.,88207da3-9928-4fb0-b3d9-b8c973caafc7
60,110,2020/07/07 00:00:00+00,Public Works,Maintenance and Repair of Stormwater Systems,Professional Services,Professional Services,Stormwater Utility Fund,6.9,Teletrac Navman US ltd.,Day,TELETRAC NAVMAN US LTD.,3021968c-0a57-4456-80d1-7ce3ddc36f66
61,111,2020/07/07 00:00:00+00,Public Works,Water Facilities Inspection,Professional Services,Professional Services,Water Utility Fund,7.95,Teletrac Navman US ltd.,Day,TELETRAC NAVMAN US LTD.,b76e53e3-8570-489f-a3e4-f4a69a6c19bf
62,112,2020/07/07 00:00:00+00,Public Works,Wastewater Inflow and Infiltration,Professional Services,Professional Services,WasteWater Utility Fund,7.95,Teletrac Navman US ltd.,Day,TELETRAC NAVMAN US LTD.,3a675be9-02fe-46ab-9aa5-de9ac8171005
63,113,2020/07/07 00:00:00+00,Public Works,Water Baltimore City Operations and Maintenance,Professional Services,Professional Services,Water Utility Fund,8.3,Teletrac Navman US ltd.,Day,TELETRAC NAVMAN US LTD.,37d2d12b-ad0c-43ff-9d2b-479b753cbe8d
64,114,2020/07/07 00:00:00+00,Public Works,Mechanical Sweeping Operation,Professional Services,Professional Services,General Fund,8.93,Teletrac Navman US ltd.,Day,TELETRAC NAVMAN US LTD.,ac721cb9-db73-4e24-9489-e0eeef95ab57
65,115,2020/07/07 00:00:00+00,Public Works,Watershed Safety,Professional Services,Professional Services,Water Utility Fund,9.81,Teletrac Navman US ltd.,Day,TELETRAC NAVMAN US LTD.,e9511958-809f-41e4-8c7c-7cbbc628b7b9
66,116,2020/07/07 00:00:00+00,Public Works,Wastewater Facilities Engineering,Professional Services,Professional Services,Water Utility Fund,10.75,Teletrac Navman US ltd.,Day,TELETRAC NAVMAN US LTD.,a8de22cf-7a09-43d7-bb5c-9c5890e05216
67,117,2020/07/07 00:00:00+00,Public Works,Wastewater Pumping Stations Maintenance,Professional Services,Professional Services,WasteWater Utility Fund,10.75,Teletrac Navman US ltd.,Day,TELETRAC NAVMAN US LTD.,e6e0236e-5c84-4506-99f9-2ab731bde9e6
68,118,2020/07/07 00:00:00+00,Public Works,Public Works Safety Training Emergency Management and Security (DPW),Professional Services,Professional Services,General Fund,11.62,Teletrac Navman US ltd.,Day,TELETRAC NAVMAN US LTD.,0cd03744-7302-4f1b-b728-30f96dd2f40d
69,119,2020/07/07 00:00:00+00,Public Works,Wastewater Maintenance and Repair of Sanitary Systems,Professional Services,Professional Services,WasteWater Utility Fund,11.91,Teletrac Navman US ltd.,Day,TELETRAC NAVMAN US LTD.,bbeb0b0b-d821-4ff4-b796-953fd4f5a502
70,120,2020/07/07 00:00:00+00,Public Works,Water Engineering,Professional Services,Professional Services,Water Utility Fund,12.4,Teletrac Navman US ltd.,Day,TELETRAC NAVMAN US LTD.,059b0494-06f6-4b2f-891d-abb92e656d52
71,121,2020/07/07 00:00:00+00,Public Works,Wastewater Pollution Control,Professional Services,Professional Services,WasteWater Utility Fund,12.73,Teletrac Navman US ltd.,Day,TELETRAC NAVMAN US LTD.,8f76facb-59cb-48f4-991c-a87a0f21ec14
72,122,2020/07/07 00:00:00+00,Public Works,Water and Wastewater Meter Operations Administration,Professional Services,Professional Services,Water Utility Fund,12.79,Teletrac Navman US ltd.,Day,TELETRAC NAVMAN US LTD.,b2144a75-47c9-47e3-89ac-09433f5f1680
73,123,2020/07/07 00:00:00+00,Public Works,Water Baltimore County Operations and Maintenance,Professional Services,Professional Services,Water Utility Fund,14.34,Teletrac Navman US ltd.,Day,TELETRAC NAVMAN US LTD.,e8a39075-ad87-4a6b-9cf6-ac333480c14c
74,124,2020/07/07 00:00:00+00,Public Works,DPW Marine Operations,Employee Supplies,Clothing And Footwear,General Fund,15.5,Cintas Corporation No. 2,Day,CINTAS CORPORATION NO. 2,6a9944fb-66be-4576-903a-3a38e1f54f33
75,125,2020/07/07 00:00:00+00,Public Works,Graffiti Removal,Employee Supplies,Clothing And Footwear,General Fund,15.51,Cintas Corporation No. 2,Day,CINTAS CORPORATION NO. 2,0c4ead1c-4b5a-42bc-9a71-0dd1da859d12
76,126,2020/07/07 00:00:00+00,Public Works,Water Baltimore County Operations and Maintenance Westside,Professional Services,Professional Services,Water Utility Fund,15.77,Teletrac Navman US ltd.,Day,TELETRAC NAVMAN US LTD.,d6b72c39-623d-465c-9d4d-826f2e493b82
77,127,2020/07/07 00:00:00+00,Public Works,Street and Alley Cleaning,Professional Services,Professional Services,General Fund,16.66,Teletrac Navman US ltd.,Day,TELETRAC NAVMAN US LTD.,96d6ed64-48b1-49c7-8be9-aee5b0aff25a
78,128,2020/07/07 00:00:00+00,Public Works,Water Conservation Baltimore County,Professional Services,Professional Services,Water Utility Fund,17.33,Teletrac Navman US ltd.,Day,TELETRAC NAVMAN US LTD.,57560988-2605-4864-9e7f-998064d8850e
79,129,2020/07/07 00:00:00+00,Public Works,Water Chlorinator Stations,Professional Services,Professional Services,Water Utility Fund,17.33,Teletrac Navman US ltd.,Day,TELETRAC NAVMAN US LTD.,c0dc2ff1-8d82-495e-9001-13b30d4f6fc3
80,130,2020/07/07 00:00:00+00,Public Works,Bulk Trash Collection,Professional Services,Professional Services,General Fund,17.33,Teletrac Navman US ltd.,Day,TELETRAC NAVMAN US LTD.,c85efef0-a09b-4a0a-a326-7121ae133722
81,131,2020/07/07 00:00:00+00,Public Works,Patapsco Wastewater Treatment Plant Operations,Professional Services,Professional Services,WasteWater Utility Fund,17.33,Teletrac Navman US ltd.,Day,TELETRAC NAVMAN US LTD.,8db56cd7-14dc-4828-9672-f7f042ebb7ae
82,132,2020/07/07 00:00:00+00,Public Works,Water Quality Monitoring and Inspections,Professional Services,Professional Services,WasteWater Utility Fund,17.33,Teletrac Navman US ltd.,Day,TELETRAC NAVMAN US LTD.,c9dc5a11-9130-49e7-9905-92ecf07b08e2
83,133,2020/07/07 00:00:00+00,Public Works,Water Chlorinator Stations,Professional Services,Professional Services,Water Utility Fund,17.33,Teletrac Navman US ltd.,Day,TELETRAC NAVMAN US LTD.,247c0636-9e94-4ffe-a462-d3d0921816f4
84,134,2020/07/07 00:00:00+00,Public Works,Water Chlorinator Stations,Professional Services,Professional Services,Water Utility Fund,17.33,Teletrac Navman US ltd.,Day,TELETRAC NAVMAN US LTD.,7797f250-8cac-4de3-aa67-ae6e774f0733
85,135,2020/07/07 00:00:00+00,Public Works,Landfill Operation,Professional Services,Professional Services,General Fund,17.92,Teletrac Navman US ltd.,Day,TELETRAC NAVMAN US LTD.,b563fdc7-88f1-4a72-8fd6-4d74533358b2
86,136,2020/07/07 00:00:00+00,Public Works,Water Baltimore City Operations and Maintenance Westside,Professional Services,Professional Services,Water Utility Fund,18.64,Teletrac Navman US ltd.,Day,TELETRAC NAVMAN US LTD.,9fcf7be9-bab8-4a1c-b04d-0f8af36ffc87
87,137,2020/07/07 00:00:00+00,Public Works,Vacant Abandoned Property Cleaning and Boarding,Professional Services,Professional Services,General Fund,19.02,Teletrac Navman US ltd.,Day,TELETRAC NAVMAN US LTD.,4d57f25d-17c9-446c-952d-9ff1aa8fb1ac
88,138,2020/07/07 00:00:00+00,Public Works,Cleaning of Business Districts,Professional Services,Professional Services,General Fund,22.55,Teletrac Navman US ltd.,Day,TELETRAC NAVMAN US LTD.,a70b736b-664c-4b5a-baa0-18fb40beac2d
89,139,2020/07/07 00:00:00+00,Public Works,Bulk Trash Collection,Employee Supplies,Clothing And Footwear,General Fund,23.26,Cintas Corporation No. 2,Day,CINTAS CORPORATION NO. 2,709c25f3-e634-440b-8d40-49b8698cf3b8
90,140,2020/07/07 00:00:00+00,Public Works,Wastewater Facilities Engineering,Professional Services,Professional Services,Water Utility Fund,23.85,Teletrac Navman US ltd.,Day,TELETRAC NAVMAN US LTD.,d3158f28-59b0-4ec2-8920-c64fd6b340bb
91,141,2020/07/07 00:00:00+00,Public Works,Wastewater Pumping Stations Maintenance,Professional Services,Professional Services,WasteWater Utility Fund,23.85,Teletrac Navman US ltd.,Day,TELETRAC NAVMAN US LTD.,7c154b2c-8a2a-4ebb-8fff-d41764c7096f
92,142,2020/07/07 00:00:00+00,Public Works,Public Works Safety Training Emergency Management and Security (DPW),Professional Services,Professional Services,General Fund,25.77,Teletrac Navman US ltd.,Day,TELETRAC NAVMAN US LTD.,d5ea158c-6c42-4bc8-9b7a-1c124863319a
93,143,2020/07/07 00:00:00+00,Public Works,Rat Control,Employee Supplies,Clothing And Footwear,General Fund,27.13,Cintas Corporation No. 2,Day,CINTAS CORPORATION NO. 2,6adae398-26fc-459a-92c5-1920c89bfbe1
94,144,2020/07/07 00:00:00+00,Public Works,Patapsco Wastewater Treatment Plant Maintenance,Professional Services,Professional Services,WasteWater Utility Fund,27.24,Teletrac Navman US ltd.,Day,TELETRAC NAVMAN US LTD.,35b8f02a-ba31-4495-865b-f616002e2083
95,145,2020/07/07 00:00:00+00,Public Works,Maintenance and Repair of Stormwater Systems,Professional Services,Professional Services,Stormwater Utility Fund,28.25,Teletrac Navman US ltd.,Day,TELETRAC NAVMAN US LTD.,5e819e24-26db-44a9-a31a-36491c3287ab
96,146,2020/07/07 00:00:00+00,Public Works,Water Baltimore County Operations and Maintenance,Professional Services,Professional Services,Water Utility Fund,31.81,Teletrac Navman US ltd.,Day,TELETRAC NAVMAN US LTD.,2777e46a-69da-4ea8-a5dd-23a88d9e0a15
97,147,2020/07/07 00:00:00+00,Public Works,Water Baltimore City Operations and Maintenance,Professional Services,Professional Services,Water Utility Fund,33.98,Teletrac Navman US ltd.,Day,TELETRAC NAVMAN US LTD.,052010bb-f50b-4825-b4a8-cbed4ce59348
98,148,2020/07/07 00:00:00+00,Public Works,Public Works Communications and Community Affairs (DPW),Professional Services,Professional Services,General Fund,34.66,Teletrac Navman US ltd.,Day,TELETRAC NAVMAN US LTD.,9b690b42-e7ae-4728-8db2-11782bd2ae07
99,149,2020/07/07 00:00:00+00,Public Works,Public  Works Computer Services (DPW),Professional Services,Professional Services,General Fund,34.66,Teletrac Navman US ltd.,Day,TELETRAC NAVMAN US LTD.,0d90776a-e382-4d13-8233-df96fc0de492
100,150,2020/07/07 00:00:00+00,Public Works,Water Baltimore County Operations and Maintenance Westside,Professional Services,Professional Services,Water Utility Fund,34.99,Teletrac Navman US ltd.,Day,TELETRAC NAVMAN US LTD.,e05af9de-ef8d-4023-92d4-40763614013b
101,51,2020/07/07 00:00:00+00,Public Works,Water and Wastewater Meter Operations City,Professional Services,Professional Services,Water Utility Fund,0.53,Teletrac Navman US ltd.,Day,TELETRAC NAVMAN US LTD.,199a53bf-13af-4ec8-832b-5d3878f45d0a
102,52,2020/07/07 00:00:00+00,Public Works,Stormwater Engineering,Professional Services,Professional Services,Stormwater Utility Fund,0.53,Teletrac Navman US ltd.,Day,TELETRAC NAVMAN US LTD.,34a4bed2-3ce3-42d0-867a-bfa4fa7e47a4
103,53,2020/07/07 00:00:00+00,Public Works,Water Chlorinator Stations,Professional Services,Professional Services,Water Utility Fund,0.53,Teletrac Navman US ltd.,Day,TELETRAC NAVMAN US LTD.,64990ced-b400-4fc9-b1d9-1a1456c8a41d
104,54,2020/07/07 00:00:00+00,Public Works,Wastewater Maintenance and Repair of Sanitary Systems,Professional Services,Professional Services,WasteWater Utility Fund,0.53,Teletrac Navman US ltd.,Day,TELETRAC NAVMAN US LTD.,630b20ba-173c-4cd3-a796-48296c983101
105,55,2020/07/07 00:00:00+00,Public Works,Water Conservation Baltimore City,Professional Services,Professional Services,Water Utility Fund,0.7,Teletrac Navman US ltd.,Day,TELETRAC NAVMAN US LTD.,f72c1249-8149-4a1f-82d3-94bb58047331
106,56,2020/07/07 00:00:00+00,Public Works,Condominium Collections,Professional Services,Professional Services,General Fund,0.7,Teletrac Navman US ltd.,Day,TELETRAC NAVMAN US LTD.,05a79f8f-93fe-4139-9ab3-5a3e6a957d79
107,57,2020/07/07 00:00:00+00,Public Works,Water Conservation Baltimore County,Professional Services,Professional Services,Water Utility Fund,0.72,Teletrac Navman US ltd.,Day,TELETRAC NAVMAN US LTD.,773df5f6-d653-4ab6-beef-d05dfc95e709
108,58,2020/07/07 00:00:00+00,Public Works,Water Chlorinator Stations,Professional Services,Professional Services,Water Utility Fund,0.72,Teletrac Navman US ltd.,Day,TELETRAC NAVMAN US LTD.,a285da62-cb3f-4d07-9eb8-28d5f2a1c91a
109,59,2020/07/07 00:00:00+00,Public Works,Bulk Trash Collection,Professional Services,Professional Services,General Fund,0.72,Teletrac Navman US ltd.,Day,TELETRAC NAVMAN US LTD.,bb7d5934-a59b-4055-88b9-3b9085dcdb1f
110,60,2020/07/07 00:00:00+00,Public Works,Patapsco Wastewater Treatment Plant Operations,Professional Services,Professional Services,WasteWater Utility Fund,0.72,Teletrac Navman US ltd.,Day,TELETRAC NAVMAN US LTD.,654e854c-0746-41af-95da-49f8e90e805b
111,61,2020/07/07 00:00:00+00,Public Works,Water Quality Monitoring and Inspections,Professional Services,Professional Services,WasteWater Utility Fund,0.72,Teletrac Navman US ltd.,Day,TELETRAC NAVMAN US LTD.,2a4cfaeb-0f94-465d-9a49-c8165bacadd2
112,62,2020/07/07 00:00:00+00,Public Works,Water Chlorinator Stations,Professional Services,Professional Services,Water Utility Fund,0.72,Teletrac Navman US ltd.,Day,TELETRAC NAVMAN US LTD.,3cb6e394-321e-4560-a572-e2769d80074a
113,63,2020/07/07 00:00:00+00,Public Works,Water Chlorinator Stations,Professional Services,Professional Services,Water Utility Fund,0.72,Teletrac Navman US ltd.,Day,TELETRAC NAVMAN US LTD.,29c89eae-10e1-4e9f-bc52-fc2dd29a9a65
114,64,2020/07/07 00:00:00+00,Public Works,Water Facilities Inspection,Professional Services,Professional Services,Water Utility Fund,0.88,Teletrac Navman US ltd.,Day,TELETRAC NAVMAN US LTD.,92a3b1cf-829d-4c04-94ed-dc4156419b8d
115,65,2020/07/07 00:00:00+00,Public Works,Wastewater Inflow and Infiltration,Professional Services,Professional Services,WasteWater Utility Fund,0.88,Teletrac Navman US ltd.,Day,TELETRAC NAVMAN US LTD.,db3ba785-d2c0-4a84-8e3e-f99af04a30ca
116,66,2020/07/07 00:00:00+00,Public Works,Water Engineering,Professional Services,Professional Services,Water Utility Fund,1.37,Teletrac Navman US ltd.,Day,TELETRAC NAVMAN US LTD.,448d8c30-c213-47be-a411-b8324963f22c
117,67,2020/07/07 00:00:00+00,Public Works,Wastewater Pollution Control,Professional Services,Professional Services,WasteWater Utility Fund,1.4,Teletrac Navman US ltd.,Day,TELETRAC NAVMAN US LTD.,48d7475d-dd1f-4a2e-861e-d98591506f31
118,68,2020/07/07 00:00:00+00,Public Works,Public Works Communications and Community Affairs (DPW),Professional Services,Professional Services,General Fund,1.43,Teletrac Navman US ltd.,Day,TELETRAC NAVMAN US LTD.,621d63f0-ec9c-447f-b2b6-2a31b2c85af7
119,69,2020/07/07 00:00:00+00,Public Works,Public  Works Computer Services (DPW),Professional Services,Professional Services,General Fund,1.43,Teletrac Navman US ltd.,Day,TELETRAC NAVMAN US LTD.,5120835b-69dc-4d35-9e04-63075d53d5b0
120,70,2020/07/07 00:00:00+00,Public Works,Water Conservation Baltimore County,Professional Services,Professional Services,Water Utility Fund,1.59,Teletrac Navman US ltd.,Day,TELETRAC NAVMAN US LTD.,488ed832-b6e6-49bd-826d-240f25fcabda
121,71,2020/07/07 00:00:00+00,Public Works,Water Chlorinator Stations,Professional Services,Professional Services,Water Utility Fund,1.59,Teletrac Navman US ltd.,Day,TELETRAC NAVMAN US LTD.,5d34f4bc-18cd-4a5f-b808-64ca2965c802
122,72,2020/07/07 00:00:00+00,Public Works,Bulk Trash Collection,Professional Services,Professional Services,General Fund,1.59,Teletrac Navman US ltd.,Day,TELETRAC NAVMAN US LTD.,f3e80216-ae52-425a-a26d-5e6315cd27fd
123,73,2020/07/07 00:00:00+00,Public Works,Patapsco Wastewater Treatment Plant Operations,Professional Services,Professional Services,WasteWater Utility Fund,1.59,Teletrac Navman US ltd.,Day,TELETRAC NAVMAN US LTD.,5dcabb72-95a4-41cd-bfe2-89ce277d78a8
124,74,2020/07/07 00:00:00+00,Public Works,Water Quality Monitoring and Inspections,Professional Services,Professional Services,WasteWater Utility Fund,1.59,Teletrac Navman US ltd.,Day,TELETRAC NAVMAN US LTD.,f8e80b5f-2f8c-42bf-8aca-aefb3402a1e7
125,75,2020/07/07 00:00:00+00,Public Works,Water Chlorinator Stations,Professional Services,Professional Services,Water Utility Fund,1.59,Teletrac Navman US ltd.,Day,TELETRAC NAVMAN US LTD.,462d870b-d6cd-46a8-aa6a-9d693d6f2a14
126,76,2020/07/07 00:00:00+00,Public Works,Water Chlorinator Stations,Professional Services,Professional Services,Water Utility Fund,1.59,Teletrac Navman US ltd.,Day,TELETRAC NAVMAN US LTD.,040604b4-d91d-40f8-9149-904ab9b2ffbe
127,77,2020/07/07 00:00:00+00,Public Works,Wastewater Utility Inspection,Professional Services,Professional Services,WasteWater Utility Fund,2.15,Teletrac Navman US ltd.,Day,TELETRAC NAVMAN US LTD.,8f96d563-1546-4e0f-850b-0df37580a463
128,78,2020/07/07 00:00:00+00,Public Works,Water Engineering,Professional Services,Professional Services,Water Utility Fund,2.15,Teletrac Navman US ltd.,Day,TELETRAC NAVMAN US LTD.,50f55dd6-4f35-4bd5-91fd-3e31e1a79437
129,79,2020/07/07 00:00:00+00,Public Works,Water and Wastewater Meter Operations City,Professional Services,Professional Services,Water Utility Fund,2.15,Teletrac Navman US ltd.,Day,TELETRAC NAVMAN US LTD.,a4a9608d-c84d-4499-bf5d-ade2e9646c2a
130,80,2020/07/07 00:00:00+00,Public Works,Stormwater Engineering,Professional Services,Professional Services,Stormwater Utility Fund,2.15,Teletrac Navman US ltd.,Day,TELETRAC NAVMAN US LTD.,a47bf668-de9b-42e7-9fa3-62d2a19daf4a
131,81,2020/07/07 00:00:00+00,Public Works,Water Chlorinator Stations,Professional Services,Professional Services,Water Utility Fund,2.15,Teletrac Navman US ltd.,Day,TELETRAC NAVMAN US LTD.,b51556f4-3480-4cc7-b5f9-bf062fe669ef
132,82,2020/07/07 00:00:00+00,Public Works,Wastewater Maintenance and Repair of Sanitary Systems,Professional Services,Professional Services,WasteWater Utility Fund,2.15,Teletrac Navman US ltd.,Day,TELETRAC NAVMAN US LTD.,e6b4bbfc-e40e-4564-ab17-99eececd80ad
133,83,2020/07/07 00:00:00+00,Public Works,Wastewater Facilities Engineering,Professional Services,Professional Services,Water Utility Fund,2.63,Teletrac Navman US ltd.,Day,TELETRAC NAVMAN US LTD.,960bce3f-b2fa-4833-b4fe-b1c7ec81e952
134,84,2020/07/07 00:00:00+00,Public Works,Wastewater Pumping Stations Maintenance,Professional Services,Professional Services,WasteWater Utility Fund,2.63,Teletrac Navman US ltd.,Day,TELETRAC NAVMAN US LTD.,4dce252d-3a7d-40a4-9afd-5c3f96f96425
135,85,2020/07/07 00:00:00+00,Public Works,Public Works Safety Training Emergency Management and Security (DPW),Professional Services,Professional Services,General Fund,2.84,Teletrac Navman US ltd.,Day,TELETRAC NAVMAN US LTD.,3a88461a-e84c-4a20-9969-7ef9938a4484
136,86,2020/07/07 00:00:00+00,Public Works,Water Conservation Baltimore City,Professional Services,Professional Services,Water Utility Fund,2.87,Teletrac Navman US ltd.,Day,TELETRAC NAVMAN US LTD.,cd8ab0b6-2b13-48b1-8260-a7c14f92bb01
137,87,2020/07/07 00:00:00+00,Public Works,Condominium Collections,Professional Services,Professional Services,General Fund,2.87,Teletrac Navman US ltd.,Day,TELETRAC NAVMAN US LTD.,48c61bc5-1993-4865-92a3-11ffc29ba18d
138,88,2020/07/07 00:00:00+00,Public Works,Public Works Communications and Community Affairs (DPW),Professional Services,Professional Services,General Fund,3.18,Teletrac Navman US ltd.,Day,TELETRAC NAVMAN US LTD.,7fc2ca7d-d70f-486b-b23d-d31e775eda42
139,89,2020/07/07 00:00:00+00,Public Works,Public  Works Computer Services (DPW),Professional Services,Professional Services,General Fund,3.18,Teletrac Navman US ltd.,Day,TELETRAC NAVMAN US LTD.,dd92161b-6842-45f6-8b2b-94f03ddf0290
140,90,2020/07/07 00:00:00+00,Public Works,Water Baltimore County Operations and Maintenance,Professional Services,Professional Services,Water Utility Fund,3.5,Teletrac Navman US ltd.,Day,TELETRAC NAVMAN US LTD.,22cac80f-7163-48ea-b08a-50e643c73f36
141,91,2020/07/07 00:00:00+00,Public Works,Water Facilities Inspection,Professional Services,Professional Services,Water Utility Fund,3.58,Teletrac Navman US ltd.,Day,TELETRAC NAVMAN US LTD.,36d4d808-8a0e-43f5-9f41-9a543cbcafa7
142,92,2020/07/07 00:00:00+00,Public Works,Wastewater Inflow and Infiltration,Professional Services,Professional Services,WasteWater Utility Fund,3.58,Teletrac Navman US ltd.,Day,TELETRAC NAVMAN US LTD.,6d0479c1-14d6-402a-84aa-2e98f4560abb
143,93,2020/07/07 00:00:00+00,Public Works,Water Baltimore County Operations and Maintenance Westside,Professional Services,Professional Services,Water Utility Fund,3.85,Teletrac Navman US ltd.,Day,TELETRAC NAVMAN US LTD.,0ef72ef2-3474-4a6b-9e0c-8fddfd20ba84
144,94,2020/07/07 00:00:00+00,Public Works,Landfill Operation,Professional Services,Professional Services,General Fund,4.38,Teletrac Navman US ltd.,Day,TELETRAC NAVMAN US LTD.,36732c32-905a-44de-9361-ebcd4b85461d
145,95,2020/07/07 00:00:00+00,Public Works,Water Baltimore City Operations and Maintenance Westside,Professional Services,Professional Services,Water Utility Fund,4.55,Teletrac Navman US ltd.,Day,TELETRAC NAVMAN US LTD.,e3e57367-3a24-4471-a4bb-5b5302a15376
146,96,2020/07/07 00:00:00+00,Public Works,Wastewater Utility Inspection,Professional Services,Professional Services,WasteWater Utility Fund,4.77,Teletrac Navman US ltd.,Day,TELETRAC NAVMAN US LTD.,53539b87-3f62-4b3e-8ac7-e1c4f58d22d2
147,97,2020/07/07 00:00:00+00,Public Works,Water Engineering,Professional Services,Professional Services,Water Utility Fund,4.77,Teletrac Navman US ltd.,Day,TELETRAC NAVMAN US LTD.,0d0d50dc-32ca-402f-97e4-ccbb5c7eefad
148,98,2020/07/07 00:00:00+00,Public Works,Water and Wastewater Meter Operations City,Professional Services,Professional Services,Water Utility Fund,4.77,Teletrac Navman US ltd.,Day,TELETRAC NAVMAN US LTD.,bf92a65e-5c85-42fd-9c73-91840a438ee7
149,99,2020/07/07 00:00:00+00,Public Works,Stormwater Engineering,Professional Services,Professional Services,Stormwater Utility Fund,4.77,Teletrac Navman US ltd.,Day,TELETRAC NAVMAN US LTD.,2e221c93-de2a-4553-8e91-10fb8e3d177b
150,100,2020/07/07 00:00:00+00,Public Works,Water Chlorinator Stations,Professional Services,Professional Services,Water Utility Fund,4.77,Teletrac Navman US ltd.,Day,TELETRAC NAVMAN US LTD.,ee36ff44-1651-47e9-9be5-a7ef078e87ae
151,151,2020/07/07 00:00:00+00,Public Works,Mechanical Sweeping Operation,Professional Services,Professional Services,General Fund,36.56,Teletrac Navman US ltd.,Day,TELETRAC NAVMAN US LTD.,5faac6cf-0dbf-4348-8667-ae8027412c75
152,301,2020/07/07 00:00:00+00,Transportation,Traffic Construction and Management of Signals,Professional Services,Professional Services,General Fund,11.25,Chesapeake Uniform,Day,CHESAPEAKE UNIFORM,9d1e64e9-27ef-459a-be83-6a6f540aa92b
153,152,2020/07/07 00:00:00+00,Public Works,Northwest Transfer Station Operation,Employee Supplies,Clothing And Footwear,General Fund,36.82,Cintas Corporation No. 2,Day,CINTAS CORPORATION NO. 2,d85e0bc4-21fc-4b7f-9596-f58e40535cbd
154,302,2020/07/07 00:00:00+00,Transportation,Traffic Construction and Management of Signals,Professional Services,Professional Services,General Fund,15.97,Chesapeake Uniform,Day,CHESAPEAKE UNIFORM,5a8e0367-5b0d-494b-84c5-d7dc5a2930df
155,153,2020/07/07 00:00:00+00,Public Works,Mixed Refuse Collection,Professional Services,Professional Services,General Fund,39.14,Teletrac Navman US ltd.,Day,TELETRAC NAVMAN US LTD.,55b76781-4279-48ea-921c-013609bf7eed
156,303,2020/07/07 00:00:00+00,Transportation,Traffic Construction and Management of Signals,Professional Services,Professional Services,General Fund,15.97,Chesapeake Uniform,Day,CHESAPEAKE UNIFORM,03777185-f01d-4292-8027-9dc37b753ade
157,154,2020/07/07 00:00:00+00,Public Works,Landfill Operation,Professional Services,Professional Services,General Fund,39.76,Teletrac Navman US ltd.,Day,TELETRAC NAVMAN US LTD.,984977f9-4645-4e1f-b573-9810344ac5db
158,304,2020/07/07 00:00:00+00,Transportation,Traffic Construction and Management of Signals,Professional Services,Professional Services,General Fund,15.97,Chesapeake Uniform,Day,CHESAPEAKE UNIFORM,e6d5bb84-e67c-4aac-9d78-0e3ae4fe9255
159,155,2020/07/07 00:00:00+00,Public Works,Watershed Safety,Professional Services,Professional Services,Water Utility Fund,40.16,Teletrac Navman US ltd.,Day,TELETRAC NAVMAN US LTD.,3fe3556d-ff0a-41a4-8798-017f686d4d2e
160,305,2020/07/07 00:00:00+00,Transportation,Traffic Construction and Management of Signals,Professional Services,Professional Services,General Fund,15.97,Chesapeake Uniform,Day,CHESAPEAKE UNIFORM,d7e151b3-4fa8-4f7f-b1d6-fd5834396511
161,156,2020/07/07 00:00:00+00,Public Works,Water Baltimore City Operations and Maintenance Westside,Professional Services,Professional Services,Water Utility Fund,41.35,Teletrac Navman US ltd.,Day,TELETRAC NAVMAN US LTD.,b6a82509-01c6-4b32-a214-daeab2bd589b
162,306,2020/07/07 00:00:00+00,Transportation,Traffic Construction and Management of Signals,Professional Services,Professional Services,General Fund,15.97,Chesapeake Uniform,Day,CHESAPEAKE UNIFORM,79297305-0ac1-410e-8288-ee2dc4469c3b
163,157,2020/07/07 00:00:00+00,Public Works,Condominium Collections,Employee Supplies,Clothing And Footwear,General Fund,46.51,Cintas Corporation No. 2,Day,CINTAS CORPORATION NO. 2,1f9b8564-35c0-4cbf-89f0-40aa249b95df
164,307,2020/07/07 00:00:00+00,Transportation,Traffic Construction and Management of Signals,Professional Services,Professional Services,General Fund,15.97,Chesapeake Uniform,Day,CHESAPEAKE UNIFORM,72ebaf0b-3a65-4831-9bd1-642438d9791d
165,158,2020/07/07 00:00:00+00,Public Works,Landfill Operation,Employee Supplies,Clothing And Footwear,General Fund,48.45,Cintas Corporation No. 2,Day,CINTAS CORPORATION NO. 2,c2c2049b-aabd-4579-a9fa-caed50dbe556
166,308,2020/07/07 00:00:00+00,Transportation,Traffic Construction and Management of Signals,Professional Services,Professional Services,General Fund,15.97,Chesapeake Uniform,Day,CHESAPEAKE UNIFORM,1dae88d3-075d-444c-922e-667d40e19d1f
167,159,2020/07/07 00:00:00+00,Public Works,Wastewater Maintenance and Repair of Sanitary Systems,Professional Services,Professional Services,WasteWater Utility Fund,48.75,Teletrac Navman US ltd.,Day,TELETRAC NAVMAN US LTD.,f01ece7b-db07-4fb3-8f7f-c0d7f77775a2
168,309,2020/07/07 00:00:00+00,Transportation,Traffic Construction and Management of Signals,Professional Services,Professional Services,General Fund,15.97,Chesapeake Uniform,Day,CHESAPEAKE UNIFORM,f87cdc9d-e985-4ed9-8b38-e6297af362bc
169,160,2020/07/07 00:00:00+00,Public Works,Cleaning of Business Districts,Professional Services,Professional Services,General Fund,50.02,Teletrac Navman US ltd.,Day,TELETRAC NAVMAN US LTD.,917a37e0-eb44-4a4f-8c22-79edbbd34725
170,310,2020/07/07 00:00:00+00,Transportation,Traffic Construction and Management of Signals,Professional Services,Professional Services,General Fund,15.97,Chesapeake Uniform,Day,CHESAPEAKE UNIFORM,2fd383dd-d251-46c6-8ecd-cb45ad7fe002
171,161,2020/07/07 00:00:00+00,Public Works,Wastewater Utility Inspection,Professional Services,Professional Services,WasteWater Utility Fund,51.98,Teletrac Navman US ltd.,Day,TELETRAC NAVMAN US LTD.,ff985f21-d95e-4e62-8aa1-96eb95892234
172,162,2020/07/07 00:00:00+00,Public Works,Water Engineering,Professional Services,Professional Services,Water Utility Fund,51.98,Teletrac Navman US ltd.,Day,TELETRAC NAVMAN US LTD.,08e0bcc3-86c8-43f0-bfa4-13877eea0fc1
173,163,2020/07/07 00:00:00+00,Public Works,Water and Wastewater Meter Operations City,Professional Services,Professional Services,Water Utility Fund,51.98,Teletrac Navman US ltd.,Day,TELETRAC NAVMAN US LTD.,9d3059b9-735f-4223-9416-886d0786a43a
174,164,2020/07/07 00:00:00+00,Public Works,Stormwater Engineering,Professional Services,Professional Services,Stormwater Utility Fund,51.98,Teletrac Navman US ltd.,Day,TELETRAC NAVMAN US LTD.,adc55ef1-cbcd-4e95-8de3-867caff72373
175,165,2020/07/07 00:00:00+00,Public Works,Water Chlorinator Stations,Professional Services,Professional Services,Water Utility Fund,51.98,Teletrac Navman US ltd.,Day,TELETRAC NAVMAN US LTD.,ba595d99-6397-4c8b-bb20-756433a4f470
176,166,2020/07/07 00:00:00+00,Public Works,Wastewater Maintenance and Repair of Sanitary Systems,Professional Services,Professional Services,WasteWater Utility Fund,51.98,Teletrac Navman US ltd.,Day,TELETRAC NAVMAN US LTD.,9327e951-b8ce-4960-8594-36270e00e3cd
177,167,2020/07/07 00:00:00+00,Public Works,Water and Wastewater Meter Operations Administration,Professional Services,Professional Services,Water Utility Fund,52.34,Teletrac Navman US ltd.,Day,TELETRAC NAVMAN US LTD.,4a590004-db1f-44f5-b2d1-e0c324e132aa
178,168,2020/07/07 00:00:00+00,Public Works,Mechanical Sweeping Operation,Employee Supplies,Clothing And Footwear,Stormwater Utility Fund,58.14,Cintas Corporation No. 2,Day,CINTAS CORPORATION NO. 2,732456e8-6b4a-483c-92a7-19aee920e5ae
179,169,2020/07/07 00:00:00+00,Public Works,Patapsco Wastewater Treatment Plant Maintenance,Professional Services,Professional Services,WasteWater Utility Fund,60.43,Teletrac Navman US ltd.,Day,TELETRAC NAVMAN US LTD.,7a1ddfec-ad0e-41b6-bc55-6573647a3449
180,170,2020/07/07 00:00:00+00,Public Works,Maintenance and Repair of Stormwater Systems,Professional Services,Professional Services,Stormwater Utility Fund,62.67,Teletrac Navman US ltd.,Day,TELETRAC NAVMAN US LTD.,84dc6ee3-4d76-4d78-afeb-d4bf9c9875ce
181,171,2020/07/07 00:00:00+00,Public Works,Street and Alley Cleaning,Professional Services,Professional Services,General Fund,68.18,Teletrac Navman US ltd.,Day,TELETRAC NAVMAN US LTD.,384905d5-4712-4a8c-a706-a54741fbd9d8
182,172,2020/07/07 00:00:00+00,Public Works,Water Conservation Baltimore City,Professional Services,Professional Services,Water Utility Fund,69.31,Teletrac Navman US ltd.,Day,TELETRAC NAVMAN US LTD.,861e6ff9-aa64-4e33-bc66-ba06565a8b1b
183,173,2020/07/07 00:00:00+00,Public Works,Condominium Collections,Professional Services,Professional Services,General Fund,69.31,Teletrac Navman US ltd.,Day,TELETRAC NAVMAN US LTD.,cfb224f7-3364-49e9-8e57-03bbcb03a874
184,174,2020/07/07 00:00:00+00,Public Works,Water Baltimore City Operations and Maintenance,Professional Services,Professional Services,Water Utility Fund,75.38,Teletrac Navman US ltd.,Day,TELETRAC NAVMAN US LTD.,776f36de-d9b1-4a32-a8ae-3e85d3858e52
185,175,2020/07/07 00:00:00+00,Public Works,Vacant Abandoned Property Cleaning and Boarding,Professional Services,Professional Services,General Fund,77.84,Teletrac Navman US ltd.,Day,TELETRAC NAVMAN US LTD.,46a4f9bf-662e-4f7e-83d4-9110f96c53d6
186,176,2020/07/07 00:00:00+00,Public Works,Mechanical Sweeping Operation,Professional Services,Professional Services,General Fund,81.1,Teletrac Navman US ltd.,Day,TELETRAC NAVMAN US LTD.,7bdf35ef-1725-4746-a6ad-86f0bb19c70d
187,177,2020/07/07 00:00:00+00,Public Works,Water Facilities Inspection,Professional Services,Professional Services,Water Utility Fund,86.65,Teletrac Navman US ltd.,Day,TELETRAC NAVMAN US LTD.,b9f761d8-8147-4983-9ddb-f7cecc356537
188,178,2020/07/07 00:00:00+00,Public Works,Wastewater Inflow and Infiltration,Professional Services,Professional Services,WasteWater Utility Fund,86.65,Teletrac Navman US ltd.,Day,TELETRAC NAVMAN US LTD.,1e91a928-522f-4142-9399-02afb92e230a
189,179,2020/07/07 00:00:00+00,Public Works,Watershed Safety,Professional Services,Professional Services,Water Utility Fund,89.09,Teletrac Navman US ltd.,Day,TELETRAC NAVMAN US LTD.,0d75d26d-adb3-432b-8aeb-ccda7f3e5b18
190,180,2020/07/07 00:00:00+00,Public Works,Wastewater Maintenance and Repair of Sanitary Systems,Professional Services,Professional Services,WasteWater Utility Fund,108.14,Teletrac Navman US ltd.,Day,TELETRAC NAVMAN US LTD.,450a0d6e-0bec-40db-ac24-2596963de12f
191,181,2020/07/07 00:00:00+00,Public Works,Water and Wastewater Meter Operations Administration,Professional Services,Professional Services,Water Utility Fund,116.09,Teletrac Navman US ltd.,Day,TELETRAC NAVMAN US LTD.,6dc8387e-2e3e-490f-ae52-6f2e64ddeb62
192,182,2020/07/07 00:00:00+00,Public Works,Water Engineering,Professional Services,Professional Services,Water Utility Fund,135.17,Teletrac Navman US ltd.,Day,TELETRAC NAVMAN US LTD.,76e9f702-c19a-4b0b-96df-1eab2cf38b52
193,183,2020/07/07 00:00:00+00,Public Works,Wastewater Pollution Control,Professional Services,Professional Services,WasteWater Utility Fund,138.65,Teletrac Navman US ltd.,Day,TELETRAC NAVMAN US LTD.,80f4d7c0-f320-4fa1-8469-b193dbfa1275
194,184,2020/07/07 00:00:00+00,Public Works,Street and Alley Cleaning,Professional Services,Professional Services,General Fund,151.24,Teletrac Navman US ltd.,Day,TELETRAC NAVMAN US LTD.,415503e2-a807-406f-8132-f11a9c44ace0
195,185,2020/07/07 00:00:00+00,Public Works,Mixed Refuse Collection,Professional Services,Professional Services,General Fund,160.21,Teletrac Navman US ltd.,Day,TELETRAC NAVMAN US LTD.,a3852667-88f4-444d-a53e-eabd30ec5fbe
196,186,2020/07/07 00:00:00+00,Public Works,Vacant Abandoned Property Cleaning and Boarding,Employee Supplies,Clothing And Footwear,General Fund,166.67,Cintas Corporation No. 2,Day,CINTAS CORPORATION NO. 2,26edcd05-7999-401d-bc3b-9ad58e417018
197,187,2020/07/07 00:00:00+00,Public Works,Vacant Abandoned Property Cleaning and Boarding,Professional Services,Professional Services,General Fund,172.66,Teletrac Navman US ltd.,Day,TELETRAC NAVMAN US LTD.,ddd7b461-60b2-4f58-bd5f-7b3e6cdf9bb8
198,188,2020/07/07 00:00:00+00,Public Works,Street and Alley Cleaning,Employee Supplies,Clothing And Footwear,General Fund,220.93,Cintas Corporation No. 2,Day,CINTAS CORPORATION NO. 2,e41560ad-01b6-4264-a3f8-a47e151a93f2
199,189,2020/07/07 00:00:00+00,Public Works,Wastewater Facilities Engineering,Professional Services,Professional Services,Water Utility Fund,259.93,Teletrac Navman US ltd.,Day,TELETRAC NAVMAN US LTD.,467d62aa-e5a5-4499-8d6f-acc1ac731f0d
200,190,2020/07/07 00:00:00+00,Public Works,Wastewater Pumping Stations Maintenance,Professional Services,Professional Services,WasteWater Utility Fund,259.93,Teletrac Navman US ltd.,Day,TELETRAC NAVMAN US LTD.,38362e91-4060-45f7-a416-d1c529bba83d
201,191,2020/07/07 00:00:00+00,Public Works,Public Works Safety Training Emergency Management and Security (DPW),Professional Services,Professional Services,General Fund,280.78,Teletrac Navman US ltd.,Day,TELETRAC NAVMAN US LTD.,cf2ef928-bad6-4c86-bc64-a121efa08afc
202,192,2020/07/07 00:00:00+00,Public Works,Water Baltimore County Operations and Maintenance,Professional Services,Professional Services,Water Utility Fund,346.57,Teletrac Navman US ltd.,Day,TELETRAC NAVMAN US LTD.,a3b79b58-8294-402e-a2f3-dd557bb9c3e6
203,193,2020/07/07 00:00:00+00,Public Works,Mixed Refuse Collection,Professional Services,Professional Services,General Fund,355.39,Teletrac Navman US ltd.,Day,TELETRAC NAVMAN US LTD.,925cb71d-db32-4c9b-9767-20b2ba24c07a
204,194,2020/07/07 00:00:00+00,Public Works,Water Baltimore County Operations and Maintenance Westside,Professional Services,Professional Services,Water Utility Fund,381.23,Teletrac Navman US ltd.,Day,TELETRAC NAVMAN US LTD.,b70e422f-7200-4645-b362-b898b10e7243
205,195,2020/07/07 00:00:00+00,Public Works,Wastewater Laboratory Services,Repairs and Maintenance,Equipment Maintenance,WasteWater Utility Fund,390,EMD Millipore Corporation,Day,EMD MILLIPORE CORPORATION,9cbda8a5-9d94-4f5c-8816-08763edada55
206,196,2020/07/07 00:00:00+00,Public Works,Landfill Operation,Professional Services,Professional Services,General Fund,433.21,Teletrac Navman US ltd.,Day,TELETRAC NAVMAN US LTD.,031db6b3-ae5d-4324-afd0-c6460d84af47
207,197,2020/07/07 00:00:00+00,Public Works,Water Baltimore City Operations and Maintenance Westside,Professional Services,Professional Services,Water Utility Fund,450.54,Teletrac Navman US ltd.,Day,TELETRAC NAVMAN US LTD.,5086d8f6-a2bb-4a98-9368-fe174c3c4cdb
208,198,2020/07/07 00:00:00+00,Public Works,Wastewater Laboratory Services,Repairs and Maintenance,Equipment Maintenance,WasteWater Utility Fund,455.16,EMD Millipore Corporation,Day,EMD MILLIPORE CORPORATION,d593d481-a6cf-48c3-9a53-7b6f22d1b540
209,199,2020/07/07 00:00:00+00,Public Works,Mixed Refuse Collection,Employee Supplies,Clothing And Footwear,General Fund,505.82,Cintas Corporation No. 2,Day,CINTAS CORPORATION NO. 2,a556ebce-208d-452a-baec-e9c72718e3e1
210,200,2020/07/07 00:00:00+00,Public Works,Cleaning of Business Districts,Professional Services,Professional Services,General Fund,545.05,Teletrac Navman US ltd.,Day,TELETRAC NAVMAN US LTD.,cd7e0513-7808-4f94-addf-04ab5aa74b22
211,351,2020/07/07 00:00:00+00,Otherwise Classified,Fixed Costs Not Otherwise Classified,Professional Services,Professional Services,Water Utility Fund,0.72,Teletrac Navman US ltd.,Day,TELETRAC NAVMAN US LTD.,7a7f2eae-40df-40df-a184-ebd5386f4118
212,311,2020/07/07 00:00:00+00,Transportation,Traffic Electronic Maintenance,Professional Services,Professional Services,General Fund,15.97,Chesapeake Uniform,Day,CHESAPEAKE UNIFORM,879ed688-cbb8-40ba-999f-58339ec5b044
213,352,2020/07/07 00:00:00+00,Otherwise Classified,Fixed Costs Not Otherwise Classified,Professional Services,Professional Services,Water Utility Fund,0.72,Teletrac Navman US ltd.,Day,TELETRAC NAVMAN US LTD.,696ab987-886c-4664-b9a0-be99efed1b1a
214,312,2020/07/07 00:00:00+00,Transportation,Traffic Electronic Maintenance,Professional Services,Professional Services,General Fund,15.97,Chesapeake Uniform,Day,CHESAPEAKE UNIFORM,7848b265-1ac3-410d-9e97-849a1952be35
215,313,2020/07/07 00:00:00+00,Transportation,Traffic Electronic Maintenance,Professional Services,Professional Services,General Fund,15.97,Chesapeake Uniform,Day,CHESAPEAKE UNIFORM,cd24e911-1a4b-459c-9b1f-fbf4d5be93f7
216,314,2020/07/07 00:00:00+00,Transportation,Traffic Electronic Maintenance,Professional Services,Professional Services,General Fund,15.97,Chesapeake Uniform,Day,CHESAPEAKE UNIFORM,a4992f75-3157-4725-ad5f-df14ba206f12
217,315,2020/07/07 00:00:00+00,Transportation,Traffic Electronic Maintenance,Professional Services,Professional Services,General Fund,15.97,Chesapeake Uniform,Day,CHESAPEAKE UNIFORM,cf6bdf70-26cf-4ca1-bd53-d4b99aecf9b6
218,316,2020/07/07 00:00:00+00,Transportation,Traffic Electronic Maintenance,Professional Services,Professional Services,General Fund,15.97,Chesapeake Uniform,Day,CHESAPEAKE UNIFORM,8c6811c2-7977-4f1a-935a-80b603c6e5e4
219,317,2020/07/07 00:00:00+00,Transportation,Traffic Electronic Maintenance,Professional Services,Professional Services,General Fund,15.97,Chesapeake Uniform,Day,CHESAPEAKE UNIFORM,075dc53e-9387-46dc-a42e-3f89146f994e
220,318,2020/07/07 00:00:00+00,Transportation,Traffic Electronic Maintenance,Professional Services,Professional Services,General Fund,15.97,Chesapeake Uniform,Day,CHESAPEAKE UNIFORM,32870855-bb96-40e7-8cc2-401220765337
221,319,2020/07/07 00:00:00+00,Transportation,Traffic Electronic Maintenance,Professional Services,Professional Services,General Fund,15.97,Chesapeake Uniform,Day,CHESAPEAKE UNIFORM,1dce988c-8db3-4d48-8447-c0cdf171b7e4
222,320,2020/07/07 00:00:00+00,Transportation,Traffic Electronic Maintenance,Professional Services,Professional Services,General Fund,15.97,Chesapeake Uniform,Day,CHESAPEAKE UNIFORM,485ed9cf-c96c-4c98-97a9-c178367eb9eb
223,321,2020/07/07 00:00:00+00,Transportation,Traffic Electronic Maintenance,Professional Services,Professional Services,General Fund,15.97,Chesapeake Uniform,Day,CHESAPEAKE UNIFORM,76e3b93a-39d4-4a5f-a3a8-89264028fc67
224,322,2020/07/07 00:00:00+00,Transportation,Traffic Electronic Maintenance,Professional Services,Professional Services,General Fund,22.65,Chesapeake Uniform,Day,CHESAPEAKE UNIFORM,ac41a10a-f19a-4e8b-a411-1354272c6517
225,323,2020/07/07 00:00:00+00,Transportation,Traffic Electronic Maintenance,Professional Services,Professional Services,General Fund,22.65,Chesapeake Uniform,Day,CHESAPEAKE UNIFORM,e20c1be9-2655-46bd-9f05-38bb1bb8c0e8
226,324,2020/07/07 00:00:00+00,Transportation,Traffic Electronic Maintenance,Professional Services,Professional Services,General Fund,22.65,Chesapeake Uniform,Day,CHESAPEAKE UNIFORM,3f815a80-1dc3-4197-bb58-ad1376234e61
227,325,2020/07/07 00:00:00+00,Transportation,Traffic Electronic Maintenance,Professional Services,Professional Services,General Fund,22.65,Chesapeake Uniform,Day,CHESAPEAKE UNIFORM,3d3a9cf0-7d76-48d5-982a-52c12ad11ba0
228,326,2020/07/07 00:00:00+00,Transportation,Traffic Electronic Maintenance,Professional Services,Professional Services,General Fund,22.65,Chesapeake Uniform,Day,CHESAPEAKE UNIFORM,47c3e932-64a2-4400-93ec-3d6c82371513
229,327,2020/07/07 00:00:00+00,Transportation,Traffic Electronic Maintenance,Professional Services,Professional Services,General Fund,22.65,Chesapeake Uniform,Day,CHESAPEAKE UNIFORM,ba1b4ae3-772a-413d-a7f9-8602c4e43972
230,328,2020/07/07 00:00:00+00,Transportation,Traffic Electronic Maintenance,Professional Services,Professional Services,General Fund,22.65,Chesapeake Uniform,Day,CHESAPEAKE UNIFORM,6faa0709-f2d3-4bf6-bd68-a7f1cb7d5efd
231,329,2020/07/07 00:00:00+00,Transportation,Traffic Electronic Maintenance,Professional Services,Professional Services,General Fund,22.65,Chesapeake Uniform,Day,CHESAPEAKE UNIFORM,f9a09542-d7de-4ab1-96d5-b9f18a9accaf
232,330,2020/07/07 00:00:00+00,Transportation,Traffic Electronic Maintenance,Professional Services,Professional Services,General Fund,22.65,Chesapeake Uniform,Day,CHESAPEAKE UNIFORM,df3c411c-cfdd-4a84-9b14-bee1b37cfb52
233,331,2020/07/07 00:00:00+00,Transportation,Bridge Maintenance,Cleaning and Maintenance Supplies,General Operating and Maintenance Supplies,General Fund,282.65,PAPCO Inc.,Day,PAPCO INC.,390b3a81-3c3e-4f98-8936-8d47e8134dca
234,332,2020/07/07 00:00:00+00,Transportation,Traffic Signal Engineering,Professional Services,Professional Services,General Fund,1499,Rhinehart Railroad Construction Inc.,Day,RHINEHART RAILROAD CONSTRUCTION INC.,22101c85-3d45-4790-9c47-f587ed1cf7bc
235,333,2020/07/07 00:00:00+00,Transportation,DOT Impounding and Disposal Coordination,Professional Services,Professional Services,General Fund,12376.37,Abacus Corporation,Day,ABACUS CORPORATION,33e2151a-fa2e-4c97-8dac-2647b10198f6
236,334,2020/07/07 00:00:00+00,Transportation,Traffic Cameras,Professional Services,Payments to Sub-Contractors,General Fund,483100,American Traffic Solutions Inc.,Day,AMERICAN TRAFFIC SOLUTIONS INC.,baeaa1e0-81ce-43c7-9d51-a5f451d9dcc9
237,335,2020/07/07 00:00:00+00,Otherwise Classified,Fixed Costs Not Otherwise Classified,Professional Services,Professional Services,Water Utility Fund,0.17,Teletrac Navman US ltd.,Day,TELETRAC NAVMAN US LTD.,284ef115-ac94-4eae-a9e4-4442cc08ea14
238,336,2020/07/07 00:00:00+00,Otherwise Classified,Fixed Costs Not Otherwise Classified,Professional Services,Professional Services,WasteWater Utility Fund,0.17,Teletrac Navman US ltd.,Day,TELETRAC NAVMAN US LTD.,2d730eb2-78a6-4d76-b03f-90a12e9a2ad7
239,337,2020/07/07 00:00:00+00,Otherwise Classified,Fixed Costs Not Otherwise Classified,Professional Services,Professional Services,Water Utility Fund,0.18,Teletrac Navman US ltd.,Day,TELETRAC NAVMAN US LTD.,421cb51f-6d82-4a6e-b9af-fb00db257b6b
240,338,2020/07/07 00:00:00+00,Otherwise Classified,Fixed Costs Not Otherwise Classified,Professional Services,Professional Services,Water Utility Fund,0.18,Teletrac Navman US ltd.,Day,TELETRAC NAVMAN US LTD.,6aa65674-d835-436d-bfc0-27f9f72079b7
241,339,2020/07/07 00:00:00+00,Otherwise Classified,Fixed Costs Not Otherwise Classified,Professional Services,Professional Services,Water Utility Fund,0.18,Teletrac Navman US ltd.,Day,TELETRAC NAVMAN US LTD.,a8dd2198-b34d-4b99-83b2-67321d971e5e
242,340,2020/07/07 00:00:00+00,Otherwise Classified,Fixed Costs Not Otherwise Classified,Professional Services,Professional Services,Water Utility Fund,0.18,Teletrac Navman US ltd.,Day,TELETRAC NAVMAN US LTD.,e323659c-35d7-412e-9d7b-283cd2c31f11
243,341,2020/07/07 00:00:00+00,Otherwise Classified,Fixed Costs Not Otherwise Classified,Professional Services,Professional Services,Water Utility Fund,0.35,Teletrac Navman US ltd.,Day,TELETRAC NAVMAN US LTD.,ad74a98e-1638-4cc2-bade-40c043712a31
244,342,2020/07/07 00:00:00+00,Otherwise Classified,Fixed Costs Not Otherwise Classified,Professional Services,Professional Services,Water Utility Fund,0.35,Teletrac Navman US ltd.,Day,TELETRAC NAVMAN US LTD.,8b4e41a4-1f0d-4e59-ab66-c81c93ff766b
245,343,2020/07/07 00:00:00+00,Otherwise Classified,Fixed Costs Not Otherwise Classified,Professional Services,Professional Services,Water Utility Fund,0.35,Teletrac Navman US ltd.,Day,TELETRAC NAVMAN US LTD.,7a8a8540-c084-42b8-bd06-0a94f556dfa2
246,344,2020/07/07 00:00:00+00,Otherwise Classified,Fixed Costs Not Otherwise Classified,Professional Services,Professional Services,Water Utility Fund,0.35,Teletrac Navman US ltd.,Day,TELETRAC NAVMAN US LTD.,28756da1-1492-43d6-be80-a2b1ccbfbf80
247,345,2020/07/07 00:00:00+00,Otherwise Classified,Fixed Costs Not Otherwise Classified,Professional Services,Professional Services,WasteWater Utility Fund,0.35,Teletrac Navman US ltd.,Day,TELETRAC NAVMAN US LTD.,79bcbbcd-7ca8-4e3c-8bf2-257116ff3003
248,346,2020/07/07 00:00:00+00,Otherwise Classified,Fixed Costs Not Otherwise Classified,Professional Services,Professional Services,Stormwater Utility Fund,0.53,Teletrac Navman US ltd.,Day,TELETRAC NAVMAN US LTD.,6f20bafd-6f15-47b6-bfb2-1f501d802db5
249,347,2020/07/07 00:00:00+00,Otherwise Classified,Fixed Costs Not Otherwise Classified,Professional Services,Professional Services,Water Utility Fund,0.7,Teletrac Navman US ltd.,Day,TELETRAC NAVMAN US LTD.,2572c553-7838-4b66-b6bc-f232eb99d6d4
250,348,2020/07/07 00:00:00+00,Otherwise Classified,Fixed Costs Not Otherwise Classified,Professional Services,Professional Services,Water Utility Fund,0.72,Teletrac Navman US ltd.,Day,TELETRAC NAVMAN US LTD.,c425d67a-01c8-497b-b82a-53cddcef7c2d
251,349,2020/07/07 00:00:00+00,Otherwise Classified,Fixed Costs Not Otherwise Classified,Professional Services,Professional Services,Water Utility Fund,0.72,Teletrac Navman US ltd.,Day,TELETRAC NAVMAN US LTD.,985cf7c0-c028-4070-b211-9c0a16a18342
252,350,2020/07/07 00:00:00+00,Otherwise Classified,Fixed Costs Not Otherwise Classified,Professional Services,Professional Services,WasteWater Utility Fund,0.72,Teletrac Navman US ltd.,Day,TELETRAC NAVMAN US LTD.,9fb3213d-e1d8-489b-8bcf-d878fea06d8b
253,353,2020/07/07 00:00:00+00,Otherwise Classified,Fixed Costs Not Otherwise Classified,Professional Services,Professional Services,Water Utility Fund,0.72,Teletrac Navman US ltd.,Day,TELETRAC NAVMAN US LTD.,4195eb66-7aef-45fd-8880-d71ec03e9fdc
254,354,2020/07/07 00:00:00+00,Otherwise Classified,Fixed Costs Not Otherwise Classified,Professional Services,Professional Services,Water Utility Fund,1.43,Teletrac Navman US ltd.,Day,TELETRAC NAVMAN US LTD.,228f9c71-6b16-40d6-aba8-adadb552077c
255,355,2020/07/07 00:00:00+00,Otherwise Classified,Fixed Costs Not Otherwise Classified,Professional Services,Professional Services,WasteWater Utility Fund,1.43,Teletrac Navman US ltd.,Day,TELETRAC NAVMAN US LTD.,8a6c5211-127f-49bc-97fc-29731c77bacc
256,356,2020/07/07 00:00:00+00,Otherwise Classified,Fixed Costs Not Otherwise Classified,Professional Services,Professional Services,Water Utility Fund,1.44,Teletrac Navman US ltd.,Day,TELETRAC NAVMAN US LTD.,d8af4980-3ad7-4ed6-a1da-1599072a5e4a
257,357,2020/07/07 00:00:00+00,Otherwise Classified,Fixed Costs Not Otherwise Classified,Professional Services,Professional Services,Water Utility Fund,1.44,Teletrac Navman US ltd.,Day,TELETRAC NAVMAN US LTD.,00b3ee52-4e32-4875-a518-8efeeb39694c
258,358,2020/07/07 00:00:00+00,Otherwise Classified,Fixed Costs Not Otherwise Classified,Professional Services,Professional Services,Water Utility Fund,1.44,Teletrac Navman US ltd.,Day,TELETRAC NAVMAN US LTD.,f8629da3-e98a-4cbd-8499-cada28d69b0c
259,359,2020/07/07 00:00:00+00,Otherwise Classified,Fixed Costs Not Otherwise Classified,Professional Services,Professional Services,General Fund,1.58,Teletrac Navman US ltd.,Day,TELETRAC NAVMAN US LTD.,bb8d1820-af90-4ffc-9240-0f81665424c3
260,360,2020/07/07 00:00:00+00,Otherwise Classified,Fixed Costs Not Otherwise Classified,Professional Services,Professional Services,Water Utility Fund,1.59,Teletrac Navman US ltd.,Day,TELETRAC NAVMAN US LTD.,d9f337df-061b-4f70-a473-1cb0521de1c6
261,361,2020/07/07 00:00:00+00,Otherwise Classified,Fixed Costs Not Otherwise Classified,Professional Services,Professional Services,Water Utility Fund,1.59,Teletrac Navman US ltd.,Day,TELETRAC NAVMAN US LTD.,9b308b54-c4de-4a55-865e-dc93a4f93efb
262,362,2020/07/07 00:00:00+00,Otherwise Classified,Fixed Costs Not Otherwise Classified,Professional Services,Professional Services,WasteWater Utility Fund,1.59,Teletrac Navman US ltd.,Day,TELETRAC NAVMAN US LTD.,3e9e23ad-1040-4d73-8f98-5915c6692f35
263,363,2020/07/07 00:00:00+00,Otherwise Classified,Fixed Costs Not Otherwise Classified,Professional Services,Professional Services,Water Utility Fund,1.59,Teletrac Navman US ltd.,Day,TELETRAC NAVMAN US LTD.,727a08de-d643-429c-8d38-281ee2976bdf
264,364,2020/07/07 00:00:00+00,Otherwise Classified,Fixed Costs Not Otherwise Classified,Professional Services,Professional Services,Water Utility Fund,1.59,Teletrac Navman US ltd.,Day,TELETRAC NAVMAN US LTD.,9c873616-28d0-41f7-956e-33ac76b6184f
265,365,2020/07/07 00:00:00+00,Otherwise Classified,Fixed Costs Not Otherwise Classified,Professional Services,Professional Services,Water Utility Fund,1.59,Teletrac Navman US ltd.,Day,TELETRAC NAVMAN US LTD.,a5464175-32ec-45b5-a5e9-08376feb71d9
266,366,2020/07/07 00:00:00+00,Otherwise Classified,Fixed Costs Not Otherwise Classified,Professional Services,Professional Services,Water Utility Fund,1.75,Teletrac Navman US ltd.,Day,TELETRAC NAVMAN US LTD.,f64d6282-38e6-4ab0-9370-f8ad9b35a5bb
267,367,2020/07/07 00:00:00+00,Otherwise Classified,Fixed Costs Not Otherwise Classified,Professional Services,Professional Services,Water Utility Fund,1.75,Teletrac Navman US ltd.,Day,TELETRAC NAVMAN US LTD.,903826e9-16ce-4b6a-b6ca-6fe84ac38c34
268,368,2020/07/07 00:00:00+00,Otherwise Classified,Fixed Costs Not Otherwise Classified,Professional Services,Professional Services,Stormwater Utility Fund,2.15,Teletrac Navman US ltd.,Day,TELETRAC NAVMAN US LTD.,09d9164e-2d9a-484f-9688-835f8484a90a
269,369,2020/07/07 00:00:00+00,Otherwise Classified,Fixed Costs Not Otherwise Classified,Professional Services,Professional Services,Water Utility Fund,2.8,Teletrac Navman US ltd.,Day,TELETRAC NAVMAN US LTD.,6fc82d86-8777-40f1-9d0c-d31ec736a064
270,370,2020/07/07 00:00:00+00,Otherwise Classified,Fixed Costs Not Otherwise Classified,Professional Services,Professional Services,Water Utility Fund,2.87,Teletrac Navman US ltd.,Day,TELETRAC NAVMAN US LTD.,32f4413e-261c-48b5-bb6a-25102bd37b1d
271,371,2020/07/07 00:00:00+00,Otherwise Classified,Fixed Costs Not Otherwise Classified,Professional Services,Professional Services,Water Utility Fund,3.19,Teletrac Navman US ltd.,Day,TELETRAC NAVMAN US LTD.,99961952-8495-4450-90dc-a346e30d7fb4
272,372,2020/07/07 00:00:00+00,Otherwise Classified,Fixed Costs Not Otherwise Classified,Professional Services,Professional Services,Water Utility Fund,3.19,Teletrac Navman US ltd.,Day,TELETRAC NAVMAN US LTD.,f596c5c2-bd9b-4ba4-b908-34a3e8037bf5
273,373,2020/07/07 00:00:00+00,Otherwise Classified,Fixed Costs Not Otherwise Classified,Professional Services,Professional Services,Water Utility Fund,3.19,Teletrac Navman US ltd.,Day,TELETRAC NAVMAN US LTD.,eb13e16a-ac44-485f-ac12-4636dd54a7cd
274,374,2020/07/07 00:00:00+00,Otherwise Classified,Fixed Costs Not Otherwise Classified,Professional Services,Professional Services,Water Utility Fund,3.19,Teletrac Navman US ltd.,Day,TELETRAC NAVMAN US LTD.,0282f996-5bdc-4eb5-8462-11ee298ff341
275,375,2020/07/07 00:00:00+00,Otherwise Classified,Fixed Costs Not Otherwise Classified,Professional Services,Professional Services,WasteWater Utility Fund,3.19,Teletrac Navman US ltd.,Day,TELETRAC NAVMAN US LTD.,b38611b3-cfc1-41fd-baf2-59a485d251b2
276,376,2020/07/07 00:00:00+00,Otherwise Classified,Fixed Costs Not Otherwise Classified,Professional Services,Professional Services,Stormwater Utility Fund,4.77,Teletrac Navman US ltd.,Day,TELETRAC NAVMAN US LTD.,fec2f3ed-bd66-4a34-9b8f-9ce3ca177909
277,377,2020/07/07 00:00:00+00,Otherwise Classified,Fixed Costs Not Otherwise Classified,Professional Services,Professional Services,Water Utility Fund,6.36,Teletrac Navman US ltd.,Day,TELETRAC NAVMAN US LTD.,d5c6c9ce-e9fb-4a24-b72d-602d42faa08c
278,378,2020/07/07 00:00:00+00,Otherwise Classified,Fixed Costs Not Otherwise Classified,Professional Services,Professional Services,General Fund,6.45,Teletrac Navman US ltd.,Day,TELETRAC NAVMAN US LTD.,750af84a-14ec-4098-88e2-9796a78b5ccf
279,379,2020/07/07 00:00:00+00,Otherwise Classified,Fixed Costs Not Otherwise Classified,Professional Services,Professional Services,Water Utility Fund,7.17,Teletrac Navman US ltd.,Day,TELETRAC NAVMAN US LTD.,faf52da2-92cb-47a1-8ef9-8a6314cb57cf
280,380,2020/07/07 00:00:00+00,Otherwise Classified,Fixed Costs Not Otherwise Classified,Professional Services,Professional Services,Water Utility Fund,7.17,Teletrac Navman US ltd.,Day,TELETRAC NAVMAN US LTD.,b27410e7-7860-4a35-8823-76dbdbab39c9
281,381,2020/07/07 00:00:00+00,Otherwise Classified,Fixed Costs Not Otherwise Classified,Cleaning and Maintenance Supplies,General Operating and Maintenance Supplies,WasteWater Utility Fund,10,Whel-Tech Inc,Day,WHEL-TECH INC,b34d77d2-f842-406c-9803-ba4da4fdd8f1
282,382,2020/07/07 00:00:00+00,Otherwise Classified,Fixed Costs Not Otherwise Classified,Professional Services,Professional Services,Water Utility Fund,11.47,Teletrac Navman US ltd.,Day,TELETRAC NAVMAN US LTD.,067baa49-a109-4c91-a5d2-304370efc111
283,383,2020/07/07 00:00:00+00,Otherwise Classified,Fixed Costs Not Otherwise Classified,Professional Services,Professional Services,General Fund,14.31,Teletrac Navman US ltd.,Day,TELETRAC NAVMAN US LTD.,545686ea-1059-418a-867d-0b26faa9dab4
284,384,2020/07/07 00:00:00+00,Otherwise Classified,Fixed Costs Not Otherwise Classified,Professional Services,Professional Services,Water Utility Fund,15.9,Teletrac Navman US ltd.,Day,TELETRAC NAVMAN US LTD.,d47c301d-c6b9-4418-81ea-12efbedc5322
285,385,2020/07/07 00:00:00+00,Otherwise Classified,Fixed Costs Not Otherwise Classified,Professional Services,Professional Services,Water Utility Fund,15.9,Teletrac Navman US ltd.,Day,TELETRAC NAVMAN US LTD.,6455b36a-4552-4ba4-bbc6-f8206e972aac
286,386,2020/07/07 00:00:00+00,Otherwise Classified,Fixed Costs Not Otherwise Classified,Professional Services,Professional Services,Water Utility Fund,17.32,Teletrac Navman US ltd.,Day,TELETRAC NAVMAN US LTD.,d2793562-2c8c-4189-b258-003090ac7209
287,387,2020/07/07 00:00:00+00,Otherwise Classified,Fixed Costs Not Otherwise Classified,Professional Services,Professional Services,Water Utility Fund,17.32,Teletrac Navman US ltd.,Day,TELETRAC NAVMAN US LTD.,c6ab6f33-6f8d-498d-99d4-c05e7746d470
288,388,2020/07/07 00:00:00+00,Otherwise Classified,Fixed Costs Not Otherwise Classified,Professional Services,Professional Services,Water Utility Fund,17.32,Teletrac Navman US ltd.,Day,TELETRAC NAVMAN US LTD.,edcc33a1-1629-4500-b870-b2ce0b4c6fe2
289,389,2020/07/07 00:00:00+00,Otherwise Classified,Fixed Costs Not Otherwise Classified,Professional Services,Professional Services,Water Utility Fund,17.32,Teletrac Navman US ltd.,Day,TELETRAC NAVMAN US LTD.,b5114a8b-7f30-4a39-9d53-81535f9dfe9f
290,390,2020/07/07 00:00:00+00,Otherwise Classified,Fixed Costs Not Otherwise Classified,Professional Services,Professional Services,Water Utility Fund,17.33,Teletrac Navman US ltd.,Day,TELETRAC NAVMAN US LTD.,f8c45660-5e29-43d4-9875-f15c6d6dd35b
291,391,2020/07/07 00:00:00+00,Otherwise Classified,Fixed Costs Not Otherwise Classified,Professional Services,Professional Services,WasteWater Utility Fund,17.33,Teletrac Navman US ltd.,Day,TELETRAC NAVMAN US LTD.,8cc80dcd-ef22-4753-9c59-5db4f87d5a2e
292,392,2020/07/07 00:00:00+00,Otherwise Classified,Fixed Costs Not Otherwise Classified,Professional Services,Professional Services,WasteWater Utility Fund,22.07,Teletrac Navman US ltd.,Day,TELETRAC NAVMAN US LTD.,e1b729d1-4439-431a-ac3b-cddc3ac7c960
293,393,2020/07/07 00:00:00+00,Otherwise Classified,Fixed Costs Not Otherwise Classified,Professional Services,Professional Services,Water Utility Fund,25.44,Teletrac Navman US ltd.,Day,TELETRAC NAVMAN US LTD.,59fde803-e2ba-4312-831c-160681a2d614
294,394,2020/07/07 00:00:00+00,Otherwise Classified,Fixed Costs Not Otherwise Classified,Cleaning and Maintenance Supplies,General Operating and Maintenance Supplies,WasteWater Utility Fund,30,Whel-Tech Inc,Day,WHEL-TECH INC,a161226f-9917-41ce-8d82-ee92f349d0fc
295,395,2020/07/07 00:00:00+00,Otherwise Classified,Fixed Costs Not Otherwise Classified,Professional Services,Professional Services,Water Utility Fund,34.64,Teletrac Navman US ltd.,Day,TELETRAC NAVMAN US LTD.,d8bb62f6-1aed-4fdb-919d-7a36b31b8bc5
296,396,2020/07/07 00:00:00+00,Otherwise Classified,Fixed Costs Not Otherwise Classified,Professional Services,Professional Services,Water Utility Fund,34.64,Teletrac Navman US ltd.,Day,TELETRAC NAVMAN US LTD.,90e8e76b-19ff-4b4d-844e-10b79c9ed54c
297,397,2020/07/07 00:00:00+00,Otherwise Classified,Fixed Costs Not Otherwise Classified,Professional Services,Professional Services,Water Utility Fund,34.64,Teletrac Navman US ltd.,Day,TELETRAC NAVMAN US LTD.,33727f85-94cf-4f64-8e44-310834530284
298,398,2020/07/07 00:00:00+00,Otherwise Classified,Fixed Costs Not Otherwise Classified,Professional Services,Professional Services,Water Utility Fund,34.65,Teletrac Navman US ltd.,Day,TELETRAC NAVMAN US LTD.,0ca49d64-b7c2-4103-b1cd-df7909ed735e
299,399,2020/07/07 00:00:00+00,Otherwise Classified,Fixed Costs Not Otherwise Classified,Professional Services,Professional Services,WasteWater Utility Fund,34.65,Teletrac Navman US ltd.,Day,TELETRAC NAVMAN US LTD.,a71f3def-c514-4e25-8b6c-2c0b6c324b27
300,400,2020/07/07 00:00:00+00,Otherwise Classified,Fixed Costs Not Otherwise Classified,Major Equipment - Field,Major Pieces of Equipment,Federal Grants Fund,35,Northrop Grumman Systems Corporation,Day,NORTHROP GRUMMAN SYSTEMS CORPORATION,d4745a51-c046-4eea-91d3-799a37d38455
301,1,2020/07/06 00:00:00+00,Finance,Payroll (BAPS),Minor Equipment - Office,Minor Computer Software,General Fund,45743.95,ADP,Day,ADP,dcfede37-c705-4530-9b0d-1192d3a46ffa
302,2,2020/07/06 00:00:00+00,Finance,Payroll (BAPS),Minor Equipment - Office,Minor Computer Software,General Fund,98503.5,ADP,Day,ADP,8ee19c4d-55bb-480a-abfb-7d34ee44f1ef
303,3,2020/07/06 00:00:00+00,Finance,Payroll (BAPS),Minor Equipment - Office,Minor Computer Software,General Fund,148835.02,ADP,Day,ADP,56d2ca4b-43fd-42a9-96fc-55391ece9512
304,4,2020/07/07 00:00:00+00,Courts - Circuit Court,Circuit Court Administration,Professional Services,Professional Services,General Fund,18,BALTIMORE LOCK & HARDWARE INC.,Day,BALTIMORE LOCK & HARDWARE INC.,2742f6a1-67ea-47a1-9675-1e19d96b4677
305,5,2020/07/07 00:00:00+00,Fire,Emergency Medical Services (EMS) Administration,Medical Supplies,Medical and Surgical Supplies,General Fund,24.9,Airgas USA LLC,Day,AIRGAS USA LLC,ba1087e3-7b53-45a0-b678-aa8c07b20baa
306,6,2020/07/07 00:00:00+00,Fire,Emergency Medical Services (EMS) Administration,Medical Supplies,Medical and Surgical Supplies,General Fund,49.77,Airgas USA LLC,Day,AIRGAS USA LLC,a3bda8f2-7939-4385-86da-e7d4897c1a27
307,7,2020/07/07 00:00:00+00,General Services,Facilities Building Maintenance (DGS),Repairs and Maintenance,Maintanance and Repair of Real Property,Building Maintenance Fund,8.64,all about doors,Day,ALL ABOUT DOORS,eaf02595-ad80-490b-9dee-c4ab70913d4f
308,8,2020/07/07 00:00:00+00,General Services,Fleet Equipment Repair (DGS),Vehicles and Equipment,Vehicle Maintenance,Mobile Equipment Fund,23.3,R&E body and paint inc/ DBA MAACO,Day,R&E BODY AND PAINT INC/ DBA MAACO,9f211474-6745-4505-8c44-044cd5dbdc76
309,9,2020/07/07 00:00:00+00,General Services,Facilities Building Maintenance (DGS),Repairs and Maintenance,Maintanance and Repair of Real Property,Building Maintenance Fund,40,Reliable-Cain Heating & Cooling LLC,Day,RELIABLE-CAIN HEATING & COOLING LLC,3e68c948-588d-430b-a5e0-f9135158e793
310,10,2020/07/07 00:00:00+00,General Services,Fleet Management Administration (DGS),Repairs and Maintenance,Maintanance and Repair of Real Property,Mobile Equipment Fund,55.9,all about doors,Day,ALL ABOUT DOORS,e3b9b09f-55e7-4164-8186-6e730b7e5169
311,11,2020/07/07 00:00:00+00,General Services,Facilities Building Maintenance (DGS),Repairs and Maintenance,Maintanance and Repair of Real Property,Building Maintenance Fund,68.29,Reliable-Cain Heating & Cooling LLC,Day,RELIABLE-CAIN HEATING & COOLING LLC,bf649848-031a-4558-8373-3416b24ae571
312,12,2020/07/07 00:00:00+00,General Services,Fleet Equipment Repair (DGS),Vehicles and Equipment,Vehicle Maintenance,Mobile Equipment Fund,72.68,AL PACKER'S WHITE MARSH FORD,Day,AL PACKER'S WHITE MARSH FORD,50d91d79-dbc4-4a5d-b1be-eee952108bce
313,13,2020/07/07 00:00:00+00,General Services,Fleet Management Administration (DGS),Repairs and Maintenance,Maintanance and Repair of Real Property,Mobile Equipment Fund,105,all about doors,Day,ALL ABOUT DOORS,986b7289-3bbe-42e9-bdbc-a9e6bc1cc76f
314,14,2020/07/07 00:00:00+00,General Services,Facilities Building Maintenance (DGS),Repairs and Maintenance,Maintanance and Repair of Real Property,Building Maintenance Fund,140,all about doors,Day,ALL ABOUT DOORS,013df03f-faa3-45bb-8453-d7fd73c1de5e
315,15,2020/07/07 00:00:00+00,General Services,Fleet Equipment Repair (DGS),Vehicles and Equipment,Vehicle Maintenance,Mobile Equipment Fund,196.09,AL PACKER'S WHITE MARSH FORD,Day,AL PACKER'S WHITE MARSH FORD,0b94e35b-3f92-47b6-9ed4-5fc24d8c8486
316,16,2020/07/07 00:00:00+00,General Services,Fleet Management Administration (DGS),Repairs and Maintenance,Maintanance and Repair of Real Property,Mobile Equipment Fund,270,all about doors,Day,ALL ABOUT DOORS,8b7d0361-4128-45ea-acd3-483d3b323598
317,17,2020/07/07 00:00:00+00,General Services,Facilities Building Maintenance (DGS),Repairs and Maintenance,Maintanance and Repair of Real Property,Building Maintenance Fund,360,all about doors,Day,ALL ABOUT DOORS,3642593a-69eb-4b72-8332-5a9bf4924e19
318,18,2020/07/07 00:00:00+00,General Services,Facilities Building Maintenance (DGS),Fuel,Heating Fuels,Building Maintenance Fund,384.39,PAPCO Inc.,Day,PAPCO INC.,b0b94b91-df47-41ee-9dda-1cbd98a78efe
319,19,2020/07/07 00:00:00+00,General Services,Fleet Equipment Repair (DGS),Vehicles and Equipment,Vehicle Maintenance,Mobile Equipment Fund,395,AL PACKER'S WHITE MARSH FORD,Day,AL PACKER'S WHITE MARSH FORD,bcdf1767-26c2-4f2a-abe9-b14e5d0f6c80
320,20,2020/07/07 00:00:00+00,General Services,Fleet Equipment Repair (DGS),Vehicles and Equipment,Vehicle Maintenance,Mobile Equipment Fund,614.38,Columbia Fleet Service,Day,COLUMBIA FLEET SERVICE,a474b023-b728-4b69-aa52-df9bb68a13b4
321,21,2020/07/07 00:00:00+00,General Services,Fleet Equipment Repair (DGS),Vehicles and Equipment,Vehicle Maintenance,Mobile Equipment Fund,655.35,Columbia Fleet Service,Day,COLUMBIA FLEET SERVICE,2c57f3f4-0762-4332-8319-86818edf270d
322,22,2020/07/07 00:00:00+00,General Services,Fleet Equipment Repair (DGS),Vehicles and Equipment,Vehicle Maintenance,Mobile Equipment Fund,679.58,Columbia Fleet Service,Day,COLUMBIA FLEET SERVICE,00919422-de58-4284-900f-061e08999901
323,23,2020/07/07 00:00:00+00,General Services,Fleet Equipment Repair (DGS),Vehicles and Equipment,Vehicle Maintenance,Mobile Equipment Fund,688.82,Columbia Fleet Service,Day,COLUMBIA FLEET SERVICE,14fdaff0-ad10-486c-ab73-366489c3cd8b
324,24,2020/07/07 00:00:00+00,General Services,Fleet Equipment Repair (DGS),Vehicles and Equipment,Vehicle Maintenance,Mobile Equipment Fund,698.54,Columbia Fleet Service,Day,COLUMBIA FLEET SERVICE,3080069e-7052-4ea6-b230-16ba59a7e075
325,25,2020/07/07 00:00:00+00,General Services,Fleet Equipment Repair (DGS),Vehicles and Equipment,Vehicle Maintenance,Mobile Equipment Fund,703.54,Columbia Fleet Service,Day,COLUMBIA FLEET SERVICE,a756f8c1-e3c3-4cd0-a517-92ab70d7e00f
326,26,2020/07/07 00:00:00+00,General Services,Fleet Equipment Repair (DGS),Vehicles and Equipment,Vehicle Maintenance,Mobile Equipment Fund,714,Columbia Fleet Service,Day,COLUMBIA FLEET SERVICE,fcf27a7d-88fc-4e30-a4f4-136f95508f14
327,27,2020/07/07 00:00:00+00,General Services,Fleet Equipment Repair (DGS),Vehicles and Equipment,Vehicle Maintenance,Mobile Equipment Fund,723.42,Columbia Fleet Service,Day,COLUMBIA FLEET SERVICE,e928a710-d4d9-4937-8419-47a26ca2d76f
328,28,2020/07/07 00:00:00+00,General Services,Fleet Equipment Repair (DGS),Vehicles and Equipment,Vehicle Maintenance,Mobile Equipment Fund,794.98,Atlantic Emergency Solutions Inc.,Day,ATLANTIC EMERGENCY SOLUTIONS INC.,e1a572b2-5d7d-41c3-b213-43a09f64b938
329,29,2020/07/07 00:00:00+00,General Services,Fleet Equipment Repair (DGS),Vehicles and Equipment,Vehicle Maintenance,Mobile Equipment Fund,863.58,Columbia Fleet Service,Day,COLUMBIA FLEET SERVICE,c305899e-0af6-4741-b77f-72541b6e2654
330,30,2020/07/07 00:00:00+00,General Services,Fleet Equipment Repair (DGS),Vehicles and Equipment,Vehicle Maintenance,Mobile Equipment Fund,1422.6,R&E body and paint inc/ DBA MAACO,Day,R&E BODY AND PAINT INC/ DBA MAACO,74c46847-e4c5-4016-a2a4-3c549189aede
331,31,2020/07/07 00:00:00+00,General Services,Fleet Equipment Repair (DGS),Vehicles and Equipment,Vehicle Maintenance,Mobile Equipment Fund,1730.1,AL PACKER'S WHITE MARSH FORD,Day,AL PACKER'S WHITE MARSH FORD,27331059-7f29-4e5a-bfc1-d06354b577f0
332,32,2020/07/07 00:00:00+00,General Services,Fleet Equipment Repair (DGS),Vehicles and Equipment,Vehicle Maintenance,Mobile Equipment Fund,2509,R&E body and paint inc/ DBA MAACO,Day,R&E BODY AND PAINT INC/ DBA MAACO,6095ff0d-aa92-494d-a8d1-0546568402db
333,33,2020/07/07 00:00:00+00,Health,Acute Communicable Diseases,Professional Services,Professional Services,General Fund,101.41,Language Line Services Inc.  DBA Language Line Solutions,Day,LANGUAGE LINE SERVICES INC.  DBA LANGUAGE LINE SOLUTIONS,1e1b13da-8c04-400d-825d-9265206f64b8
334,34,2020/07/07 00:00:00+00,Health,Senior Companion Program,Office Operations,Advertising,Federal Grants Fund,716,The Beacon Newspapers Inc.,Day,THE BEACON NEWSPAPERS INC.,5ce0d843-7f4c-4fcc-a317-27c7d9df813a
335,35,2020/07/07 00:00:00+00,Health,Senior Companion Program,Office Operations,Advertising,Federal Grants Fund,716,The Beacon Newspapers Inc.,Day,THE BEACON NEWSPAPERS INC.,cd6114c4-0e85-4a69-b4b1-b6c37cded94f
336,36,2020/07/07 00:00:00+00,Health,Field Health Services Medical Transport,Professional Services,Professional Services,State Grants Fund,2958,Rocky Mountain Holdings LLC,Day,ROCKY MOUNTAIN HOLDINGS LLC,5192e76c-a9e0-471c-91c3-507dbb83179d
337,37,2020/07/07 00:00:00+00,Enoch Pratt Free Library,Library Information Technology,Vehicles and Equipment,Rental of Outside Vehicles,General Fund,625,Acme Auto Leasing LLC,Day,ACME AUTO LEASING LLC,03ecb453-26e8-4b30-a8ad-a03b338d1675
338,38,2020/07/07 00:00:00+00,M-R Office of Information and Technology,BCIT ERP Project,Professional Services,Professional Services,General Fund,23763,Workday Inc.,Day,WORKDAY INC.,3faf6f24-5b6d-4246-8552-757e6fb59c8d
339,39,2020/07/07 00:00:00+00,M-R Cable and Communications,Media Production,Professional Services,Professional Services,General Fund,1000,Chesapeake Systems Inc.,Day,CHESAPEAKE SYSTEMS INC.,fa9c10f0-7c2d-4a9e-be76-50858484e220
340,40,2020/07/07 00:00:00+00,Public Works,Water Conservation Baltimore County,Professional Services,Professional Services,Water Utility Fund,0.17,Teletrac Navman US ltd.,Day,TELETRAC NAVMAN US LTD.,14b33491-9b23-4e14-a155-deb5a771796a
341,41,2020/07/07 00:00:00+00,Public Works,Water Chlorinator Stations,Professional Services,Professional Services,Water Utility Fund,0.17,Teletrac Navman US ltd.,Day,TELETRAC NAVMAN US LTD.,35c45df2-d997-47ae-b6d2-ac02d0d6b33a
342,42,2020/07/07 00:00:00+00,Public Works,Bulk Trash Collection,Professional Services,Professional Services,General Fund,0.17,Teletrac Navman US ltd.,Day,TELETRAC NAVMAN US LTD.,ab0887e9-c48a-47c1-a02b-c696d4c9cd9e
343,43,2020/07/07 00:00:00+00,Public Works,Patapsco Wastewater Treatment Plant Operations,Professional Services,Professional Services,WasteWater Utility Fund,0.17,Teletrac Navman US ltd.,Day,TELETRAC NAVMAN US LTD.,c4de2a72-d4f8-43bc-b6e3-06e76d51ec39
344,44,2020/07/07 00:00:00+00,Public Works,Water Quality Monitoring and Inspections,Professional Services,Professional Services,WasteWater Utility Fund,0.17,Teletrac Navman US ltd.,Day,TELETRAC NAVMAN US LTD.,570799b6-70d7-4a73-a353-9ba1608aa8b9
345,45,2020/07/07 00:00:00+00,Public Works,Water Chlorinator Stations,Professional Services,Professional Services,Water Utility Fund,0.17,Teletrac Navman US ltd.,Day,TELETRAC NAVMAN US LTD.,f0a2ff1d-e099-4973-ba76-56c48e150bd2
346,46,2020/07/07 00:00:00+00,Public Works,Water Chlorinator Stations,Professional Services,Professional Services,Water Utility Fund,0.17,Teletrac Navman US ltd.,Day,TELETRAC NAVMAN US LTD.,18da5184-7344-4b59-a748-8d2620668132
347,47,2020/07/07 00:00:00+00,Public Works,Public Works Communications and Community Affairs (DPW),Professional Services,Professional Services,General Fund,0.35,Teletrac Navman US ltd.,Day,TELETRAC NAVMAN US LTD.,94c6be7c-a1dc-48c3-86e6-f58d165bbc06
348,48,2020/07/07 00:00:00+00,Public Works,Public  Works Computer Services (DPW),Professional Services,Professional Services,General Fund,0.35,Teletrac Navman US ltd.,Day,TELETRAC NAVMAN US LTD.,8505c43e-5e03-4893-be68-782ff5da8269
349,49,2020/07/07 00:00:00+00,Public Works,Wastewater Utility Inspection,Professional Services,Professional Services,WasteWater Utility Fund,0.53,Teletrac Navman US ltd.,Day,TELETRAC NAVMAN US LTD.,8e7b99f9-e9c6-4106-b8b0-177bd84119ff
350,50,2020/07/07 00:00:00+00,Public Works,Water Engineering,Professional Services,Professional Services,Water Utility Fund,0.53,Teletrac Navman US ltd.,Day,TELETRAC NAVMAN US LTD.,ff338df9-84c0-4727-b77e-4e0ab503cdce
351,251,2020/07/07 00:00:00+00,Transportation,Traffic Management and Engineering,Professional Services,Professional Services,General Fund,6.08,Chesapeake Uniform,Day,CHESAPEAKE UNIFORM,926b5511-0611-4022-a4b4-0f7d04912549
352,252,2020/07/07 00:00:00+00,Transportation,Traffic Construction and Management of Signals,Professional Services,Professional Services,General Fund,6.08,Chesapeake Uniform,Day,CHESAPEAKE UNIFORM,e06862f8-90f9-4bdb-a984-f234c6271b83
353,253,2020/07/07 00:00:00+00,Transportation,Traffic Construction and Management of Signals,Professional Services,Professional Services,General Fund,6.08,Chesapeake Uniform,Day,CHESAPEAKE UNIFORM,e5c40ff7-0a2a-4566-b3a4-b4daeea998dd
354,254,2020/07/07 00:00:00+00,Transportation,Traffic Construction and Management of Signals,Professional Services,Professional Services,General Fund,6.08,Chesapeake Uniform,Day,CHESAPEAKE UNIFORM,24f442c5-03a1-461c-9327-85835f280461
355,255,2020/07/07 00:00:00+00,Transportation,Traffic Construction and Management of Signals,Professional Services,Professional Services,General Fund,6.08,Chesapeake Uniform,Day,CHESAPEAKE UNIFORM,f11a7b63-388d-4430-b12d-0d7c233faf98
356,256,2020/07/07 00:00:00+00,Transportation,Traffic Construction and Management of Signals,Professional Services,Professional Services,General Fund,6.08,Chesapeake Uniform,Day,CHESAPEAKE UNIFORM,7d597e67-08af-4f4e-b8a5-8771d3376314
357,257,2020/07/07 00:00:00+00,Transportation,Traffic Construction and Management of Signals,Professional Services,Professional Services,General Fund,6.08,Chesapeake Uniform,Day,CHESAPEAKE UNIFORM,5a4d4592-cc1e-43bc-b76b-8b8608011959
358,258,2020/07/07 00:00:00+00,Transportation,Traffic Construction and Management of Signals,Professional Services,Professional Services,General Fund,6.08,Chesapeake Uniform,Day,CHESAPEAKE UNIFORM,d5161480-12d2-4087-abe9-90fd66ef5f7f
359,259,2020/07/07 00:00:00+00,Transportation,Traffic Construction and Management of Signals,Professional Services,Professional Services,General Fund,6.08,Chesapeake Uniform,Day,CHESAPEAKE UNIFORM,9270c2f5-b73f-4e0f-8010-3b56a6eff53e
360,260,2020/07/07 00:00:00+00,Transportation,Traffic Construction and Management of Signals,Professional Services,Professional Services,General Fund,6.08,Chesapeake Uniform,Day,CHESAPEAKE UNIFORM,e624aed5-519b-4eff-8ba1-dae7d773bfa7
361,261,2020/07/07 00:00:00+00,Transportation,Traffic Construction and Management of Signals,Professional Services,Professional Services,General Fund,6.08,Chesapeake Uniform,Day,CHESAPEAKE UNIFORM,3637bfe8-0da6-4f33-87ba-f5088b0b32c6
362,262,2020/07/07 00:00:00+00,Transportation,Traffic Construction and Management of Signals,Professional Services,Professional Services,General Fund,6.08,Chesapeake Uniform,Day,CHESAPEAKE UNIFORM,04b399ff-757e-4754-ba45-60fb5f8a5ec0
363,263,2020/07/07 00:00:00+00,Transportation,Traffic Construction and Management of Signals,Professional Services,Professional Services,General Fund,6.08,Chesapeake Uniform,Day,CHESAPEAKE UNIFORM,199ebdf9-fe8c-4b86-9d87-29e8295c63bc
364,264,2020/07/07 00:00:00+00,Transportation,Traffic Construction and Management of Signals,Professional Services,Professional Services,General Fund,6.08,Chesapeake Uniform,Day,CHESAPEAKE UNIFORM,8d6386e0-e2e1-44bc-84a7-4efa716b1646
365,265,2020/07/07 00:00:00+00,Transportation,Traffic Construction and Management of Signals,Professional Services,Professional Services,General Fund,6.08,Chesapeake Uniform,Day,CHESAPEAKE UNIFORM,5a5dd5a3-8150-4209-8659-25d40d0bc978
366,266,2020/07/07 00:00:00+00,Transportation,Traffic Construction and Management of Signals,Professional Services,Professional Services,General Fund,6.08,Chesapeake Uniform,Day,CHESAPEAKE UNIFORM,f02de450-4f6f-49f2-a3e3-4d107cd86042
367,267,2020/07/07 00:00:00+00,Transportation,Traffic Management and Engineering,Professional Services,Professional Services,General Fund,8.63,Chesapeake Uniform,Day,CHESAPEAKE UNIFORM,b90aaa24-df73-4f45-9c97-bbdb6ac2ebce
368,268,2020/07/07 00:00:00+00,Transportation,Traffic Management and Engineering,Professional Services,Professional Services,General Fund,8.63,Chesapeake Uniform,Day,CHESAPEAKE UNIFORM,34e9f1bc-52f4-49e9-b72c-8ab926b1b694
369,269,2020/07/07 00:00:00+00,Transportation,Traffic Management and Engineering,Professional Services,Professional Services,General Fund,8.63,Chesapeake Uniform,Day,CHESAPEAKE UNIFORM,5c04ae16-8ce5-4c32-b648-a9da9a1b86c1
370,270,2020/07/07 00:00:00+00,Transportation,Traffic Management and Engineering,Professional Services,Professional Services,General Fund,8.63,Chesapeake Uniform,Day,CHESAPEAKE UNIFORM,4e0af994-95ad-49fa-80fd-b966de5ecb6e
371,271,2020/07/07 00:00:00+00,Transportation,Traffic Management and Engineering,Professional Services,Professional Services,General Fund,8.63,Chesapeake Uniform,Day,CHESAPEAKE UNIFORM,03e3d538-c606-4450-a2af-5f0b28d57f8a
372,272,2020/07/07 00:00:00+00,Transportation,Traffic Management and Engineering,Professional Services,Professional Services,General Fund,8.63,Chesapeake Uniform,Day,CHESAPEAKE UNIFORM,f1126c01-b84c-4944-8868-89a19c6db9eb
373,273,2020/07/07 00:00:00+00,Transportation,Traffic Management and Engineering,Professional Services,Professional Services,General Fund,8.63,Chesapeake Uniform,Day,CHESAPEAKE UNIFORM,4a9cf8f1-a002-4447-98fb-5b6d9bc6da6d
374,274,2020/07/07 00:00:00+00,Transportation,Traffic Management and Engineering,Professional Services,Professional Services,General Fund,8.63,Chesapeake Uniform,Day,CHESAPEAKE UNIFORM,994c5b80-1283-4831-af58-c7958919f247
375,275,2020/07/07 00:00:00+00,Transportation,Traffic Management and Engineering,Professional Services,Professional Services,General Fund,8.63,Chesapeake Uniform,Day,CHESAPEAKE UNIFORM,e7f3c9b7-bd8b-4b12-a3c8-bf2f254a8d41
376,276,2020/07/07 00:00:00+00,Transportation,Traffic Electronic Maintenance,Professional Services,Professional Services,General Fund,8.63,Chesapeake Uniform,Day,CHESAPEAKE UNIFORM,21c8fd6a-154d-4f6b-945c-50e98c717527
377,277,2020/07/07 00:00:00+00,Transportation,Traffic Electronic Maintenance,Professional Services,Professional Services,General Fund,8.63,Chesapeake Uniform,Day,CHESAPEAKE UNIFORM,6b28ea60-24ac-4bca-a0d6-4c31d0693eee
378,278,2020/07/07 00:00:00+00,Transportation,Traffic Electronic Maintenance,Professional Services,Professional Services,General Fund,8.63,Chesapeake Uniform,Day,CHESAPEAKE UNIFORM,56dbb479-12d0-45ee-b430-69060a2da38a
379,279,2020/07/07 00:00:00+00,Transportation,Traffic Electronic Maintenance,Professional Services,Professional Services,General Fund,8.63,Chesapeake Uniform,Day,CHESAPEAKE UNIFORM,7874a11d-2a95-40a2-9a8c-d22cd2433d7b
380,280,2020/07/07 00:00:00+00,Transportation,Traffic Electronic Maintenance,Professional Services,Professional Services,General Fund,8.63,Chesapeake Uniform,Day,CHESAPEAKE UNIFORM,ddf7f551-b3cd-4d85-aa3f-42120540cb4e
381,281,2020/07/07 00:00:00+00,Transportation,Traffic Electronic Maintenance,Professional Services,Professional Services,General Fund,8.63,Chesapeake Uniform,Day,CHESAPEAKE UNIFORM,6c77aed0-e208-4e95-8931-d9b5f2d4825b
382,282,2020/07/07 00:00:00+00,Transportation,Traffic Electronic Maintenance,Professional Services,Professional Services,General Fund,8.63,Chesapeake Uniform,Day,CHESAPEAKE UNIFORM,7284959f-2b2a-4ef6-b384-b1be41082748
383,283,2020/07/07 00:00:00+00,Transportation,Traffic Electronic Maintenance,Professional Services,Professional Services,General Fund,8.63,Chesapeake Uniform,Day,CHESAPEAKE UNIFORM,8b824ef4-8d67-46cb-a421-374393cd5433
384,284,2020/07/07 00:00:00+00,Transportation,Traffic Electronic Maintenance,Professional Services,Professional Services,General Fund,8.63,Chesapeake Uniform,Day,CHESAPEAKE UNIFORM,b4bf657d-1f54-400e-8114-9393712756ec
385,285,2020/07/07 00:00:00+00,Transportation,Traffic Electronic Maintenance,Professional Services,Professional Services,General Fund,8.63,Chesapeake Uniform,Day,CHESAPEAKE UNIFORM,1204a6ab-be2b-4e0d-bbb8-c70c6b48beba
386,286,2020/07/07 00:00:00+00,Transportation,Traffic Electronic Maintenance,Professional Services,Professional Services,General Fund,8.63,Chesapeake Uniform,Day,CHESAPEAKE UNIFORM,42c3ce77-f46f-47b1-8bd7-46ce2fc29c82
387,287,2020/07/07 00:00:00+00,Transportation,Traffic Electronic Maintenance,Professional Services,Professional Services,General Fund,8.63,Chesapeake Uniform,Day,CHESAPEAKE UNIFORM,489d9e78-7baf-4f79-b1f1-45353a382867
388,288,2020/07/07 00:00:00+00,Transportation,Traffic Electronic Maintenance,Professional Services,Professional Services,General Fund,8.63,Chesapeake Uniform,Day,CHESAPEAKE UNIFORM,1bae9fde-aada-449d-8003-79d53c97a9f1
389,289,2020/07/07 00:00:00+00,Transportation,Traffic Electronic Maintenance,Professional Services,Professional Services,General Fund,8.63,Chesapeake Uniform,Day,CHESAPEAKE UNIFORM,f60a2671-1bc0-44d8-be60-8c79673123a1
390,290,2020/07/07 00:00:00+00,Transportation,Traffic Electronic Maintenance,Professional Services,Professional Services,General Fund,8.63,Chesapeake Uniform,Day,CHESAPEAKE UNIFORM,a3e07472-7116-440c-809a-2eea0b1efde8
391,291,2020/07/07 00:00:00+00,Transportation,Traffic Construction and Management of Signals,Professional Services,Professional Services,General Fund,11.25,Chesapeake Uniform,Day,CHESAPEAKE UNIFORM,22858591-6acf-47fc-9ece-b4655a9d857d
392,292,2020/07/07 00:00:00+00,Transportation,Traffic Construction and Management of Signals,Professional Services,Professional Services,General Fund,11.25,Chesapeake Uniform,Day,CHESAPEAKE UNIFORM,7ad98e8f-dac0-41d4-9dbf-2e74c9249ec4
393,293,2020/07/07 00:00:00+00,Transportation,Traffic Construction and Management of Signals,Professional Services,Professional Services,General Fund,11.25,Chesapeake Uniform,Day,CHESAPEAKE UNIFORM,18a82997-3710-4fe4-a858-0b9443326890
394,294,2020/07/07 00:00:00+00,Transportation,Traffic Construction and Management of Signals,Professional Services,Professional Services,General Fund,11.25,Chesapeake Uniform,Day,CHESAPEAKE UNIFORM,6d86865d-9eee-473c-9bdd-41d771af4856
395,295,2020/07/07 00:00:00+00,Transportation,Traffic Construction and Management of Signals,Professional Services,Professional Services,General Fund,11.25,Chesapeake Uniform,Day,CHESAPEAKE UNIFORM,6df1fb70-2c16-479c-83ea-fa85af8c7dc9
396,296,2020/07/07 00:00:00+00,Transportation,Traffic Construction and Management of Signals,Professional Services,Professional Services,General Fund,11.25,Chesapeake Uniform,Day,CHESAPEAKE UNIFORM,e90d94b3-041a-426c-b8e1-83ea71f19872
397,297,2020/07/07 00:00:00+00,Transportation,Traffic Construction and Management of Signals,Professional Services,Professional Services,General Fund,11.25,Chesapeake Uniform,Day,CHESAPEAKE UNIFORM,9d1f7613-049f-4592-88ff-0f884953036f
398,298,2020/07/07 00:00:00+00,Transportation,Traffic Construction and Management of Signals,Professional Services,Professional Services,General Fund,11.25,Chesapeake Uniform,Day,CHESAPEAKE UNIFORM,cfea7dc3-742c-4611-b5ce-38c1fba15357
399,299,2020/07/07 00:00:00+00,Transportation,Traffic Construction and Management of Signals,Professional Services,Professional Services,General Fund,11.25,Chesapeake Uniform,Day,CHESAPEAKE UNIFORM,e1efc30b-4f7a-4a40-a764-899b71b24162
400,300,2020/07/07 00:00:00+00,Transportation,Traffic Construction and Management of Signals,Professional Services,Professional Services,General Fund,11.25,Chesapeake Uniform,Day,CHESAPEAKE UNIFORM,eeb7920f-26f6-4585-9b55-7e5c51bb24a6
401,601,2020/07/08 00:00:00+00,Health,Communicable Disease and Ryan White,Office Operations,Rental of Business Machines,State Grants Fund,453.6,Douron Inc.,Day,DOURON INC.,f1473e6f-fba2-4fe4-ad2b-1f9685aa8759
402,501,2020/07/08 00:00:00+00,Health,Communicable Disease and Ryan White,Office Operations,Rental of Business Machines,State Grants Fund,33.6,Douron Inc.,Day,DOURON INC.,bea8cbea-4f29-40c0-ace2-f7ddd3f6b7dc
403,602,2020/07/08 00:00:00+00,Health,Communicable Disease and Ryan White,Office Operations,Rental of Business Machines,State Grants Fund,454.4,Douron Inc.,Day,DOURON INC.,c581e655-9eb7-4b60-a4a0-a4821bd432f7
404,502,2020/07/08 00:00:00+00,Health,Communicable Disease and Ryan White,Office Operations,Rental of Business Machines,State Grants Fund,34.4,Douron Inc.,Day,DOURON INC.,d31668ec-64a7-4a0f-98cd-f0ed3bd1d150
405,503,2020/07/08 00:00:00+00,Health,Communicable Disease and Ryan White,Office Operations,Rental of Business Machines,State Grants Fund,34.4,Douron Inc.,Day,DOURON INC.,ad36b80e-4f1d-41f1-a588-b4318d449712
406,504,2020/07/08 00:00:00+00,Health,Communicable Disease and Ryan White,Office Operations,Rental of Business Machines,State Grants Fund,38.8,Douron Inc.,Day,DOURON INC.,583fe818-f78b-44ef-88e0-a0037a4a4664
407,505,2020/07/08 00:00:00+00,Health,Communicable Disease and Ryan White,Office Operations,Rental of Business Machines,State Grants Fund,39.2,Douron Inc.,Day,DOURON INC.,fac0b4e4-f8b7-47f8-ac6e-f0cffb822ff8
408,506,2020/07/08 00:00:00+00,Health,Communicable Disease and Ryan White,Office Operations,Rental of Business Machines,State Grants Fund,40.8,Douron Inc.,Day,DOURON INC.,a1779139-ccc7-4c9f-8283-9d481f3d4484
409,507,2020/07/08 00:00:00+00,Health,Communicable Disease and Ryan White,Office Operations,Rental of Business Machines,State Grants Fund,41.2,Douron Inc.,Day,DOURON INC.,07a0b584-151e-4045-a18a-4975703cd1fd
410,508,2020/07/08 00:00:00+00,Health,Communicable Disease and Ryan White,Office Operations,Rental of Business Machines,State Grants Fund,49.2,Douron Inc.,Day,DOURON INC.,eed0cd8d-b7c2-45ed-a064-0afa86628791
411,509,2020/07/08 00:00:00+00,Health,Communicable Disease and Ryan White,Office Operations,Rental of Business Machines,State Grants Fund,50.4,Douron Inc.,Day,DOURON INC.,3bcc8f8b-474c-4359-91cb-9efb3f8681b4
412,510,2020/07/08 00:00:00+00,Health,Communicable Disease and Ryan White,Office Operations,Rental of Business Machines,State Grants Fund,50.4,Douron Inc.,Day,DOURON INC.,86673904-591d-46bf-ad90-2d247e77f2ac
413,511,2020/07/08 00:00:00+00,Health,Communicable Disease and Ryan White,Office Operations,Rental of Business Machines,State Grants Fund,50.4,Douron Inc.,Day,DOURON INC.,d8670235-21e0-4f44-b3d1-3af81b334f91
414,512,2020/07/08 00:00:00+00,Health,Communicable Disease and Ryan White,Office Operations,Rental of Business Machines,State Grants Fund,50.4,Douron Inc.,Day,DOURON INC.,4439b726-7c1a-4426-acea-8298e3569c71
415,513,2020/07/08 00:00:00+00,Health,Communicable Disease and Ryan White,Office Operations,Rental of Business Machines,State Grants Fund,50.4,Douron Inc.,Day,DOURON INC.,e5e5c3f2-0585-4866-84ff-2539cfcb0b7a
416,514,2020/07/08 00:00:00+00,Health,Communicable Disease and Ryan White,Office Operations,Rental of Business Machines,State Grants Fund,50.4,Douron Inc.,Day,DOURON INC.,03fc4493-118e-4394-9399-d22ebe656651
417,515,2020/07/08 00:00:00+00,Health,Communicable Disease and Ryan White,Office Operations,Rental of Business Machines,State Grants Fund,50.4,Douron Inc.,Day,DOURON INC.,0b88242a-0d08-4c04-980b-075c4c6d0ae6
418,516,2020/07/08 00:00:00+00,Health,Communicable Disease and Ryan White,Office Operations,Rental of Business Machines,State Grants Fund,50.4,Douron Inc.,Day,DOURON INC.,25d94615-76d5-4203-9541-e3273857e94a
419,517,2020/07/08 00:00:00+00,Health,Communicable Disease and Ryan White,Office Operations,Rental of Business Machines,State Grants Fund,50.4,Douron Inc.,Day,DOURON INC.,3de3af33-5b68-4718-af95-6fc1bb3c87b7
420,518,2020/07/08 00:00:00+00,Health,Communicable Disease and Ryan White,Office Operations,Rental of Business Machines,State Grants Fund,50.4,Douron Inc.,Day,DOURON INC.,02e97fb3-a8eb-47f4-b45a-c848bcfb5334
421,519,2020/07/08 00:00:00+00,Health,Communicable Disease and Ryan White,Office Operations,Rental of Business Machines,State Grants Fund,50.4,Douron Inc.,Day,DOURON INC.,0d7be2de-8e35-4df7-91e4-39f166d561b9
422,520,2020/07/08 00:00:00+00,Health,Communicable Disease and Ryan White,Office Operations,Rental of Business Machines,State Grants Fund,50.4,Douron Inc.,Day,DOURON INC.,23fdd0e3-8254-4265-90e7-2cf689e1216f
423,521,2020/07/08 00:00:00+00,Health,Communicable Disease and Ryan White,Office Operations,Rental of Business Machines,State Grants Fund,50.4,Douron Inc.,Day,DOURON INC.,c45b409d-5e85-4d71-b8c2-a83dc34c97d4
424,522,2020/07/08 00:00:00+00,Health,Communicable Disease and Ryan White,Office Operations,Rental of Business Machines,State Grants Fund,50.4,Douron Inc.,Day,DOURON INC.,506fe97f-7573-4858-85ae-0d6473f32f2d
425,523,2020/07/08 00:00:00+00,Health,Communicable Disease and Ryan White,Office Operations,Rental of Business Machines,State Grants Fund,50.4,Douron Inc.,Day,DOURON INC.,6a8ad35c-9af5-448d-8614-9f950c6052c4
426,524,2020/07/08 00:00:00+00,Health,Communicable Disease and Ryan White,Office Operations,Rental of Business Machines,State Grants Fund,50.4,Douron Inc.,Day,DOURON INC.,796704d9-5e1e-4b1d-9596-0bf417164e5e
427,525,2020/07/08 00:00:00+00,Health,Communicable Disease and Ryan White,Office Operations,Rental of Business Machines,State Grants Fund,50.4,Douron Inc.,Day,DOURON INC.,44bdda9d-a3a5-4622-ae39-472b120af58d
428,526,2020/07/08 00:00:00+00,Health,Communicable Disease and Ryan White,Office Operations,Rental of Business Machines,State Grants Fund,50.4,Douron Inc.,Day,DOURON INC.,51ecb44f-aca2-4981-b5ef-89370e0b2c5a
429,527,2020/07/08 00:00:00+00,Health,Communicable Disease and Ryan White,Office Operations,Rental of Business Machines,State Grants Fund,50.4,Douron Inc.,Day,DOURON INC.,6215100d-0bc8-4da9-8f8d-e76e3c43e74a
430,528,2020/07/08 00:00:00+00,Health,Communicable Disease and Ryan White,Office Operations,Rental of Business Machines,State Grants Fund,50.4,Douron Inc.,Day,DOURON INC.,73d4423e-9150-4ff4-b09a-1f596d09464e
431,529,2020/07/08 00:00:00+00,Health,Communicable Disease and Ryan White,Office Operations,Rental of Business Machines,State Grants Fund,50.4,Douron Inc.,Day,DOURON INC.,2b8490bb-49a5-4073-8cf1-392e1fd57c38
432,530,2020/07/08 00:00:00+00,Health,Communicable Disease and Ryan White,Office Operations,Rental of Business Machines,State Grants Fund,51.2,Douron Inc.,Day,DOURON INC.,449a849b-3035-493d-99d7-6cee30588ae1
433,531,2020/07/08 00:00:00+00,Health,Communicable Disease and Ryan White,Office Operations,Rental of Business Machines,State Grants Fund,51.2,Douron Inc.,Day,DOURON INC.,8ce538df-b0f3-4b2b-b8a1-1a94b838bfa1
434,532,2020/07/08 00:00:00+00,Health,Communicable Disease and Ryan White,Office Operations,Rental of Business Machines,State Grants Fund,52.8,Douron Inc.,Day,DOURON INC.,a4f549dd-2730-4456-aa05-6f4e2d06ff60
435,533,2020/07/08 00:00:00+00,Health,Communicable Disease and Ryan White,Office Operations,Rental of Business Machines,State Grants Fund,52.8,Douron Inc.,Day,DOURON INC.,c56f94a1-0f00-4fec-bef6-140e235db428
436,534,2020/07/08 00:00:00+00,Health,Communicable Disease and Ryan White,Office Operations,Rental of Business Machines,State Grants Fund,62,Douron Inc.,Day,DOURON INC.,695889fe-698e-4012-b04e-c2dac7e0fd32
437,535,2020/07/08 00:00:00+00,Health,Communicable Disease and Ryan White,Office Operations,Rental of Business Machines,State Grants Fund,62,Douron Inc.,Day,DOURON INC.,51e4dc9e-0f31-457b-8561-ea11a368b779
438,536,2020/07/08 00:00:00+00,Health,Communicable Disease and Ryan White,Office Operations,Rental of Business Machines,State Grants Fund,66,Douron Inc.,Day,DOURON INC.,85c0dd19-e2bc-4dde-ab05-7f5150bec343
439,537,2020/07/08 00:00:00+00,Health,Communicable Disease and Ryan White,Office Operations,Rental of Business Machines,State Grants Fund,68.8,Douron Inc.,Day,DOURON INC.,2a8f7b34-38ba-47b3-ac5e-83d7010270e5
440,538,2020/07/08 00:00:00+00,Health,Communicable Disease and Ryan White,Office Operations,Rental of Business Machines,State Grants Fund,70,Douron Inc.,Day,DOURON INC.,f038552e-379b-4c00-8f71-61e22e76fa8d
441,539,2020/07/08 00:00:00+00,Health,Communicable Disease and Ryan White,Office Operations,Rental of Business Machines,State Grants Fund,81.6,Douron Inc.,Day,DOURON INC.,d986af2c-867e-45be-bdcf-0ad25ee56e9e
442,540,2020/07/08 00:00:00+00,Health,Communicable Disease and Ryan White,Office Operations,Rental of Business Machines,State Grants Fund,86,Douron Inc.,Day,DOURON INC.,ceb24474-9d45-42bb-9afd-97698c22cdab
443,541,2020/07/08 00:00:00+00,Health,Communicable Disease and Ryan White,Office Operations,Rental of Business Machines,State Grants Fund,89.2,Douron Inc.,Day,DOURON INC.,6a58bec7-9465-4f88-a2b3-f02a16707928
444,542,2020/07/08 00:00:00+00,Health,Communicable Disease and Ryan White,Office Operations,Rental of Business Machines,State Grants Fund,89.2,Douron Inc.,Day,DOURON INC.,77655f5a-c150-4ac7-81c7-9fd27b3d42d0
445,543,2020/07/08 00:00:00+00,Health,Communicable Disease and Ryan White,Office Operations,Rental of Business Machines,State Grants Fund,90.8,Douron Inc.,Day,DOURON INC.,9dffe1d4-6180-4d26-ae86-dbb04abe3f93
446,544,2020/07/08 00:00:00+00,Health,Communicable Disease and Ryan White,Office Operations,Rental of Business Machines,State Grants Fund,106.4,Douron Inc.,Day,DOURON INC.,fc8fc4e3-5bbb-4e39-ad34-157fd49efb4d
447,545,2020/07/08 00:00:00+00,Health,Communicable Disease and Ryan White,Office Operations,Rental of Business Machines,State Grants Fund,108,Douron Inc.,Day,DOURON INC.,65236a16-1af2-4d06-b4de-9d5d7d095a81
448,546,2020/07/08 00:00:00+00,Health,Communicable Disease and Ryan White,Office Operations,Rental of Business Machines,State Grants Fund,109.6,Douron Inc.,Day,DOURON INC.,e37f3a07-d661-4668-a7bb-c11059d57d8e
449,547,2020/07/08 00:00:00+00,Health,Communicable Disease and Ryan White,Office Operations,Rental of Business Machines,State Grants Fund,120.4,Douron Inc.,Day,DOURON INC.,e3e04628-308c-439c-8277-0ac910e4af1c
450,548,2020/07/08 00:00:00+00,Health,Communicable Disease and Ryan White,Office Operations,Rental of Business Machines,State Grants Fund,120.4,Douron Inc.,Day,DOURON INC.,c3827b3c-4e7d-461d-b799-c57771ce8ccc
451,549,2020/07/08 00:00:00+00,Health,Communicable Disease and Ryan White,Office Operations,Rental of Business Machines,State Grants Fund,121.2,Douron Inc.,Day,DOURON INC.,ab58720b-18e4-4de2-9fc0-9c48e5a24dca
452,550,2020/07/08 00:00:00+00,Health,Communicable Disease and Ryan White,Office Operations,Rental of Business Machines,State Grants Fund,121.6,Douron Inc.,Day,DOURON INC.,705602a9-f775-45df-af3b-8c2e5838cde3
453,701,2020/07/08 00:00:00+00,Transportation,Jones Falls A and B Lots,Office Operations,Security and Alarm Services,Parking Management (General Fund),643.2,Abacus Corporation,Day,ABACUS CORPORATION,86d40a6e-404d-4025-a2b0-0bcb6e16ce00
454,401,2020/07/07 00:00:00+00,Otherwise Classified,Fixed Costs Not Otherwise Classified,Major Equipment - Field,Major Pieces of Equipment,Federal Grants Fund,38,Northrop Grumman Systems Corporation,Day,NORTHROP GRUMMAN SYSTEMS CORPORATION,f6d91b6b-66f2-4055-8481-f90e57cf3408
455,603,2020/07/08 00:00:00+00,Health,Communicable Disease and Ryan White,Office Operations,Rental of Business Machines,State Grants Fund,462,Douron Inc.,Day,DOURON INC.,8b57516f-a205-49ec-951e-c17a39b73f26
456,702,2020/07/08 00:00:00+00,Otherwise Classified,Fixed Costs Not Otherwise Classified,Professional Services,Professional Services,Recreation Accessory Fund,56.98,Forte Payment Systems Inc.,Day,FORTE PAYMENT SYSTEMS INC.,60889991-096e-42b4-93be-7f33b0f18744
457,703,2020/07/08 00:00:00+00,Otherwise Classified,Fixed Costs Not Otherwise Classified,Utilities and Waste,Gas Electric and Steam,General Fund,63.29,Vicinity Energy Baltimore Heating LLP,Day,VICINITY ENERGY BALTIMORE HEATING LLP,ce67ac9a-9e1e-48ad-9038-ce3a550efbdf
458,704,2020/07/08 00:00:00+00,Otherwise Classified,Fixed Costs Not Otherwise Classified,Professional Services,Professional Services,General Fund,100,Forest Valley Tree & Turf LLC DBA New Level Tree & Lawn,Day,FOREST VALLEY TREE & TURF LLC DBA NEW LEVEL TREE & LAWN,f1709b1b-7dbd-4d94-b78e-de42d9bb7d62
459,705,2020/07/08 00:00:00+00,Otherwise Classified,Fixed Costs Not Otherwise Classified,Professional Services,Professional Services,General Fund,225,Forest Valley Tree & Turf LLC DBA New Level Tree & Lawn,Day,FOREST VALLEY TREE & TURF LLC DBA NEW LEVEL TREE & LAWN,4bdc09d6-eb23-46f7-97da-fc9c8f8a2c54
460,706,2020/07/08 00:00:00+00,Otherwise Classified,Fixed Costs Not Otherwise Classified,Professional Services,Professional Services,General Fund,250,Forest Valley Tree & Turf LLC DBA New Level Tree & Lawn,Day,FOREST VALLEY TREE & TURF LLC DBA NEW LEVEL TREE & LAWN,296ec205-8dc6-48c2-a563-688b7e08871d
461,707,2020/07/08 00:00:00+00,Otherwise Classified,Fixed Costs Not Otherwise Classified,Professional Services,Professional Services,General Fund,265,Forest Valley Tree & Turf LLC DBA New Level Tree & Lawn,Day,FOREST VALLEY TREE & TURF LLC DBA NEW LEVEL TREE & LAWN,4c379282-34f3-4028-84c2-e6dfc31f67d0
462,708,2020/07/08 00:00:00+00,Otherwise Classified,Fixed Costs Not Otherwise Classified,Repairs and Maintenance,Maintanance and Repair of Real Property,General Fund,342,Baltimore Precision Door Inc.,Day,BALTIMORE PRECISION DOOR INC.,e939513f-4f2f-4662-aa5f-31d79d563928
463,709,2020/07/08 00:00:00+00,Otherwise Classified,Fixed Costs Not Otherwise Classified,Repairs and Maintenance,Maintanance and Repair of Real Property,Water Utility Fund,347.15,Johnson Controls Inc.,Day,JOHNSON CONTROLS INC.,79154d97-311a-4ba5-bd5d-14fac39dfd47
464,710,2020/07/08 00:00:00+00,Otherwise Classified,Fixed Costs Not Otherwise Classified,Repairs and Maintenance,Maintanance and Repair of Real Property,General Fund,396,Baltimore Precision Door Inc.,Day,BALTIMORE PRECISION DOOR INC.,58370603-f78e-435f-a199-3e42bc0f607c
465,711,2020/07/08 00:00:00+00,Otherwise Classified,Fixed Costs Not Otherwise Classified,Repairs and Maintenance,Maintanance and Repair of Real Property,General Fund,414,Baltimore Precision Door Inc.,Day,BALTIMORE PRECISION DOOR INC.,161309fc-cecd-4dfb-9cc0-e3d427a053af
466,712,2020/07/08 00:00:00+00,Otherwise Classified,Fixed Costs Not Otherwise Classified,Repairs and Maintenance,Maintanance and Repair of Real Property,General Fund,437.7,Baltimore Precision Door Inc.,Day,BALTIMORE PRECISION DOOR INC.,b0074b73-6105-4ef5-ad18-1b881fe989c0
467,713,2020/07/08 00:00:00+00,Otherwise Classified,Fixed Costs Not Otherwise Classified,Professional Services,Professional Services,WasteWater Utility Fund,440,Paragon Consulting Services Inc.,Day,PARAGON CONSULTING SERVICES INC.,6d09528e-7b77-4c57-b95d-2a6c028dcdbd
468,714,2020/07/08 00:00:00+00,Otherwise Classified,Fixed Costs Not Otherwise Classified,Repairs and Maintenance,Maintanance and Repair of Real Property,General Fund,480,Baltimore Precision Door Inc.,Day,BALTIMORE PRECISION DOOR INC.,a5d4da75-7e86-45be-b8d6-1accfffe71aa
469,715,2020/07/08 00:00:00+00,Otherwise Classified,Fixed Costs Not Otherwise Classified,Repairs and Maintenance,Maintanance and Repair of Real Property,WasteWater Utility Fund,485.9,Abacus Corporation,Day,ABACUS CORPORATION,80ecdd4e-ddc5-4a86-8bc4-a72101dcd7c4
470,716,2020/07/08 00:00:00+00,Otherwise Classified,Fixed Costs Not Otherwise Classified,Repairs and Maintenance,Maintanance and Repair of Real Property,Water Utility Fund,485.91,Abacus Corporation,Day,ABACUS CORPORATION,1115cacd-12af-4d5d-8ac1-a44ecffa4260
471,717,2020/07/08 00:00:00+00,Otherwise Classified,Fixed Costs Not Otherwise Classified,Professional Services,Payments to Sub-Contractors,General Fund,905.85,Pristine Inc,Day,PRISTINE INC,915da859-677c-4746-858d-1f30105fd0f7
472,718,2020/07/08 00:00:00+00,Otherwise Classified,Fixed Costs Not Otherwise Classified,Utilities and Waste,Gas Electric and Steam,General Fund,1033.71,Vicinity Energy Baltimore Heating LLP,Day,VICINITY ENERGY BALTIMORE HEATING LLP,b63c7cd8-656e-47a9-adad-0c4f3c15d8f9
473,719,2020/07/08 00:00:00+00,Otherwise Classified,Fixed Costs Not Otherwise Classified,Professional Services,Professional Services,General Fund,1280,Forest Valley Tree & Turf LLC DBA New Level Tree & Lawn,Day,FOREST VALLEY TREE & TURF LLC DBA NEW LEVEL TREE & LAWN,41179506-a238-426b-9945-1b3ac97fb6d8
474,720,2020/07/08 00:00:00+00,Otherwise Classified,Fixed Costs Not Otherwise Classified,Utilities and Waste,Gas Electric and Steam,General Fund,1796.68,Vicinity Energy Baltimore Heating LLP,Day,VICINITY ENERGY BALTIMORE HEATING LLP,f6584307-386f-49db-966f-aaa8874b282f
475,721,2020/07/08 00:00:00+00,Otherwise Classified,Fixed Costs Not Otherwise Classified,Utilities and Waste,Gas Electric and Steam,WasteWater Utility Fund,2122,Vicinity Energy Baltimore Heating LLP,Day,VICINITY ENERGY BALTIMORE HEATING LLP,aa0c8d99-3109-4881-85a3-0b7634d56df6
476,722,2020/07/08 00:00:00+00,Otherwise Classified,Fixed Costs Not Otherwise Classified,Repairs and Maintenance,Maintanance and Repair of Real Property,General Fund,2169.08,Johnson Controls Inc.,Day,JOHNSON CONTROLS INC.,61f63d23-d4e3-4a09-af71-2125f6367b7d
477,723,2020/07/08 00:00:00+00,Otherwise Classified,Fixed Costs Not Otherwise Classified,Utilities and Waste,Gas Electric and Steam,General Fund,2207.84,Vicinity Energy Baltimore Heating LLP,Day,VICINITY ENERGY BALTIMORE HEATING LLP,348b13c7-2a65-4c79-abf5-2c62870a39e5
478,724,2020/07/08 00:00:00+00,Otherwise Classified,Fixed Costs Not Otherwise Classified,Utilities and Waste,Gas Electric and Steam,General Fund,2331.41,Vicinity Energy Baltimore Heating LLP,Day,VICINITY ENERGY BALTIMORE HEATING LLP,1057e741-79a3-4a35-9902-214e6f4457b1
479,725,2020/07/08 00:00:00+00,Otherwise Classified,Fixed Costs Not Otherwise Classified,Professional Services,Consultants,BCIT Capital Project Fund,2592,Robert Half International Inc,Day,ROBERT HALF INTERNATIONAL INC,c427f9e1-7523-4506-be0e-55fcc15753ef
480,726,2020/07/08 00:00:00+00,Otherwise Classified,Fixed Costs Not Otherwise Classified,Construction Services,Demolition,Housing Fund Main HOME BDC and Downtown Pship Capital Project Fund,2766.98,K&K Adams,Day,K&K ADAMS,b3e2d39d-821e-4565-b918-4b8e144e0025
481,727,2020/07/08 00:00:00+00,Otherwise Classified,Fixed Costs Not Otherwise Classified,Cleaning and Maintenance Supplies,General Operating and Maintenance Supplies,General Fund,3200,CDW Government LLC,Day,CDW GOVERNMENT LLC,d3cce85c-4302-410d-a6b0-10973b78a67e
482,728,2020/07/08 00:00:00+00,Otherwise Classified,Fixed Costs Not Otherwise Classified,Utilities and Waste,Gas Electric and Steam,General Fund,4305.84,Vicinity Energy Baltimore Heating LLP,Day,VICINITY ENERGY BALTIMORE HEATING LLP,79db23e5-6013-4fdb-b1e4-df908f57ac26
483,729,2020/07/08 00:00:00+00,Otherwise Classified,Fixed Costs Not Otherwise Classified,Cleaning and Maintenance Supplies,General Operating and Maintenance Supplies,General Fund,5612,CDW Government LLC,Day,CDW GOVERNMENT LLC,c3fe5ebf-6539-4f5c-9772-bbfb6eca78aa
484,730,2020/07/08 00:00:00+00,Otherwise Classified,Fixed Costs Not Otherwise Classified,Utilities and Waste,Gas Electric and Steam,General Fund,6863.02,Vicinity Energy Baltimore Heating LLP,Day,VICINITY ENERGY BALTIMORE HEATING LLP,4216c4d7-d248-4621-80d8-89d567e658d3
485,731,2020/07/08 00:00:00+00,Otherwise Classified,Fixed Costs Not Otherwise Classified,Cleaning and Maintenance Supplies,General Operating and Maintenance Supplies,General Fund,6999.68,CDW Government LLC,Day,CDW GOVERNMENT LLC,030346ce-f4f3-4c41-b325-0e56f308aff1
486,732,2020/07/08 00:00:00+00,Otherwise Classified,Fixed Costs Not Otherwise Classified,Cleaning and Maintenance Supplies,General Operating and Maintenance Supplies,General Fund,7505,CDW Government LLC,Day,CDW GOVERNMENT LLC,3edf717d-8dc8-4f04-80fd-1c351edadaa2
487,733,2020/07/08 00:00:00+00,Otherwise Classified,Fixed Costs Not Otherwise Classified,Utilities and Waste,Gas Electric and Steam,General Fund,9048.41,Vicinity Energy Baltimore Heating LLP,Day,VICINITY ENERGY BALTIMORE HEATING LLP,425941e9-0f90-478c-8dd6-206973186cb1
488,734,2020/07/08 00:00:00+00,Otherwise Classified,Fixed Costs Not Otherwise Classified,Cleaning and Maintenance Supplies,General Operating and Maintenance Supplies,General Fund,10686,CDW Government LLC,Day,CDW GOVERNMENT LLC,20701150-4d58-448f-9097-b34ae0e9b515
489,735,2020/07/08 00:00:00+00,Otherwise Classified,Fixed Costs Not Otherwise Classified,Cleaning and Maintenance Supplies,General Operating and Maintenance Supplies,General Fund,13000,CDW Government LLC,Day,CDW GOVERNMENT LLC,c0ca8a2c-a79b-467f-a49b-5b87eef7917c
490,736,2020/07/08 00:00:00+00,Otherwise Classified,Fixed Costs Not Otherwise Classified,Construction Services,Demolition,Housing Fund Main HOME BDC and Downtown Pship Capital Project Fund,17128.27,K&K Adams,Day,K&K ADAMS,737e96f7-3337-4f95-9fa6-dd1f2c2f3307
491,737,2020/07/08 00:00:00+00,Otherwise Classified,Fixed Costs Not Otherwise Classified,Utilities and Waste,Gas Electric and Steam,General Fund,31008.88,Vicinity Energy Baltimore Heating LLP,Day,VICINITY ENERGY BALTIMORE HEATING LLP,92df498d-40e6-40f9-a037-9ba4f403fdd8
492,738,2020/07/08 00:00:00+00,Otherwise Classified,Fixed Costs Not Otherwise Classified,Cleaning and Maintenance Supplies,General Operating and Maintenance Supplies,General Fund,76006,CDW Government LLC,Day,CDW GOVERNMENT LLC,957d2a7b-c422-4e97-a56d-ade4deef9324
493,739,2020/07/08 00:00:00+00,Otherwise Classified,Fixed Costs Not Otherwise Classified,Cleaning and Maintenance Supplies,General Operating and Maintenance Supplies,General Fund,109294,CDW Government LLC,Day,CDW GOVERNMENT LLC,5bf91abf-c502-4d10-b0b3-7c459446b07b
494,740,2020/07/09 00:00:00+00,Courts - Circuit Court,Circuit Court Medical Services,Other Personnel Costs,Medical and Dental Fees,General Fund,321,Jeffrey S Janofsky Md,Day,JEFFREY S JANOFSKY MD,755ff217-ade8-4b92-959c-19df56faa030
495,741,2020/07/09 00:00:00+00,Courts - Circuit Court,Circuit Court Pre-Trial Pre-Release,Professional Services,Consultants,State Grants Fund,428,Johns Hopkins University,Day,JOHNS HOPKINS UNIVERSITY,1a6e7d3c-26b6-4ac0-a5c9-8ad4288cb669
496,742,2020/07/09 00:00:00+00,Courts - Circuit Court,Circuit Court Medical Services,Other Personnel Costs,Medical and Dental Fees,General Fund,535,Jeffrey S Janofsky Md,Day,JEFFREY S JANOFSKY MD,6861280e-e447-4f39-887b-e4e513e010eb
497,743,2020/07/09 00:00:00+00,Courts - Circuit Court,Circuit Court Pre-Trial Pre-Release,Professional Services,Consultants,State Grants Fund,535,Johns Hopkins University,Day,JOHNS HOPKINS UNIVERSITY,2b2eb7cc-cce6-40c5-86c5-40d121aebace
498,744,2020/07/09 00:00:00+00,Courts - Circuit Court,Circuit Court Pre-Trial Pre-Release,Professional Services,Consultants,State Grants Fund,600,Johns Hopkins University,Day,JOHNS HOPKINS UNIVERSITY,bf285281-6c12-430e-95cd-4a5f9455844e
499,745,2020/07/09 00:00:00+00,Board of Elections,Operation of Elections,Utilities and Waste,Gas Electric and Steam,General Fund,436.94,Constellation New Energy - Gas Division,Day,CONSTELLATION NEW ENERGY - GAS DIVISION,38750d01-a92b-42b2-bbcf-3c8fd080d939
500,746,2020/07/09 00:00:00+00,Board of Elections,Operation of Elections,Utilities and Waste,Gas Electric and Steam,General Fund,573.03,Constellation New Energy - Gas Division,Day,CONSTELLATION NEW ENERGY - GAS DIVISION,d0590aa8-4006-4f50-b31d-a79da92b4c05
501,747,2020/07/09 00:00:00+00,Board of Elections,Operation of Elections,Utilities and Waste,Gas Electric and Steam,General Fund,910.07,Constellation New Energy - Gas Division,Day,CONSTELLATION NEW ENERGY - GAS DIVISION,369b9ee9-7b00-40fa-84c1-2e2fd248e018
502,748,2020/07/09 00:00:00+00,Finance,Accounts Payable Cost Transfers (BAPS),Unallocable Other Personnel Costs,Unallocated Other Personnel Costs,General Fund,-548.34,Sf&c Insurance Inc,Day,SF&C INSURANCE INC,89be0c04-79c4-4d58-a258-baa5372094ec
503,749,2020/07/09 00:00:00+00,Finance,Accounts Payable Cost Transfers (BAPS),Unallocable Other Personnel Costs,Unallocated Other Personnel Costs,General Fund,-172.64,R.K. Tongue Co Inc,Day,R.K. TONGUE CO INC,ff7c9bb8-779e-4d69-8077-3f24fccdaa55
504,750,2020/07/09 00:00:00+00,Finance,Treasury Management,Professional Services,Bank Fees and Armored Trucks,General Fund,49.3,M&T Bank,Day,M&T BANK,4e4a0a89-9423-4d98-90a8-36668cde134e
505,604,2020/07/08 00:00:00+00,Health,Communicable Disease and Ryan White,Office Operations,Rental of Business Machines,State Grants Fund,463.2,Douron Inc.,Day,DOURON INC.,ee50b0f1-eeaf-4a51-9be5-af89b8b16b76
506,605,2020/07/08 00:00:00+00,Health,Coronavirus (BCHD),Food Supplies,Food,General Fund,465.3,Franks Foods LLC,Day,FRANKS FOODS LLC,53a7ee08-c51b-48f4-81d9-fd3133ae590b
507,606,2020/07/08 00:00:00+00,Health,Communicable Disease and Ryan White,Office Operations,Rental of Business Machines,State Grants Fund,470.4,Douron Inc.,Day,DOURON INC.,5a183ac8-e952-4cff-82bb-d8c1590a7308
508,607,2020/07/08 00:00:00+00,Health,Communicable Disease and Ryan White,Office Operations,Rental of Business Machines,State Grants Fund,478.8,Douron Inc.,Day,DOURON INC.,db53dd45-04c2-4c60-abf3-e2cbf5b7ad61
509,608,2020/07/08 00:00:00+00,Health,Communicable Disease and Ryan White,Office Operations,Rental of Business Machines,State Grants Fund,485.76,Douron Inc.,Day,DOURON INC.,0c365f5a-82e5-4973-8b0b-04af42890912
510,609,2020/07/08 00:00:00+00,Health,Communicable Disease and Ryan White,Office Operations,Rental of Business Machines,State Grants Fund,489.6,Douron Inc.,Day,DOURON INC.,d892584b-0a4c-496f-aa41-637132088e9d
511,610,2020/07/08 00:00:00+00,Health,Communicable Disease and Ryan White,Office Operations,Rental of Business Machines,State Grants Fund,515.2,Douron Inc.,Day,DOURON INC.,a1d854de-4151-4ac0-8cdb-7dd993a55047
512,611,2020/07/08 00:00:00+00,Health,Communicable Disease and Ryan White,Office Operations,Rental of Business Machines,State Grants Fund,549.6,Douron Inc.,Day,DOURON INC.,dfa177c6-5ccc-4d2b-8562-2edf98dc195d
513,612,2020/07/08 00:00:00+00,Health,Communicable Disease and Ryan White,Office Operations,Rental of Business Machines,State Grants Fund,563.2,Douron Inc.,Day,DOURON INC.,4a393f41-ccdf-4d7e-a819-25385c481e6e
514,613,2020/07/08 00:00:00+00,Health,Communicable Disease and Ryan White,Office Operations,Rental of Business Machines,State Grants Fund,620,Douron Inc.,Day,DOURON INC.,5fa84ae1-5c1f-4b5b-8fb3-3f1e8a36eb4e
515,614,2020/07/08 00:00:00+00,Health,Communicable Disease and Ryan White,Office Operations,Rental of Business Machines,State Grants Fund,650.4,Douron Inc.,Day,DOURON INC.,bb25a1a9-d79f-4225-9182-dd0114b26ec5
516,615,2020/07/08 00:00:00+00,Health,Communicable Disease and Ryan White,Office Operations,Rental of Business Machines,State Grants Fund,734.4,Douron Inc.,Day,DOURON INC.,771e9049-c3b1-4f18-8372-2ba33072e522
517,616,2020/07/08 00:00:00+00,Health,Animal Enforcement,Repairs and Maintenance,Maintanance and Repair of Real Property,General Fund,858.56,Johnson Controls Inc.,Day,JOHNSON CONTROLS INC.,2ee742b0-9c95-4bc3-b67a-543047d69b08
518,617,2020/07/08 00:00:00+00,Health,Communicable Disease and Ryan White,Office Operations,Rental of Business Machines,State Grants Fund,957.6,Douron Inc.,Day,DOURON INC.,44351527-ae2c-440c-92f3-d1853aaad9c5
519,618,2020/07/08 00:00:00+00,Health,Health Fiscal Services (BCHD),Professional Services,Professional Services,General Fund,960,1st Choice Staffing  LLC,Day,1ST CHOICE STAFFING  LLC,ccf6711b-f6b1-4736-a439-e8f1c54ceb8c
520,619,2020/07/08 00:00:00+00,Health,Communicable Disease and Ryan White,Office Operations,Rental of Business Machines,State Grants Fund,979.2,Douron Inc.,Day,DOURON INC.,8bf04bac-f0c4-436f-b328-0070c95ca154
521,620,2020/07/08 00:00:00+00,Health,Communicable Disease and Ryan White,Office Operations,Rental of Business Machines,State Grants Fund,1032,Douron Inc.,Day,DOURON INC.,3fdf78be-581c-4839-99be-073c15c0dc00
522,621,2020/07/08 00:00:00+00,Health,Communicable Disease and Ryan White,Office Operations,Rental of Business Machines,State Grants Fund,1080.8,Douron Inc.,Day,DOURON INC.,d8acb82d-ba2b-4c72-8919-8b343143a317
523,622,2020/07/08 00:00:00+00,Health,Communicable Disease and Ryan White,Office Operations,Rental of Business Machines,State Grants Fund,1154,Douron Inc.,Day,DOURON INC.,46859629-43f6-4122-bdc7-ab06287bc0a7
524,623,2020/07/08 00:00:00+00,Health,Coronavirus (BCHD),Food Supplies,Food,General Fund,1226.55,Franks Foods LLC,Day,FRANKS FOODS LLC,3ad22c55-dde6-4639-a06c-6e8561037eb3
525,624,2020/07/08 00:00:00+00,Health,Communicable Disease and Ryan White,Office Operations,Rental of Business Machines,State Grants Fund,1293.6,Douron Inc.,Day,DOURON INC.,197bbf1d-1dba-4338-8e68-a2e5c98d5381
526,625,2020/07/08 00:00:00+00,Health,Communicable Disease and Ryan White,Office Operations,Rental of Business Machines,State Grants Fund,1300.8,Douron Inc.,Day,DOURON INC.,4ef11a5e-180a-475e-b7d1-05deaa8095a6
527,626,2020/07/08 00:00:00+00,Health,Communicable Disease and Ryan White,Office Operations,Rental of Business Machines,State Grants Fund,1317.6,Douron Inc.,Day,DOURON INC.,74e32b3a-f6d6-409d-9489-afdbe88c6266
528,627,2020/07/08 00:00:00+00,Health,Communicable Disease and Ryan White,Office Operations,Rental of Business Machines,State Grants Fund,1510.8,Douron Inc.,Day,DOURON INC.,cd56d2a5-3096-4178-92eb-a03cbce457e4
529,628,2020/07/08 00:00:00+00,Health,Communicable Disease and Ryan White,Office Operations,Rental of Business Machines,State Grants Fund,1660.8,Douron Inc.,Day,DOURON INC.,21613a9a-4a44-4d90-bfd7-5dbd29746810
530,629,2020/07/08 00:00:00+00,Health,Communicable Disease and Ryan White,Office Operations,Rental of Business Machines,State Grants Fund,1687.2,Douron Inc.,Day,DOURON INC.,0f5a6d59-be9e-4a58-85b5-ff7e1ddb7166
531,630,2020/07/08 00:00:00+00,Health,Communicable Disease and Ryan White,Office Operations,Rental of Business Machines,State Grants Fund,1704,Douron Inc.,Day,DOURON INC.,d89534ec-c64d-4f9a-8b59-1d23bc9774af
532,631,2020/07/08 00:00:00+00,Health,Communicable Disease and Ryan White,Office Operations,Rental of Business Machines,State Grants Fund,1804,Douron Inc.,Day,DOURON INC.,ec956ba9-8a00-4249-9da7-4c69ba9c89ef
533,632,2020/07/08 00:00:00+00,Health,Communicable Disease and Ryan White,Office Operations,Rental of Business Machines,State Grants Fund,1821.6,Douron Inc.,Day,DOURON INC.,0d5ed0f0-180f-48ef-bc26-21ffcf34dbbf
534,633,2020/07/08 00:00:00+00,Health,Communicable Disease and Ryan White,Office Operations,Rental of Business Machines,State Grants Fund,2457.6,Douron Inc.,Day,DOURON INC.,f7328f86-5d52-4b13-891a-4106dd33baf8
535,634,2020/07/08 00:00:00+00,Health,Communicable Disease and Ryan White,Office Operations,Rental of Business Machines,State Grants Fund,2488.8,Douron Inc.,Day,DOURON INC.,784260e8-aa0a-477a-bfb0-d552060b01fc
536,635,2020/07/08 00:00:00+00,Health,Communicable Disease and Ryan White,Office Operations,Rental of Business Machines,State Grants Fund,3231.2,Douron Inc.,Day,DOURON INC.,f93320b3-be7c-462c-b689-78487cd8ac55
537,636,2020/07/08 00:00:00+00,Health,Communicable Disease and Ryan White,Office Operations,Rental of Business Machines,State Grants Fund,3643.2,Douron Inc.,Day,DOURON INC.,64b7dc18-92a3-49ee-820f-f4506a1ea0f2
538,637,2020/07/08 00:00:00+00,Health,Communicable Disease and Ryan White,Office Operations,Rental of Business Machines,State Grants Fund,4152,Douron Inc.,Day,DOURON INC.,c796399d-c4b2-448a-b2ef-03b4abc9c1cf
539,638,2020/07/08 00:00:00+00,Health,Communicable Disease and Ryan White,Office Operations,Rental of Business Machines,State Grants Fund,4194,Douron Inc.,Day,DOURON INC.,cf5c452c-2ec9-48aa-b571-e7c0056b3ac9
540,639,2020/07/08 00:00:00+00,Health,Coronavirus (BCHD),Professional Services,Payments to Sub-Contractors,General Fund,11232,Metropolitan Protective Services Inc.,Day,METROPOLITAN PROTECTIVE SERVICES INC.,c8c333bf-9965-49d0-b026-56e314506dab
541,640,2020/07/08 00:00:00+00,Enoch Pratt Free Library,Library Information Technology,Vehicles and Equipment,Rental of Outside Vehicles,General Fund,625,Acme Auto Leasing LLC,Day,ACME AUTO LEASING LLC,6d4af74d-3295-498d-a347-94c8a8c3dd2a
542,641,2020/07/08 00:00:00+00,Enoch Pratt Free Library,Library Central Facility Services,Utilities and Waste,Gas Electric and Steam,General Fund,14083.07,Vicinity Energy Baltimore Heating LLP,Day,VICINITY ENERGY BALTIMORE HEATING LLP,d828336a-0e18-4870-9696-9c4a0beb7006
543,642,2020/07/08 00:00:00+00,Mayoralty,Minority and Women-Owned and Small Business Development,Professional Services,Professional Services,General Fund,12000,University of Missouri - HBRRC,Day,UNIVERSITY OF MISSOURI - HBRRC,a703bc8f-16d3-41b3-b8ef-e656aca3db09
544,643,2020/07/08 00:00:00+00,M-R Office of Information and Technology,Enterprise IT Ransomware Recovery (BCIT),Professional Services,Consultants,General Fund,870,Revel Solutions LLC dba Revel Technology dba Revel Security,Day,REVEL SOLUTIONS LLC DBA REVEL TECHNOLOGY DBA REVEL SECURITY,0f2fe80a-f305-4453-883b-a37f1c2ab1fe
545,644,2020/07/08 00:00:00+00,M-R Office of Information and Technology,Information and Technology Fiscal Services (BCIT),Professional Services,Professional Services,General Fund,2168.95,Apex Systems LLC.,Day,APEX SYSTEMS LLC.,a9f7458d-a177-41b6-a7c0-2c5c070b11a9
546,645,2020/07/08 00:00:00+00,M-R Office of Information and Technology,BCIT ERP Project,Professional Services,Professional Services,General Fund,11246.12,Sierra-Cedar Inc.,Day,SIERRA-CEDAR INC.,b2b379b6-5cbc-4001-bccc-d6b225bd3abb
547,646,2020/07/08 00:00:00+00,M-R Office of Children and Family Success,Community Action Partnership Southeast Center,Professional Services,Professional Services,State Grants Fund,555.32,Abacus Corporation,Day,ABACUS CORPORATION,495da4b5-e829-48e9-893f-e145cb384946
548,647,2020/07/08 00:00:00+00,M-R Convention Complex,Convention Center Building Services,Cleaning and Maintenance Supplies,General Operating and Maintenance Supplies,General Fund,81.95,McMaster-Carr,Day,MCMASTER-CARR,4def3cde-9d6a-491d-beff-33ef7040b29a
549,648,2020/07/08 00:00:00+00,M-R Convention Complex,Convention Center Executive Administration,Professional Services,Maintenance - Computer Software,General Fund,317.41,PCMG Inc.,Day,PCMG INC.,f9410157-caf0-41e1-9d72-b4d5f3b7e42a
550,649,2020/07/08 00:00:00+00,M-R Convention Complex,Convention Center Building Services,Utilities and Waste,Gas Electric and Steam,General Fund,52748.76,Vicinity Energy Baltimore Heating LLP,Day,VICINITY ENERGY BALTIMORE HEATING LLP,7c2b3cd9-49b3-4789-8591-0174234ccb86
551,650,2020/07/08 00:00:00+00,M-R Convention Complex,Convention Center Public Safety,Major Equipment - Field,Major Pieces of Equipment,General Fund,54840,PCMG Inc.,Day,PCMG INC.,77d430c3-30ed-4433-a9f4-4769c2c2bc42
552,402,2020/07/07 00:00:00+00,Otherwise Classified,Fixed Costs Not Otherwise Classified,Major Equipment - Field,Major Pieces of Equipment,Federal Grants Fund,44,Northrop Grumman Systems Corporation,Day,NORTHROP GRUMMAN SYSTEMS CORPORATION,24a75e1f-a559-4f2e-be4c-f3c19a519634
553,451,2020/07/07 00:00:00+00,Otherwise Classified,Fixed Costs Not Otherwise Classified,Professional Services,Professional Services,General Fund,2375,Forest Valley Tree & Turf LLC DBA New Level Tree & Lawn,Day,FOREST VALLEY TREE & TURF LLC DBA NEW LEVEL TREE & LAWN,1a60da80-9934-4cf2-901f-9db733d218f0
554,651,2020/07/08 00:00:00+00,M-R Office of Homeless Services,Homeless Street Outreach,Professional Services,Not Otherwise Classified,General Fund,200.1,Rudolph's Office & Computer Supply Inc.,Day,RUDOLPH'S OFFICE & COMPUTER SUPPLY INC.,518cb5cc-295a-48b5-9285-02f0f0264a14
555,452,2020/07/07 00:00:00+00,Otherwise Classified,Fixed Costs Not Otherwise Classified,Professional Services,Professional Services,WasteWater Utility Fund,2979.75,Abacus Corporation,Day,ABACUS CORPORATION,3fa249ab-e7ec-45f8-af8f-0a2b89172ea1
556,453,2020/07/07 00:00:00+00,Otherwise Classified,Fixed Costs Not Otherwise Classified,Major Equipment - Field,Major Pieces of Equipment,Federal Grants Fund,3520,Northrop Grumman Systems Corporation,Day,NORTHROP GRUMMAN SYSTEMS CORPORATION,f57a409f-29a7-486d-a9f9-70d038550fa2
557,454,2020/07/07 00:00:00+00,Otherwise Classified,Fixed Costs Not Otherwise Classified,Major Equipment - Field,Major Pieces of Equipment,Federal Grants Fund,3900,Northrop Grumman Systems Corporation,Day,NORTHROP GRUMMAN SYSTEMS CORPORATION,782c7e36-4b72-44e9-bbe2-5593e5c0288a
558,455,2020/07/07 00:00:00+00,Otherwise Classified,Fixed Costs Not Otherwise Classified,Major Equipment - Field,Major Pieces of Equipment,Federal Grants Fund,3975,Northrop Grumman Systems Corporation,Day,NORTHROP GRUMMAN SYSTEMS CORPORATION,6a5b078b-73b6-41de-ace1-5e9367f6378b
559,456,2020/07/07 00:00:00+00,Otherwise Classified,Fixed Costs Not Otherwise Classified,Cleaning and Maintenance Supplies,General Operating and Maintenance Supplies,General Fund,4200,Range Maintenance Inc.,Day,RANGE MAINTENANCE INC.,51f08860-f7bc-4773-8f5d-1402c31f08c8
560,457,2020/07/07 00:00:00+00,Otherwise Classified,Fixed Costs Not Otherwise Classified,Professional Services,Professional Services,General Fund,6030,Forest Valley Tree & Turf LLC DBA New Level Tree & Lawn,Day,FOREST VALLEY TREE & TURF LLC DBA NEW LEVEL TREE & LAWN,c0e209ab-d3b5-466f-8f3d-0913b1cab16c
561,458,2020/07/07 00:00:00+00,Otherwise Classified,Fixed Costs Not Otherwise Classified,Professional Services,Professional Services,General Fund,6370,Forest Valley Tree & Turf LLC DBA New Level Tree & Lawn,Day,FOREST VALLEY TREE & TURF LLC DBA NEW LEVEL TREE & LAWN,a2e823be-35dc-4db0-a41d-066986f52021
562,459,2020/07/07 00:00:00+00,Otherwise Classified,Fixed Costs Not Otherwise Classified,Major Equipment - Field,Major Pieces of Equipment,Federal Grants Fund,6700,Northrop Grumman Systems Corporation,Day,NORTHROP GRUMMAN SYSTEMS CORPORATION,1afe481c-527a-4dbe-8968-8619e517e14c
563,460,2020/07/07 00:00:00+00,Otherwise Classified,Fixed Costs Not Otherwise Classified,Major Equipment - Field,Major Pieces of Equipment,Federal Grants Fund,13800,Northrop Grumman Systems Corporation,Day,NORTHROP GRUMMAN SYSTEMS CORPORATION,84428c25-43b5-4619-9d8f-4bbd1a8ab130
564,461,2020/07/07 00:00:00+00,Otherwise Classified,Fixed Costs Not Otherwise Classified,Major Equipment - Field,Major Pieces of Equipment,Federal Grants Fund,15500,Northrop Grumman Systems Corporation,Day,NORTHROP GRUMMAN SYSTEMS CORPORATION,a996a42f-2485-4554-9481-6fb4c29af240
565,462,2020/07/07 00:00:00+00,Otherwise Classified,Fixed Costs Not Otherwise Classified,Major Equipment - Field,Major Pieces of Equipment,Federal Grants Fund,30000,Northrop Grumman Systems Corporation,Day,NORTHROP GRUMMAN SYSTEMS CORPORATION,63393a25-7dd2-422b-a9b2-6b0ba8081a73
566,463,2020/07/08 00:00:00+00,Fire,Fire Land Suppression,Repairs and Maintenance,Equipment Maintenance,General Fund,56,Witmer Public Safety Group Inc dba Mason-Dixon Fire Equipment,Day,WITMER PUBLIC SAFETY GROUP INC DBA MASON-DIXON FIRE EQUIPMENT,fde7371a-7fed-4ff2-b56c-997e275b077c
567,464,2020/07/08 00:00:00+00,Fire,Fire Land Suppression,Professional Services,Professional Services,General Fund,98,Regional Pest Management,Day,REGIONAL PEST MANAGEMENT,cd2e2a8b-2fbb-45cd-8f21-d1ce80cb12de
568,465,2020/07/08 00:00:00+00,Fire,Emergency Medical Services (EMS) Administration,Medical Supplies,Medical and Surgical Supplies,General Fund,172.4,Mckesson,Day,MCKESSON,928c2b3b-085d-4097-a8a2-090fac9a391d
569,466,2020/07/08 00:00:00+00,Fire,Emergency Medical Services (EMS) Administration,Medical Supplies,Medical and Surgical Supplies,General Fund,296.9,Mckesson,Day,MCKESSON,3be44a79-c3fa-41a0-9a9d-e86d911beceb
570,467,2020/07/08 00:00:00+00,Fire,Emergency Management (OEM) Administration,Cleaning and Maintenance Supplies,General Operating and Maintenance Supplies,General Fund,406.26,Fisher Scientific,Day,FISHER SCIENTIFIC,7fc67639-2abc-4dc6-b8d7-470cd6994a1c
571,468,2020/07/08 00:00:00+00,Fire,Emergency Management (OEM) Administration,Cleaning and Maintenance Supplies,General Operating and Maintenance Supplies,General Fund,492.65,Fisher Scientific,Day,FISHER SCIENTIFIC,2a372c53-ae8f-4bd5-8564-48e194c49780
572,469,2020/07/08 00:00:00+00,Fire,Fire Land Suppression,Utilities and Waste,Gas Electric and Steam,General Fund,2094.72,Vicinity Energy Baltimore Heating LLP,Day,VICINITY ENERGY BALTIMORE HEATING LLP,8082f3a2-0c0f-493e-b0aa-d7214ad452e8
573,470,2020/07/08 00:00:00+00,Fire,Emergency Medical Services (EMS) Administration,Medical Supplies,Drugs,General Fund,2730,Citizens Pharmacy Services,Day,CITIZENS PHARMACY SERVICES,1e5394cd-d0a7-4bc3-944c-79b972712dfd
574,471,2020/07/08 00:00:00+00,Fire,Emergency Medical Services (EMS) Administration,Medical Supplies,Medical and Surgical Supplies,General Fund,3634.56,Stryker,Day,STRYKER,5aba9289-b220-469d-bf20-984c6c4102cc
575,472,2020/07/08 00:00:00+00,Fire,Emergency Medical Services (EMS) Administration,Medical Supplies,Drugs,General Fund,3695.3,Citizens Pharmacy Services,Day,CITIZENS PHARMACY SERVICES,668839f2-cc49-49a8-ac99-4e7fa4d9af07
576,473,2020/07/08 00:00:00+00,Fire,Emergency Medical Services (EMS) Administration,Medical Supplies,Medical and Surgical Supplies,General Fund,5253,Stryker,Day,STRYKER,f8b380e1-1096-4faf-8a71-c308d0e375fb
577,474,2020/07/08 00:00:00+00,Fire,Emergency Medical Services (EMS) Administration,Medical Supplies,Medical and Surgical Supplies,General Fund,19040,Stryker,Day,STRYKER,3357687c-02d7-482e-bb84-557ad4b473fb
578,475,2020/07/08 00:00:00+00,General Services,Facilities Building Maintenance (DGS),Repairs and Maintenance,Maintanance and Repair of Real Property,Building Maintenance Fund,143.73,Johnson Controls Inc.,Day,JOHNSON CONTROLS INC.,e5490944-b410-403e-a3a7-f8804090f0d4
579,476,2020/07/08 00:00:00+00,General Services,Facilities Building Maintenance (DGS),Repairs and Maintenance,Maintanance and Repair of Real Property,Building Maintenance Fund,144.7,Johnson Controls Inc.,Day,JOHNSON CONTROLS INC.,caf0ae92-3962-4ca4-ae04-7eb766586791
580,652,2020/07/08 00:00:00+00,M-R Office of Homeless Services,Homeless Street Outreach,Professional Services,Not Otherwise Classified,General Fund,410.25,Rudolph's Office & Computer Supply Inc.,Day,RUDOLPH'S OFFICE & COMPUTER SUPPLY INC.,b5824fc7-9a60-41ce-aa63-3b3a0627c49a
581,551,2020/07/08 00:00:00+00,Health,Communicable Disease and Ryan White,Office Operations,Rental of Business Machines,State Grants Fund,122,Douron Inc.,Day,DOURON INC.,2cc71613-df68-4208-a2c5-c3be1c501b8f
582,403,2020/07/07 00:00:00+00,Otherwise Classified,Fixed Costs Not Otherwise Classified,Professional Services,Professional Services,Stormwater Utility Fund,51.98,Teletrac Navman US ltd.,Day,TELETRAC NAVMAN US LTD.,ec5e4ad9-5b4c-4e97-b958-912ac8443625
583,477,2020/07/08 00:00:00+00,General Services,Fleet Support Services (DGS),Repairs and Maintenance,Maintanance and Repair of Real Property,Mobile Equipment Fund,166.89,Clean Fuels Associates,Day,CLEAN FUELS ASSOCIATES,0c19bb4e-194f-474b-9fbf-8c6b16ffd6ef
584,478,2020/07/08 00:00:00+00,General Services,Facilities Building Maintenance (DGS),Repairs and Maintenance,Maintanance and Repair of Real Property,Building Maintenance Fund,348.33,Johnson Controls Inc.,Day,JOHNSON CONTROLS INC.,16f3d69b-2b76-4bca-8769-907df8aa1e38
585,479,2020/07/08 00:00:00+00,General Services,Fleet Equipment Repair (DGS),Vehicles and Equipment,Vehicle Maintenance,Mobile Equipment Fund,350.2,Waddell Customs,Day,WADDELL CUSTOMS,d8f361dc-4f99-40fc-b659-6241edb32976
586,480,2020/07/08 00:00:00+00,General Services,Facilities Building Maintenance (DGS),Repairs and Maintenance,Maintanance and Repair of Real Property,Building Maintenance Fund,549.17,Johnson Controls Inc.,Day,JOHNSON CONTROLS INC.,fd895e81-29eb-42e1-83fb-4643fb8b6316
587,481,2020/07/08 00:00:00+00,General Services,Facilities Building Maintenance (DGS),Repairs and Maintenance,Maintanance and Repair of Real Property,Building Maintenance Fund,675,Arundel Services Inc dba Action Elevator Company,Day,ARUNDEL SERVICES INC DBA ACTION ELEVATOR COMPANY,2ab7d4b2-d5d5-459e-9e1a-e221cfef8b69
588,482,2020/07/08 00:00:00+00,General Services,Fleet Equipment Repair (DGS),Vehicles and Equipment,Vehicle Maintenance,Mobile Equipment Fund,736.83,Columbia Fleet Service,Day,COLUMBIA FLEET SERVICE,78a14453-1d6f-41c7-aee4-86fd30941376
589,483,2020/07/08 00:00:00+00,General Services,Fleet Equipment Repair (DGS),Vehicles and Equipment,Vehicle Maintenance,Mobile Equipment Fund,846.42,Columbia Fleet Service,Day,COLUMBIA FLEET SERVICE,982b5d2f-8a29-4f95-b886-c188d72e6dfc
590,484,2020/07/08 00:00:00+00,General Services,Fleet Equipment Repair (DGS),Vehicles and Equipment,Vehicle Maintenance,Mobile Equipment Fund,888.3,Waddell Customs,Day,WADDELL CUSTOMS,ba856922-855a-45bf-94fc-39656a718b26
591,485,2020/07/08 00:00:00+00,General Services,Fleet Equipment Repair (DGS),Vehicles and Equipment,Vehicle Maintenance,Mobile Equipment Fund,1008.79,Columbia Fleet Service,Day,COLUMBIA FLEET SERVICE,5d03c181-bae3-4469-b67f-533104539ca4
592,486,2020/07/08 00:00:00+00,General Services,Facilities Building Maintenance (DGS),Repairs and Maintenance,Maintanance and Repair of Real Property,Building Maintenance Fund,1012.5,Arundel Services Inc dba Action Elevator Company,Day,ARUNDEL SERVICES INC DBA ACTION ELEVATOR COMPANY,034f7e2b-d567-425e-9006-70cf2dbf77d8
593,487,2020/07/08 00:00:00+00,General Services,Facilities Building Maintenance (DGS),Repairs and Maintenance,Maintanance and Repair of Real Property,Building Maintenance Fund,1110.68,Johnson Controls Inc.,Day,JOHNSON CONTROLS INC.,c0fbc92f-818d-4780-b0e2-085663aa0eb5
594,488,2020/07/08 00:00:00+00,General Services,Facilities Building Maintenance (DGS),Repairs and Maintenance,Maintanance and Repair of Real Property,Building Maintenance Fund,1400,Arundel Services Inc dba Action Elevator Company,Day,ARUNDEL SERVICES INC DBA ACTION ELEVATOR COMPANY,7ca916d1-f81e-4771-a54e-c84ec543eb2e
595,489,2020/07/08 00:00:00+00,General Services,Facilities Building Maintenance (DGS),Repairs and Maintenance,Maintanance and Repair of Real Property,Building Maintenance Fund,1800,Arundel Services Inc dba Action Elevator Company,Day,ARUNDEL SERVICES INC DBA ACTION ELEVATOR COMPANY,9c0d4848-d2a2-4f7c-9031-001772260156
596,490,2020/07/08 00:00:00+00,General Services,Fleet Equipment Repair (DGS),Vehicles and Equipment,Vehicle Maintenance,Mobile Equipment Fund,2318.59,Waddell Customs,Day,WADDELL CUSTOMS,2a68c008-a74f-4b85-a8e6-a14f88e7cac4
597,491,2020/07/08 00:00:00+00,General Services,Fleet Support Services (DGS),Repairs and Maintenance,Maintanance and Repair of Real Property,Mobile Equipment Fund,2433.11,Clean Fuels Associates,Day,CLEAN FUELS ASSOCIATES,d1fdb530-7e29-46a8-82ae-1b74df4cef1c
598,492,2020/07/08 00:00:00+00,General Services,Facilities Building Maintenance (DGS),Repairs and Maintenance,Maintanance and Repair of Real Property,Building Maintenance Fund,3377.7,Johnson Controls Inc.,Day,JOHNSON CONTROLS INC.,d9966f49-785b-40e6-8ef2-1351e00e54d1
599,493,2020/07/08 00:00:00+00,General Services,Facilities Building Maintenance (DGS),Repairs and Maintenance,Maintanance and Repair of Real Property,Building Maintenance Fund,5231.25,Arundel Services Inc dba Action Elevator Company,Day,ARUNDEL SERVICES INC DBA ACTION ELEVATOR COMPANY,214cbba1-51c5-4cb8-a58d-575c62960b69
600,494,2020/07/08 00:00:00+00,General Services,Facilities Building Maintenance (DGS),Repairs and Maintenance,Maintanance and Repair of Real Property,Building Maintenance Fund,5568.89,Johnson Controls Inc.,Day,JOHNSON CONTROLS INC.,249236e8-7937-4e79-8ba8-7e9a9e6d9dd1
601,495,2020/07/08 00:00:00+00,General Services,Facilities Building Maintenance (DGS),Repairs and Maintenance,Maintanance and Repair of Real Property,Building Maintenance Fund,6517.05,Johnson Controls Inc.,Day,JOHNSON CONTROLS INC.,e5b9582f-4967-4d19-a92c-6acd797292ed
602,496,2020/07/08 00:00:00+00,General Services,Facilities Building Maintenance (DGS),Repairs and Maintenance,Maintanance and Repair of Real Property,Building Maintenance Fund,6866.79,Johnson Controls Inc.,Day,JOHNSON CONTROLS INC.,34e21f63-6084-4e1d-851e-44b7eece3ec3
603,497,2020/07/08 00:00:00+00,General Services,Fleet Equipment Repair (DGS),Vehicles and Equipment,Vehicle Maintenance,Mobile Equipment Fund,23075.48,Altec Industries Inc,Day,ALTEC INDUSTRIES INC,c1571cdc-60a8-4d67-87f4-7dbd089a66ae
604,498,2020/07/08 00:00:00+00,Health,Communicable Disease and Ryan White,Office Operations,Rental of Business Machines,State Grants Fund,20.8,Douron Inc.,Day,DOURON INC.,5c48934e-cc17-4431-8df7-a3694ff47e86
605,499,2020/07/08 00:00:00+00,Health,Communicable Disease and Ryan White,Office Operations,Rental of Business Machines,State Grants Fund,26,Douron Inc.,Day,DOURON INC.,d5eda702-cd7e-45fb-8f19-7de6e6a1b98c
606,500,2020/07/08 00:00:00+00,Health,Communicable Disease and Ryan White,Office Operations,Rental of Business Machines,State Grants Fund,28,Douron Inc.,Day,DOURON INC.,299dff5e-f604-49a2-bff0-e7ab8f2186e1
607,653,2020/07/08 00:00:00+00,M-R Office of Homeless Services,Homeless Street Outreach,Professional Services,Not Otherwise Classified,General Fund,413,Rudolph's Office & Computer Supply Inc.,Day,RUDOLPH'S OFFICE & COMPUTER SUPPLY INC.,abc8a8fb-455f-41e9-b950-d9ce52d6480c
608,552,2020/07/08 00:00:00+00,Health,Communicable Disease and Ryan White,Office Operations,Rental of Business Machines,State Grants Fund,122,Douron Inc.,Day,DOURON INC.,99792799-4511-4703-a03d-e9cfe6344e89
609,404,2020/07/07 00:00:00+00,Otherwise Classified,Fixed Costs Not Otherwise Classified,Major Equipment - Field,Major Pieces of Equipment,Federal Grants Fund,56,Northrop Grumman Systems Corporation,Day,NORTHROP GRUMMAN SYSTEMS CORPORATION,317357c9-bc7e-45f6-b135-3139d625b7ed
610,654,2020/07/08 00:00:00+00,M-R Office of Homeless Services,Homeless Street Outreach,Professional Services,Not Otherwise Classified,General Fund,460,Rudolph's Office & Computer Supply Inc.,Day,RUDOLPH'S OFFICE & COMPUTER SUPPLY INC.,c1ffb4e8-f403-44e6-9ca3-d67fd6014a05
611,405,2020/07/07 00:00:00+00,Otherwise Classified,Fixed Costs Not Otherwise Classified,Major Equipment - Field,Major Pieces of Equipment,Federal Grants Fund,56,Northrop Grumman Systems Corporation,Day,NORTHROP GRUMMAN SYSTEMS CORPORATION,b99d27de-0542-41e5-a8bc-01ca139a4b6b
612,655,2020/07/08 00:00:00+00,M-R Office of Homeless Services,Homeless Street Outreach,Professional Services,Not Otherwise Classified,General Fund,717.85,Rudolph's Office & Computer Supply Inc.,Day,RUDOLPH'S OFFICE & COMPUTER SUPPLY INC.,f5a3e564-7dc6-4440-9212-3a3ca3003b6f
613,406,2020/07/07 00:00:00+00,Otherwise Classified,Fixed Costs Not Otherwise Classified,Professional Services,Professional Services,Water Utility Fund,69.31,Teletrac Navman US ltd.,Day,TELETRAC NAVMAN US LTD.,7c915127-2876-4541-a82c-845cc0382e62
614,553,2020/07/08 00:00:00+00,Health,Communicable Disease and Ryan White,Office Operations,Rental of Business Machines,State Grants Fund,123.2,Douron Inc.,Day,DOURON INC.,a981dcbf-94cd-4ed4-a7d1-9806b440af52
615,656,2020/07/08 00:00:00+00,Police,Crime Laboratory (BPD),Minor Equipment - Field,Minor Pieces of Equipment,Federal Grants Fund,12.76,Fisher Scientific,Day,FISHER SCIENTIFIC,12de2064-b986-4413-a772-803374e891fa
616,407,2020/07/07 00:00:00+00,Otherwise Classified,Fixed Costs Not Otherwise Classified,Major Equipment - Field,Major Pieces of Equipment,Federal Grants Fund,71,Northrop Grumman Systems Corporation,Day,NORTHROP GRUMMAN SYSTEMS CORPORATION,8c0e8d33-76f6-41bb-9b38-04b0a7e38f1c
617,554,2020/07/08 00:00:00+00,Health,Communicable Disease and Ryan White,Office Operations,Rental of Business Machines,State Grants Fund,123.6,Douron Inc.,Day,DOURON INC.,ca80c722-a209-4f95-b9bc-b2acf8a313eb
618,657,2020/07/08 00:00:00+00,Police,Crime Laboratory (BPD),Minor Equipment - Field,Minor Pieces of Equipment,Federal Grants Fund,14.74,Fisher Scientific,Day,FISHER SCIENTIFIC,6b7ecd7c-f8c0-446f-a1ab-4447fae69976
619,408,2020/07/07 00:00:00+00,Otherwise Classified,Fixed Costs Not Otherwise Classified,Major Equipment - Field,Major Pieces of Equipment,Federal Grants Fund,81,Northrop Grumman Systems Corporation,Day,NORTHROP GRUMMAN SYSTEMS CORPORATION,8957b8da-3678-4d47-8e42-280d1d2d18d0
620,555,2020/07/08 00:00:00+00,Health,Communicable Disease and Ryan White,Office Operations,Rental of Business Machines,State Grants Fund,128,Douron Inc.,Day,DOURON INC.,8211b0fe-309d-436a-b48f-7b7bec9c0290
621,658,2020/07/08 00:00:00+00,Police,Crime Laboratory (BPD),Minor Equipment - Field,Minor Pieces of Equipment,Federal Grants Fund,15.18,Fisher Scientific,Day,FISHER SCIENTIFIC,d8f20a59-53fd-41b6-baf8-d7aa50b3bfc4
622,409,2020/07/07 00:00:00+00,Otherwise Classified,Fixed Costs Not Otherwise Classified,Professional Services,Professional Services,WasteWater Utility Fund,90.34,Teletrac Navman US ltd.,Day,TELETRAC NAVMAN US LTD.,b5e14760-29e5-46c3-8f67-fe1e4affee37
623,556,2020/07/08 00:00:00+00,Health,Communicable Disease and Ryan White,Office Operations,Rental of Business Machines,State Grants Fund,134.8,Douron Inc.,Day,DOURON INC.,32492e30-1a01-4a47-aefa-edc2cab4a80a
624,557,2020/07/08 00:00:00+00,Health,Communicable Disease and Ryan White,Office Operations,Rental of Business Machines,State Grants Fund,137.6,Douron Inc.,Day,DOURON INC.,6ce3ada0-d65b-48d9-a2e8-483388c27fa2
625,558,2020/07/08 00:00:00+00,Health,Communicable Disease and Ryan White,Office Operations,Rental of Business Machines,State Grants Fund,140,Douron Inc.,Day,DOURON INC.,9df2bc90-1d66-4e9a-9bca-e6529b9a39f4
626,559,2020/07/08 00:00:00+00,Health,Communicable Disease and Ryan White,Office Operations,Rental of Business Machines,State Grants Fund,144,Douron Inc.,Day,DOURON INC.,143426c4-3f09-4b5e-9e98-174810afbb8b
627,560,2020/07/08 00:00:00+00,Health,Communicable Disease and Ryan White,Office Operations,Rental of Business Machines,State Grants Fund,163.2,Douron Inc.,Day,DOURON INC.,b7acf2b7-7e55-443c-93b1-e4b53af6e36f
628,561,2020/07/08 00:00:00+00,Health,Communicable Disease and Ryan White,Office Operations,Rental of Business Machines,State Grants Fund,174.4,Douron Inc.,Day,DOURON INC.,ba2d4e37-3ec5-4a65-b748-0dd386a928b4
629,562,2020/07/08 00:00:00+00,Health,Communicable Disease and Ryan White,Office Operations,Rental of Business Machines,State Grants Fund,176.88,Douron Inc.,Day,DOURON INC.,c0e63e5c-a640-4d95-b388-022656cf8045
630,563,2020/07/08 00:00:00+00,Health,Communicable Disease and Ryan White,Office Operations,Rental of Business Machines,State Grants Fund,181.6,Douron Inc.,Day,DOURON INC.,2a1079c2-fc13-4cc0-9d2b-dcd429f05905
631,564,2020/07/08 00:00:00+00,Health,Communicable Disease and Ryan White,Office Operations,Rental of Business Machines,State Grants Fund,182.4,Douron Inc.,Day,DOURON INC.,504a2c4a-1560-45f4-b2f1-61c2b1be65b9
632,565,2020/07/08 00:00:00+00,Health,Communicable Disease and Ryan White,Office Operations,Rental of Business Machines,State Grants Fund,183.2,Douron Inc.,Day,DOURON INC.,8564c13e-b80b-444e-8bda-35dd8579ff17
633,566,2020/07/08 00:00:00+00,Health,Communicable Disease and Ryan White,Office Operations,Rental of Business Machines,State Grants Fund,184,Douron Inc.,Day,DOURON INC.,3ab8c319-333a-49a9-bfb2-0a666efb59c8
634,567,2020/07/08 00:00:00+00,Health,Communicable Disease and Ryan White,Office Operations,Rental of Business Machines,State Grants Fund,186,Douron Inc.,Day,DOURON INC.,c9ca8fe5-1d7e-4144-9770-87b1996a3738
635,568,2020/07/08 00:00:00+00,Health,Communicable Disease and Ryan White,Office Operations,Rental of Business Machines,State Grants Fund,186,Douron Inc.,Day,DOURON INC.,f6a7ba44-36da-415b-bde5-16b030954efd
636,569,2020/07/08 00:00:00+00,Health,Communicable Disease and Ryan White,Office Operations,Rental of Business Machines,State Grants Fund,197.6,Douron Inc.,Day,DOURON INC.,ff103996-9cc1-4370-b5fd-5d5019dfa489
637,570,2020/07/08 00:00:00+00,Health,WIC Supplemental Food,Professional Services,Professional Services,Federal Grants Fund,198,Runners Inc.,Day,RUNNERS INC.,419d9538-bffb-466a-ab2d-3b5410268322
638,571,2020/07/08 00:00:00+00,Health,Communicable Disease and Ryan White,Office Operations,Rental of Business Machines,State Grants Fund,198,Douron Inc.,Day,DOURON INC.,c100203e-897e-4092-9362-a26ac8f78c0c
639,572,2020/07/08 00:00:00+00,Health,Communicable Disease and Ryan White,Office Operations,Rental of Business Machines,State Grants Fund,205.6,Douron Inc.,Day,DOURON INC.,a8928ac6-414f-4b94-9a61-da6ab210b8ed
640,573,2020/07/08 00:00:00+00,Health,Communicable Disease and Ryan White,Office Operations,Rental of Business Machines,State Grants Fund,211.6,Douron Inc.,Day,DOURON INC.,a37c7890-ae05-4870-b79a-047595767f9e
641,574,2020/07/08 00:00:00+00,Health,Communicable Disease and Ryan White,Office Operations,Rental of Business Machines,State Grants Fund,214,Douron Inc.,Day,DOURON INC.,3b8fec90-dacb-4c93-be85-07e2223de271
642,575,2020/07/08 00:00:00+00,Health,Communicable Disease and Ryan White,Office Operations,Rental of Business Machines,State Grants Fund,220.8,Douron Inc.,Day,DOURON INC.,20a84581-7917-4759-94e7-587b7531c351
643,576,2020/07/08 00:00:00+00,Health,Communicable Disease and Ryan White,Office Operations,Rental of Business Machines,State Grants Fund,226.8,Douron Inc.,Day,DOURON INC.,9f8cb722-42ac-4cd5-8a90-235508d10370
644,577,2020/07/08 00:00:00+00,Health,Communicable Disease and Ryan White,Office Operations,Rental of Business Machines,State Grants Fund,240.8,Douron Inc.,Day,DOURON INC.,b34b7d4b-9519-40d2-92a0-1a35a9a5b9c1
645,578,2020/07/08 00:00:00+00,Health,Communicable Disease and Ryan White,Office Operations,Rental of Business Machines,State Grants Fund,243.6,Douron Inc.,Day,DOURON INC.,36aaad5d-a856-4369-8ebd-bfc3f5545dc0
646,579,2020/07/08 00:00:00+00,Health,Communicable Disease and Ryan White,Office Operations,Rental of Business Machines,State Grants Fund,243.6,Douron Inc.,Day,DOURON INC.,e06be360-1b3b-4639-a98c-0f639e618685
647,580,2020/07/08 00:00:00+00,Health,Communicable Disease and Ryan White,Office Operations,Rental of Business Machines,State Grants Fund,256,Douron Inc.,Day,DOURON INC.,308eadaf-4174-45c9-8a56-dab198db5812
648,581,2020/07/08 00:00:00+00,Health,Communicable Disease and Ryan White,Office Operations,Rental of Business Machines,State Grants Fund,256,Douron Inc.,Day,DOURON INC.,1d472173-7bc4-4b90-a988-5bbdeac15ba1
649,582,2020/07/08 00:00:00+00,Health,Communicable Disease and Ryan White,Office Operations,Rental of Business Machines,State Grants Fund,256.8,Douron Inc.,Day,DOURON INC.,2141a32d-56d3-4ca3-b952-20742f6ba0fc
650,583,2020/07/08 00:00:00+00,Health,Communicable Disease and Ryan White,Office Operations,Rental of Business Machines,State Grants Fund,260,Douron Inc.,Day,DOURON INC.,4a142b5c-3dfb-455b-9948-a4b9649dd0e9
651,584,2020/07/08 00:00:00+00,Health,Communicable Disease and Ryan White,Office Operations,Rental of Business Machines,State Grants Fund,263.6,Douron Inc.,Day,DOURON INC.,bd4bd08b-4e72-4230-b298-26c33960c990
652,585,2020/07/08 00:00:00+00,Health,Communicable Disease and Ryan White,Office Operations,Rental of Business Machines,State Grants Fund,272.4,Douron Inc.,Day,DOURON INC.,bece2a29-9943-4719-be62-2dc8fe81d983
653,586,2020/07/08 00:00:00+00,Health,Communicable Disease and Ryan White,Office Operations,Rental of Business Machines,State Grants Fund,282,Douron Inc.,Day,DOURON INC.,5d020fc8-d838-4a45-b013-c0d75f1d9486
654,587,2020/07/08 00:00:00+00,Health,Communicable Disease and Ryan White,Office Operations,Rental of Business Machines,State Grants Fund,283.2,Douron Inc.,Day,DOURON INC.,711f53b2-84b8-4c20-96d5-55987c7d8691
655,588,2020/07/08 00:00:00+00,Health,Communicable Disease and Ryan White,Office Operations,Rental of Business Machines,State Grants Fund,283.2,Douron Inc.,Day,DOURON INC.,beab06a7-7fb1-473f-8c66-b4bae010e4d0
656,589,2020/07/08 00:00:00+00,Health,Communicable Disease and Ryan White,Office Operations,Rental of Business Machines,State Grants Fund,291.2,Douron Inc.,Day,DOURON INC.,1f28b8e0-148a-4f16-ba83-1fbc3642d135
657,590,2020/07/08 00:00:00+00,Health,Communicable Disease and Ryan White,Office Operations,Rental of Business Machines,State Grants Fund,302.4,Douron Inc.,Day,DOURON INC.,af42f02b-ed14-4165-9bad-1033987226c2
658,591,2020/07/08 00:00:00+00,Health,Communicable Disease and Ryan White,Office Operations,Rental of Business Machines,State Grants Fund,302.4,Douron Inc.,Day,DOURON INC.,cc15f4af-6ea5-4a25-b4de-734355f13fcc
659,592,2020/07/08 00:00:00+00,Health,Communicable Disease and Ryan White,Office Operations,Rental of Business Machines,State Grants Fund,327.6,Douron Inc.,Day,DOURON INC.,7aa12f13-ff14-4e71-b195-0ffc75695b8f
660,593,2020/07/08 00:00:00+00,Health,Communicable Disease and Ryan White,Office Operations,Rental of Business Machines,State Grants Fund,331.2,Douron Inc.,Day,DOURON INC.,a799e5bd-66f5-4418-bf51-a0c0f37f5aa0
661,594,2020/07/08 00:00:00+00,Health,Communicable Disease and Ryan White,Office Operations,Rental of Business Machines,State Grants Fund,356,Douron Inc.,Day,DOURON INC.,d50c520e-4357-47d8-950c-d66ea3585124
662,595,2020/07/08 00:00:00+00,Health,Communicable Disease and Ryan White,Office Operations,Rental of Business Machines,State Grants Fund,376,Douron Inc.,Day,DOURON INC.,fd532069-16e2-45ca-8eaa-2db5c60f75b5
663,596,2020/07/08 00:00:00+00,Health,Communicable Disease and Ryan White,Office Operations,Rental of Business Machines,State Grants Fund,415.2,Douron Inc.,Day,DOURON INC.,6a1c647d-c428-408d-83c7-4508a62e5c88
664,597,2020/07/08 00:00:00+00,Health,Sexually Transmitted Disease Control,Professional Services,Professional Services,General Fund,429.99,Language Line Services Inc.  DBA Language Line Solutions,Day,LANGUAGE LINE SERVICES INC.  DBA LANGUAGE LINE SOLUTIONS,9d1146db-2443-4d65-a166-acb675c9bba6
665,598,2020/07/08 00:00:00+00,Health,Communicable Disease and Ryan White,Office Operations,Rental of Business Machines,State Grants Fund,434,Douron Inc.,Day,DOURON INC.,8176fe61-a3df-4b83-9e05-bd244cc8cab9
666,599,2020/07/08 00:00:00+00,Health,Communicable Disease and Ryan White,Office Operations,Rental of Business Machines,State Grants Fund,436.8,Douron Inc.,Day,DOURON INC.,bb444e34-899d-4724-b855-c501a9461f3d
667,600,2020/07/08 00:00:00+00,Health,Communicable Disease and Ryan White,Office Operations,Rental of Business Machines,State Grants Fund,441.6,Douron Inc.,Day,DOURON INC.,3078c36c-20f8-4f63-8d13-4e60196dd7d1
668,659,2020/07/08 00:00:00+00,Police,Crime Laboratory (BPD),Cleaning and Maintenance Supplies,General Operating and Maintenance Supplies,General Fund,20,ABC Box Company,Day,ABC BOX COMPANY,be8764ed-0092-4212-8388-9fecca60d560
669,660,2020/07/08 00:00:00+00,Police,Crime Laboratory (BPD),Minor Equipment - Field,Minor Pieces of Equipment,Federal Grants Fund,29.8,Fisher Scientific,Day,FISHER SCIENTIFIC,7d40e49b-16a3-4d4c-8cdc-cc5d234c77eb
670,661,2020/07/08 00:00:00+00,Police,Crime Laboratory (BPD),Minor Equipment - Field,Minor Pieces of Equipment,Federal Grants Fund,120.56,Fisher Scientific,Day,FISHER SCIENTIFIC,37f2cedc-f204-459c-a872-07ff83ee55fe
671,662,2020/07/08 00:00:00+00,Police,Crime Laboratory (BPD),Cleaning and Maintenance Supplies,General Operating and Maintenance Supplies,General Fund,1250,ABC Box Company,Day,ABC BOX COMPANY,90b808b7-50de-4f6b-8ac1-78ca292b3701
672,663,2020/07/08 00:00:00+00,Police,Asset Management (BPD),Vehicles and Equipment,Rental of Outside Vehicles,General Fund,5070.2,Acme Auto Leasing LLC,Day,ACME AUTO LEASING LLC,8aae7bd1-44a1-47f6-9e13-83dafe8566b3
673,664,2020/07/08 00:00:00+00,Police,Crime Laboratory (BPD),Professional Services,Professional Services,General Fund,6000.3,SurveyMonkey Inc.,Day,SURVEYMONKEY INC.,237e9839-4568-4c55-99a1-c8616ceceed9
674,665,2020/07/08 00:00:00+00,Police,Asset Management (BPD),Vehicles and Equipment,Rental of Outside Vehicles,General Fund,44405.22,Acme Auto Leasing LLC,Day,ACME AUTO LEASING LLC,7c672013-9b15-4647-83d5-de329efe6cb1
675,666,2020/07/08 00:00:00+00,Public Works,Cleaning of Business Districts,Employee Supplies,Clothing And Footwear,General Fund,5.82,Cintas Corporation No. 2,Day,CINTAS CORPORATION NO. 2,1454135b-e7ee-40de-b792-64301302fa0d
676,667,2020/07/08 00:00:00+00,Public Works,Cleaning of Business Districts,Employee Supplies,Clothing And Footwear,General Fund,5.82,Cintas Corporation No. 2,Day,CINTAS CORPORATION NO. 2,3dafbc9f-ab6c-4999-8cd8-32516a263f85
677,668,2020/07/08 00:00:00+00,Public Works,Casino Support Sanitation Staffing (DPW),Employee Supplies,Clothing And Footwear,Baltimore Casino,5.82,Cintas Corporation No. 2,Day,CINTAS CORPORATION NO. 2,b4a81cd8-78ca-42f1-8e13-21d699b68361
678,669,2020/07/08 00:00:00+00,Public Works,Casino Support Sanitation Staffing (DPW),Employee Supplies,Clothing And Footwear,Baltimore Casino,5.82,Cintas Corporation No. 2,Day,CINTAS CORPORATION NO. 2,3858022b-4d1f-4a62-9cf0-eb77210e22c7
679,670,2020/07/08 00:00:00+00,Public Works,DPW Marine Operations,Employee Supplies,Clothing And Footwear,General Fund,15.5,Cintas Corporation No. 2,Day,CINTAS CORPORATION NO. 2,2bdce897-4937-45f8-aced-1a8f55010059
680,671,2020/07/08 00:00:00+00,Public Works,DPW Marine Operations,Employee Supplies,Clothing And Footwear,General Fund,15.5,Cintas Corporation No. 2,Day,CINTAS CORPORATION NO. 2,660a61a8-d972-460c-8100-ace91f1908ef
681,672,2020/07/08 00:00:00+00,Public Works,Graffiti Removal,Employee Supplies,Clothing And Footwear,General Fund,15.51,Cintas Corporation No. 2,Day,CINTAS CORPORATION NO. 2,81dbb0ed-a1a7-427c-bb56-b94acce2d6b1
682,673,2020/07/08 00:00:00+00,Public Works,Graffiti Removal,Employee Supplies,Clothing And Footwear,General Fund,15.51,Cintas Corporation No. 2,Day,CINTAS CORPORATION NO. 2,2a226e82-4aed-424c-a9b9-2728c89aee95
683,674,2020/07/08 00:00:00+00,Public Works,Bulk Trash Collection,Employee Supplies,Clothing And Footwear,General Fund,23.26,Cintas Corporation No. 2,Day,CINTAS CORPORATION NO. 2,17ca2660-f22c-431e-aaf3-803ead0fa017
684,410,2020/07/07 00:00:00+00,Otherwise Classified,Fixed Costs Not Otherwise Classified,Major Equipment - Field,Major Pieces of Equipment,Federal Grants Fund,92,Northrop Grumman Systems Corporation,Day,NORTHROP GRUMMAN SYSTEMS CORPORATION,c34ab6d1-c29f-41e7-a948-4364a8c83265
685,675,2020/07/08 00:00:00+00,Public Works,Bulk Trash Collection,Employee Supplies,Clothing And Footwear,General Fund,23.26,Cintas Corporation No. 2,Day,CINTAS CORPORATION NO. 2,a9fc560e-c986-4989-a42e-c62ccc8bdf38
686,676,2020/07/08 00:00:00+00,Public Works,Rat Control,Employee Supplies,Clothing And Footwear,General Fund,27.13,Cintas Corporation No. 2,Day,CINTAS CORPORATION NO. 2,e72bd0b2-1978-4971-be2a-c87986e4737e
687,677,2020/07/08 00:00:00+00,Public Works,Rat Control,Employee Supplies,Clothing And Footwear,General Fund,27.13,Cintas Corporation No. 2,Day,CINTAS CORPORATION NO. 2,ef7c13ef-b400-4a9b-ab0c-0c8cc6e0b5f3
688,678,2020/07/08 00:00:00+00,Public Works,Northwest Transfer Station Operation,Employee Supplies,Clothing And Footwear,General Fund,36.82,Cintas Corporation No. 2,Day,CINTAS CORPORATION NO. 2,75c2279e-e71a-4d91-9abb-cf09d727c4ea
689,679,2020/07/08 00:00:00+00,Public Works,Northwest Transfer Station Operation,Employee Supplies,Clothing And Footwear,General Fund,36.82,Cintas Corporation No. 2,Day,CINTAS CORPORATION NO. 2,1b90824b-2546-4872-940d-786ab723d14c
690,680,2020/07/08 00:00:00+00,Public Works,Condominium Collections,Employee Supplies,Clothing And Footwear,General Fund,46.51,Cintas Corporation No. 2,Day,CINTAS CORPORATION NO. 2,a7e30315-5932-4ea3-8468-a22b77c450bd
691,681,2020/07/08 00:00:00+00,Public Works,Condominium Collections,Employee Supplies,Clothing And Footwear,General Fund,46.51,Cintas Corporation No. 2,Day,CINTAS CORPORATION NO. 2,7402459f-f19c-44c8-a4eb-8a451436ce72
692,682,2020/07/08 00:00:00+00,Public Works,Landfill Operation,Employee Supplies,Clothing And Footwear,General Fund,48.45,Cintas Corporation No. 2,Day,CINTAS CORPORATION NO. 2,2811871e-3cf0-4218-aeff-70345d1747bd
693,683,2020/07/08 00:00:00+00,Public Works,Landfill Operation,Employee Supplies,Clothing And Footwear,General Fund,48.45,Cintas Corporation No. 2,Day,CINTAS CORPORATION NO. 2,166a94fe-456f-43ab-b379-0be2c6f2bec4
694,684,2020/07/08 00:00:00+00,Public Works,Mechanical Sweeping Operation,Employee Supplies,Clothing And Footwear,Stormwater Utility Fund,58.14,Cintas Corporation No. 2,Day,CINTAS CORPORATION NO. 2,fd256d1a-fae0-4fcc-909a-9a761330f1db
695,685,2020/07/08 00:00:00+00,Public Works,Mechanical Sweeping Operation,Employee Supplies,Clothing And Footwear,Stormwater Utility Fund,58.14,Cintas Corporation No. 2,Day,CINTAS CORPORATION NO. 2,9c1b2b20-3227-4deb-ba52-822f8da97e8a
696,686,2020/07/08 00:00:00+00,Public Works,Vacant Abandoned Property Cleaning and Boarding,Employee Supplies,Clothing And Footwear,General Fund,166.67,Cintas Corporation No. 2,Day,CINTAS CORPORATION NO. 2,1c1fb770-75d3-4e44-bfaa-c66ef2cf0964
697,687,2020/07/08 00:00:00+00,Public Works,Vacant Abandoned Property Cleaning and Boarding,Employee Supplies,Clothing And Footwear,General Fund,166.67,Cintas Corporation No. 2,Day,CINTAS CORPORATION NO. 2,17c29af0-690c-4523-94f9-66c008ee5d2a
698,688,2020/07/08 00:00:00+00,Public Works,Street and Alley Cleaning,Employee Supplies,Clothing And Footwear,General Fund,220.93,Cintas Corporation No. 2,Day,CINTAS CORPORATION NO. 2,cf2a49db-8753-4099-9a06-d3160c75ca54
699,689,2020/07/08 00:00:00+00,Public Works,Street and Alley Cleaning,Employee Supplies,Clothing And Footwear,General Fund,220.93,Cintas Corporation No. 2,Day,CINTAS CORPORATION NO. 2,19d4dbd0-b961-4c3e-b70c-e46710b14b5c
700,690,2020/07/08 00:00:00+00,Public Works,Mixed Refuse Collection,Employee Supplies,Clothing And Footwear,General Fund,505.82,Cintas Corporation No. 2,Day,CINTAS CORPORATION NO. 2,7e12d6b3-aaea-46f9-9b77-eceb9c9a1749
701,691,2020/07/08 00:00:00+00,Public Works,Mixed Refuse Collection,Employee Supplies,Clothing And Footwear,General Fund,505.82,Cintas Corporation No. 2,Day,CINTAS CORPORATION NO. 2,23bd9bb1-26aa-4d7f-b0b3-29efb09ff298
702,692,2020/07/08 00:00:00+00,Public Works,Wastewater Laboratory Services,Cleaning and Maintenance Supplies,General Operating and Maintenance Supplies,WasteWater Utility Fund,685.2,Fisher Scientific,Day,FISHER SCIENTIFIC,cd91e597-8f18-4b28-9d60-73edb3dbf0e6
703,693,2020/07/08 00:00:00+00,Public Works,Street and Alley Cleaning,Cleaning and Maintenance Supplies,General Operating and Maintenance Supplies,General Fund,1299,Suburban Sales & Rental Center Inc.,Day,SUBURBAN SALES & RENTAL CENTER INC.,754ba0e5-ff90-459e-aa68-e7bc6511fbfa
704,694,2020/07/08 00:00:00+00,Public Works,Street and Alley Cleaning,Cleaning and Maintenance Supplies,General Operating and Maintenance Supplies,General Fund,1697.5,Suburban Sales & Rental Center Inc.,Day,SUBURBAN SALES & RENTAL CENTER INC.,ea3386b2-66a8-4cac-bd80-ce77042632f4
705,695,2020/07/08 00:00:00+00,Public Works,Street and Alley Cleaning,Cleaning and Maintenance Supplies,General Operating and Maintenance Supplies,General Fund,2199,Suburban Sales & Rental Center Inc.,Day,SUBURBAN SALES & RENTAL CENTER INC.,b348f973-72af-4dba-ab50-6bd2e81933e3
706,696,2020/07/08 00:00:00+00,Public Works,Wastewater Laboratory Services,Cleaning and Maintenance Supplies,General Operating and Maintenance Supplies,WasteWater Utility Fund,3762,Fisher Scientific,Day,FISHER SCIENTIFIC,23f38e95-4b96-4a44-9c27-cb0af73a2a39
707,697,2020/07/08 00:00:00+00,Public Works,Patapsco Wastewater Treatment Plant Operations,Facility Operating Supplies,Chemical Supplies,WasteWater Utility Fund,4376.47,PVS Chemical Solutions Inc.,Day,PVS CHEMICAL SOLUTIONS INC.,e91f63d3-df6a-48ec-acfa-c427f431c54d
708,698,2020/07/08 00:00:00+00,Public Works,Wastewater Laboratory Services,Cleaning and Maintenance Supplies,General Operating and Maintenance Supplies,WasteWater Utility Fund,4571.88,Fisher Scientific,Day,FISHER SCIENTIFIC,fea4d4d9-abbb-4515-aeeb-70b189be89a1
709,699,2020/07/08 00:00:00+00,Public Works,Patapsco Wastewater Treatment Plant Operations,Facility Operating Supplies,Chemical Supplies,WasteWater Utility Fund,9602.58,Univar Solutions USA Inc.,Day,UNIVAR SOLUTIONS USA INC.,6ae50a7e-622f-4814-8955-8a099198451e
710,700,2020/07/08 00:00:00+00,Transportation,Jones Falls A and B Lots,Office Operations,Security and Alarm Services,Parking Management (General Fund),50.95,Abacus Corporation,Day,ABACUS CORPORATION,c29b47b0-4743-4e4d-b9dc-0255abad6763
711,411,2020/07/07 00:00:00+00,Otherwise Classified,Fixed Costs Not Otherwise Classified,Major Equipment - Field,Major Pieces of Equipment,Federal Grants Fund,135,Northrop Grumman Systems Corporation,Day,NORTHROP GRUMMAN SYSTEMS CORPORATION,f061038f-339e-42ea-8790-287254ba1908
712,412,2020/07/07 00:00:00+00,Otherwise Classified,Fixed Costs Not Otherwise Classified,Professional Services,Professional Services,General Fund,155.96,Teletrac Navman US ltd.,Day,TELETRAC NAVMAN US LTD.,a518c0c2-2e36-4859-872e-89aeec6bb7a1
713,413,2020/07/07 00:00:00+00,Otherwise Classified,Fixed Costs Not Otherwise Classified,Professional Services,Professional Services,Water Utility Fund,173.29,Teletrac Navman US ltd.,Day,TELETRAC NAVMAN US LTD.,1dccfbd6-4702-4aa6-b8ae-b612fd238a5f
714,414,2020/07/07 00:00:00+00,Otherwise Classified,Fixed Costs Not Otherwise Classified,Professional Services,Professional Services,Water Utility Fund,173.29,Teletrac Navman US ltd.,Day,TELETRAC NAVMAN US LTD.,b4453f6d-5a8e-4465-b1d8-f4c6c5c7368c
715,415,2020/07/07 00:00:00+00,Otherwise Classified,Fixed Costs Not Otherwise Classified,Cleaning and Maintenance Supplies,General Operating and Maintenance Supplies,WasteWater Utility Fund,190.08,Fisher Scientific,Day,FISHER SCIENTIFIC,104840f4-0dad-4221-8b76-89e0f54b7ea1
716,416,2020/07/07 00:00:00+00,Otherwise Classified,Fixed Costs Not Otherwise Classified,Professional Services,Professional Services,WasteWater Utility Fund,200.38,Teletrac Navman US ltd.,Day,TELETRAC NAVMAN US LTD.,5f62b1ed-e675-45ca-b839-5a47618f8f63
717,417,2020/07/07 00:00:00+00,Otherwise Classified,Fixed Costs Not Otherwise Classified,Professional Services,Professional Services,General Fund,225,Forest Valley Tree & Turf LLC DBA New Level Tree & Lawn,Day,FOREST VALLEY TREE & TURF LLC DBA NEW LEVEL TREE & LAWN,29a5d3a1-5b8d-49b5-bf05-d373538febe0
718,418,2020/07/07 00:00:00+00,Otherwise Classified,Fixed Costs Not Otherwise Classified,Major Equipment - Field,Major Pieces of Equipment,Federal Grants Fund,230,Northrop Grumman Systems Corporation,Day,NORTHROP GRUMMAN SYSTEMS CORPORATION,25909bec-e6a3-4f72-9ed3-70f55d52d69e
719,419,2020/07/07 00:00:00+00,Otherwise Classified,Fixed Costs Not Otherwise Classified,Professional Services,Professional Services,Water Utility Fund,277.26,Teletrac Navman US ltd.,Day,TELETRAC NAVMAN US LTD.,ee9d7fcf-1b66-4d39-923b-bb794ab8b9be
720,420,2020/07/07 00:00:00+00,Otherwise Classified,Fixed Costs Not Otherwise Classified,Major Equipment - Field,Major Pieces of Equipment,Federal Grants Fund,290,Northrop Grumman Systems Corporation,Day,NORTHROP GRUMMAN SYSTEMS CORPORATION,3386e54f-8a3d-44a5-8c87-8a9c430d0f3d
721,421,2020/07/07 00:00:00+00,Otherwise Classified,Fixed Costs Not Otherwise Classified,Cleaning and Maintenance Supplies,General Operating and Maintenance Supplies,WasteWater Utility Fund,350,Whel-Tech Inc,Day,WHEL-TECH INC,39034f92-e8d0-4f94-bcce-2da86cbabca4
722,422,2020/07/07 00:00:00+00,Otherwise Classified,Fixed Costs Not Otherwise Classified,Major Equipment - Field,Major Pieces of Equipment,Federal Grants Fund,440,Northrop Grumman Systems Corporation,Day,NORTHROP GRUMMAN SYSTEMS CORPORATION,8f38af84-ff2d-48fd-bcbf-61bb7c5902d4
723,423,2020/07/07 00:00:00+00,Otherwise Classified,Fixed Costs Not Otherwise Classified,Major Equipment - Field,Major Pieces of Equipment,Federal Grants Fund,440,Northrop Grumman Systems Corporation,Day,NORTHROP GRUMMAN SYSTEMS CORPORATION,2044fc1d-2211-4945-adb1-197bbd4e8cbb
724,424,2020/07/07 00:00:00+00,Otherwise Classified,Fixed Costs Not Otherwise Classified,Major Equipment - Field,Major Pieces of Equipment,Federal Grants Fund,440,Northrop Grumman Systems Corporation,Day,NORTHROP GRUMMAN SYSTEMS CORPORATION,46e691ae-b155-42c7-9638-fe13765a5e70
725,425,2020/07/07 00:00:00+00,Otherwise Classified,Fixed Costs Not Otherwise Classified,Major Equipment - Field,Major Pieces of Equipment,Federal Grants Fund,452,Northrop Grumman Systems Corporation,Day,NORTHROP GRUMMAN SYSTEMS CORPORATION,f6bccb97-95b6-40fa-9ce1-18c1de440a57
726,426,2020/07/07 00:00:00+00,Otherwise Classified,Fixed Costs Not Otherwise Classified,Major Equipment - Field,Major Pieces of Equipment,Federal Grants Fund,512,Northrop Grumman Systems Corporation,Day,NORTHROP GRUMMAN SYSTEMS CORPORATION,e6b67ed2-1ae0-4382-bd0b-3a05ce3e41da
727,427,2020/07/07 00:00:00+00,Otherwise Classified,Fixed Costs Not Otherwise Classified,Major Equipment - Field,Major Pieces of Equipment,Federal Grants Fund,550,Northrop Grumman Systems Corporation,Day,NORTHROP GRUMMAN SYSTEMS CORPORATION,6f0cc0a5-65ec-43c3-896b-0081299de095
728,428,2020/07/07 00:00:00+00,Otherwise Classified,Fixed Costs Not Otherwise Classified,Major Equipment - Field,Major Pieces of Equipment,Federal Grants Fund,616,Northrop Grumman Systems Corporation,Day,NORTHROP GRUMMAN SYSTEMS CORPORATION,3e906773-131c-4c27-a7f3-e2bf59a8d143
729,429,2020/07/07 00:00:00+00,Otherwise Classified,Fixed Costs Not Otherwise Classified,Professional Services,Professional Services,General Fund,640,Forest Valley Tree & Turf LLC DBA New Level Tree & Lawn,Day,FOREST VALLEY TREE & TURF LLC DBA NEW LEVEL TREE & LAWN,391f6c0c-d8a5-43a0-9367-2c2431559220
730,430,2020/07/07 00:00:00+00,Otherwise Classified,Fixed Costs Not Otherwise Classified,Major Equipment - Field,Major Pieces of Equipment,Federal Grants Fund,646,Northrop Grumman Systems Corporation,Day,NORTHROP GRUMMAN SYSTEMS CORPORATION,8196bf20-65dc-4e0d-8b53-b0d8da36af65
731,431,2020/07/07 00:00:00+00,Otherwise Classified,Fixed Costs Not Otherwise Classified,Cleaning and Maintenance Supplies,General Operating and Maintenance Supplies,WasteWater Utility Fund,668.4,Fisher Scientific,Day,FISHER SCIENTIFIC,3efda91d-50d5-4c08-a802-17df48f0bfc4
732,432,2020/07/07 00:00:00+00,Otherwise Classified,Fixed Costs Not Otherwise Classified,Professional Services,Professional Services,General Fund,670,Forest Valley Tree & Turf LLC DBA New Level Tree & Lawn,Day,FOREST VALLEY TREE & TURF LLC DBA NEW LEVEL TREE & LAWN,fb8672ae-5a36-4165-a79a-f47d3f1ca943
733,433,2020/07/07 00:00:00+00,Otherwise Classified,Fixed Costs Not Otherwise Classified,Cleaning and Maintenance Supplies,General Operating and Maintenance Supplies,WasteWater Utility Fund,765,Whel-Tech Inc,Day,WHEL-TECH INC,6f4a7207-a5e8-46e8-a53d-4de3261e939d
734,434,2020/07/07 00:00:00+00,Otherwise Classified,Fixed Costs Not Otherwise Classified,Major Equipment - Field,Major Pieces of Equipment,Federal Grants Fund,768,Northrop Grumman Systems Corporation,Day,NORTHROP GRUMMAN SYSTEMS CORPORATION,0f0ee1c2-da34-461f-9e45-3c8ae4da6917
735,435,2020/07/07 00:00:00+00,Otherwise Classified,Fixed Costs Not Otherwise Classified,Professional Services,Professional Services,General Fund,795,Forest Valley Tree & Turf LLC DBA New Level Tree & Lawn,Day,FOREST VALLEY TREE & TURF LLC DBA NEW LEVEL TREE & LAWN,6d31f129-218f-4dcc-8030-b50a9e8bbfc2
736,436,2020/07/07 00:00:00+00,Otherwise Classified,Fixed Costs Not Otherwise Classified,Professional Services,Professional Services,General Fund,900,Forest Valley Tree & Turf LLC DBA New Level Tree & Lawn,Day,FOREST VALLEY TREE & TURF LLC DBA NEW LEVEL TREE & LAWN,d0f60e18-6682-438b-aa4a-dde338bd00ff
737,437,2020/07/07 00:00:00+00,Otherwise Classified,Fixed Costs Not Otherwise Classified,Major Equipment - Field,Major Pieces of Equipment,Federal Grants Fund,1155,Northrop Grumman Systems Corporation,Day,NORTHROP GRUMMAN SYSTEMS CORPORATION,ebfc6c5d-7afe-4d1e-8c3c-9ff25875ca37
738,438,2020/07/07 00:00:00+00,Otherwise Classified,Fixed Costs Not Otherwise Classified,Professional Services,Professional Services,General Fund,1325,Forest Valley Tree & Turf LLC DBA New Level Tree & Lawn,Day,FOREST VALLEY TREE & TURF LLC DBA NEW LEVEL TREE & LAWN,9bfe7d72-a65a-407f-ba81-0e2eb1904930
739,439,2020/07/07 00:00:00+00,Otherwise Classified,Fixed Costs Not Otherwise Classified,Major Equipment - Field,Major Pieces of Equipment,Federal Grants Fund,1333,Northrop Grumman Systems Corporation,Day,NORTHROP GRUMMAN SYSTEMS CORPORATION,3516fa54-33ea-4536-8241-8d3275e30908
740,440,2020/07/07 00:00:00+00,Otherwise Classified,Fixed Costs Not Otherwise Classified,Fuel,Heating Fuels,Water Utility Fund,1585.57,PAPCO Inc.,Day,PAPCO INC.,d26edc53-131e-4eb7-a3a8-64ca95c8cfff
741,441,2020/07/07 00:00:00+00,Otherwise Classified,Fixed Costs Not Otherwise Classified,Major Equipment - Field,Major Pieces of Equipment,Federal Grants Fund,1600,Northrop Grumman Systems Corporation,Day,NORTHROP GRUMMAN SYSTEMS CORPORATION,110094a0-8166-428b-a3bd-741f8e05235a
742,442,2020/07/07 00:00:00+00,Otherwise Classified,Fixed Costs Not Otherwise Classified,Major Equipment - Field,Major Pieces of Equipment,Federal Grants Fund,1760,Northrop Grumman Systems Corporation,Day,NORTHROP GRUMMAN SYSTEMS CORPORATION,34b2dd47-37d6-4763-899d-c501615a57be
743,443,2020/07/07 00:00:00+00,Otherwise Classified,Fixed Costs Not Otherwise Classified,Professional Services,Professional Services,Special Revenue,1785.15,P.A.M. Services,Day,P.A.M. SERVICES,86f752ad-50fc-4035-86f9-184cef4f9ac3
744,444,2020/07/07 00:00:00+00,Otherwise Classified,Fixed Costs Not Otherwise Classified,Major Equipment - Field,Major Pieces of Equipment,Federal Grants Fund,1941,Northrop Grumman Systems Corporation,Day,NORTHROP GRUMMAN SYSTEMS CORPORATION,39b96085-bee7-4b7d-999f-f98e4ae89798
745,445,2020/07/07 00:00:00+00,Otherwise Classified,Fixed Costs Not Otherwise Classified,Professional Services,Professional Services,Special Revenue,2025,P.A.M. Services,Day,P.A.M. SERVICES,641c31b2-27a0-4b2e-8461-6556e3f0f414
746,446,2020/07/07 00:00:00+00,Otherwise Classified,Fixed Costs Not Otherwise Classified,Professional Services,Professional Services,Special Revenue,2025,P.A.M. Services,Day,P.A.M. SERVICES,6957a098-4d7d-4dba-bd87-499b1ac84c29
747,447,2020/07/07 00:00:00+00,Otherwise Classified,Fixed Costs Not Otherwise Classified,Professional Services,Professional Services,Special Revenue,2025,P.A.M. Services,Day,P.A.M. SERVICES,788944cd-5306-461b-9190-7ffc1006c882
748,448,2020/07/07 00:00:00+00,Otherwise Classified,Fixed Costs Not Otherwise Classified,Professional Services,Professional Services,Special Revenue,2025,P.A.M. Services,Day,P.A.M. SERVICES,de5b17ed-5c36-48ac-94ea-ea0b4787f570
749,449,2020/07/07 00:00:00+00,Otherwise Classified,Fixed Costs Not Otherwise Classified,Professional Services,Professional Services,General Fund,2055,Forest Valley Tree & Turf LLC DBA New Level Tree & Lawn,Day,FOREST VALLEY TREE & TURF LLC DBA NEW LEVEL TREE & LAWN,8e82251a-77c6-4564-b1bd-d37b8ea418b4
750,450,2020/07/07 00:00:00+00,Otherwise Classified,Fixed Costs Not Otherwise Classified,Professional Services,Professional Services,WasteWater Utility Fund,2183.42,Teletrac Navman US ltd.,Day,TELETRAC NAVMAN US LTD.,3a35a11b-ede6-4284-add9-96ebb1f4c325
751,751,2020/07/09 00:00:00+00,Finance,Parking Fine Collections (BRC),Professional Services,Bank Fees and Armored Trucks,General Fund,112.68,M&T Bank,Day,M&T BANK,c7a092e9-a63c-4ed5-a120-e0e381f2f221
752,752,2020/07/09 00:00:00+00,Finance,General Collections (BRC),Professional Services,Bank Fees and Armored Trucks,General Fund,307.53,M&T Bank,Day,M&T BANK,b63ee2ac-668e-4de4-94e4-a010b6d266c8
753,753,2020/07/09 00:00:00+00,Finance,Printing Services (BOP),Professional Services,Professional Services,Reproduction and Printing Fund,2042,Traypml Inc,Day,TRAYPML INC,11032cff-bf14-48f0-9ec3-29803289a1bb
754,754,2020/07/09 00:00:00+00,Fire,Fire Land Suppression,Utilities and Waste,Gas Electric and Steam,General Fund,0.99,Constellation New Energy - Gas Division,Day,CONSTELLATION NEW ENERGY - GAS DIVISION,c3c20fe8-b400-46b1-be20-4eec7f8d8487
755,755,2020/07/09 00:00:00+00,Fire,Fire Land Suppression,Utilities and Waste,Gas Electric and Steam,General Fund,1.68,Constellation New Energy - Gas Division,Day,CONSTELLATION NEW ENERGY - GAS DIVISION,0d11f7c7-d95a-43d2-b319-78d121d13bab
756,756,2020/07/09 00:00:00+00,Fire,Fire Land Suppression,Utilities and Waste,Gas Electric and Steam,General Fund,2.46,Constellation New Energy - Gas Division,Day,CONSTELLATION NEW ENERGY - GAS DIVISION,8be3d4ba-be50-4c36-afc6-8f638f5ae79d
757,757,2020/07/09 00:00:00+00,Fire,Fire Land Suppression,Utilities and Waste,Gas Electric and Steam,General Fund,2.96,Constellation New Energy - Gas Division,Day,CONSTELLATION NEW ENERGY - GAS DIVISION,1279082e-07fe-45e6-9aef-72fb42005456
758,758,2020/07/09 00:00:00+00,Fire,Fire Land Suppression,Utilities and Waste,Gas Electric and Steam,General Fund,2.97,Constellation New Energy - Gas Division,Day,CONSTELLATION NEW ENERGY - GAS DIVISION,3914b0c0-35fa-4738-ad5d-47a3339e4aba
759,759,2020/07/09 00:00:00+00,Fire,Fire Land Suppression,Utilities and Waste,Gas Electric and Steam,General Fund,2.97,Constellation New Energy - Gas Division,Day,CONSTELLATION NEW ENERGY - GAS DIVISION,649841a3-9c02-49bc-8f51-226c8a4e7530
760,760,2020/07/09 00:00:00+00,Fire,Fire Communications and Dispatch,Utilities and Waste,Gas Electric and Steam,General Fund,3.71,Constellation New Energy - Gas Division,Day,CONSTELLATION NEW ENERGY - GAS DIVISION,ef49f857-9024-4bb2-b772-d13f2dd7e719
761,761,2020/07/09 00:00:00+00,Fire,Emergency Medical Services (EMS) Administration,Medical Supplies,Medical and Surgical Supplies,General Fund,4.74,Airgas USA LLC,Day,AIRGAS USA LLC,f1407e70-9ca1-4b96-b74c-399987dc9935
762,762,2020/07/09 00:00:00+00,Fire,Fire Communications and Dispatch,Utilities and Waste,Gas Electric and Steam,General Fund,4.93,Constellation New Energy - Gas Division,Day,CONSTELLATION NEW ENERGY - GAS DIVISION,beb6e0c7-734e-4e90-995d-d431ec6a4b33
763,763,2020/07/09 00:00:00+00,Fire,Fire Communications and Dispatch,Utilities and Waste,Gas Electric and Steam,General Fund,4.96,Constellation New Energy - Gas Division,Day,CONSTELLATION NEW ENERGY - GAS DIVISION,a02a1bca-4fdd-4714-9ef5-ffe5eed060cf
764,764,2020/07/09 00:00:00+00,Fire,Fire Land Suppression,Utilities and Waste,Gas Electric and Steam,General Fund,5.39,Constellation New Energy - Gas Division,Day,CONSTELLATION NEW ENERGY - GAS DIVISION,6f878eb7-4584-4114-a87b-446a95db22b2
765,765,2020/07/09 00:00:00+00,Fire,Fire Land Suppression,Utilities and Waste,Gas Electric and Steam,General Fund,6.74,Constellation New Energy - Gas Division,Day,CONSTELLATION NEW ENERGY - GAS DIVISION,37a796b4-941a-41ab-bc74-8780e3f3e391
766,766,2020/07/09 00:00:00+00,Fire,Fire Land Suppression,Utilities and Waste,Gas Electric and Steam,General Fund,7.75,Constellation New Energy - Gas Division,Day,CONSTELLATION NEW ENERGY - GAS DIVISION,f07c3c3d-b185-4b80-9e86-498dc585f442
767,767,2020/07/09 00:00:00+00,Fire,Fire Land Suppression,Utilities and Waste,Gas Electric and Steam,General Fund,8.09,Constellation New Energy - Gas Division,Day,CONSTELLATION NEW ENERGY - GAS DIVISION,ee268b40-3134-42fa-a8d2-4860cdcd4537
768,768,2020/07/09 00:00:00+00,Fire,Fire Land Suppression,Utilities and Waste,Gas Electric and Steam,General Fund,8.37,Constellation New Energy - Gas Division,Day,CONSTELLATION NEW ENERGY - GAS DIVISION,6d7ba1da-4ed1-44da-8866-b041e39a4790
769,769,2020/07/09 00:00:00+00,Fire,Fire Land Suppression,Utilities and Waste,Gas Electric and Steam,General Fund,9.77,Constellation New Energy - Gas Division,Day,CONSTELLATION NEW ENERGY - GAS DIVISION,5a480488-d742-4dbd-81f8-f0cfc707b236
770,770,2020/07/09 00:00:00+00,Fire,Fire Land Suppression,Utilities and Waste,Gas Electric and Steam,General Fund,9.91,Constellation New Energy - Gas Division,Day,CONSTELLATION NEW ENERGY - GAS DIVISION,9e6ca585-4df0-4f2d-9c1f-5650b838b5a2
771,771,2020/07/09 00:00:00+00,Fire,Fire Land Suppression,Utilities and Waste,Gas Electric and Steam,General Fund,10.11,Constellation New Energy - Gas Division,Day,CONSTELLATION NEW ENERGY - GAS DIVISION,f36a6ea3-d770-4fc4-b451-d34fc4e7407a
772,772,2020/07/09 00:00:00+00,Fire,Fire Land Suppression,Utilities and Waste,Gas Electric and Steam,General Fund,10.84,Constellation New Energy - Gas Division,Day,CONSTELLATION NEW ENERGY - GAS DIVISION,7c7b211c-3c6e-4e4c-a5ad-8c0bf485a070
773,773,2020/07/09 00:00:00+00,Fire,Fire Land Suppression,Utilities and Waste,Gas Electric and Steam,General Fund,11.33,Constellation New Energy - Gas Division,Day,CONSTELLATION NEW ENERGY - GAS DIVISION,51f9198a-ce9e-4a40-9744-66afb0e58303
774,774,2020/07/09 00:00:00+00,Fire,Emergency Medical Services (EMS) Administration,Medical Supplies,Medical and Surgical Supplies,General Fund,12.45,Airgas USA LLC,Day,AIRGAS USA LLC,99affaec-e6dc-4b87-add7-a9753d4dda46
775,775,2020/07/09 00:00:00+00,Fire,Emergency Medical Services (EMS) Administration,Medical Supplies,Medical and Surgical Supplies,General Fund,12.45,Airgas USA LLC,Day,AIRGAS USA LLC,e665b94d-f842-4f70-a829-3a72740507e0
776,776,2020/07/09 00:00:00+00,Fire,Fire Land Suppression,Utilities and Waste,Gas Electric and Steam,General Fund,12.89,Constellation New Energy - Gas Division,Day,CONSTELLATION NEW ENERGY - GAS DIVISION,8ead6dde-fd3a-4650-af3e-8c16fa858ab7
777,777,2020/07/09 00:00:00+00,Fire,Fire Land Suppression,Utilities and Waste,Gas Electric and Steam,General Fund,13.3,Constellation New Energy - Gas Division,Day,CONSTELLATION NEW ENERGY - GAS DIVISION,fdf938a9-d58b-411a-9168-9ecc7efba391
778,778,2020/07/09 00:00:00+00,Fire,Fire Land Suppression,Utilities and Waste,Gas Electric and Steam,General Fund,14.29,Constellation New Energy - Gas Division,Day,CONSTELLATION NEW ENERGY - GAS DIVISION,efc3119c-1d03-4bf8-a6e4-62766df8aee8
779,779,2020/07/09 00:00:00+00,Fire,Fire Land Suppression,Utilities and Waste,Gas Electric and Steam,General Fund,16.36,Constellation New Energy - Gas Division,Day,CONSTELLATION NEW ENERGY - GAS DIVISION,9d087a49-52a8-440b-8cf9-3b7c171662ee
780,780,2020/07/09 00:00:00+00,Fire,Fire Land Suppression,Utilities and Waste,Gas Electric and Steam,General Fund,16.85,Constellation New Energy - Gas Division,Day,CONSTELLATION NEW ENERGY - GAS DIVISION,5a36df13-e88c-4e9c-bfef-87943f3a88ef
781,781,2020/07/09 00:00:00+00,Fire,Fire Land Suppression,Utilities and Waste,Gas Electric and Steam,General Fund,17.84,Constellation New Energy - Gas Division,Day,CONSTELLATION NEW ENERGY - GAS DIVISION,5a57d8c1-e940-4e32-9d18-ff2a638f9bb1
782,782,2020/07/09 00:00:00+00,Fire,Fire Land Suppression,Utilities and Waste,Gas Electric and Steam,General Fund,18.53,Constellation New Energy - Gas Division,Day,CONSTELLATION NEW ENERGY - GAS DIVISION,92adb6b2-1c03-4069-87d5-63528cf8a181
783,783,2020/07/09 00:00:00+00,Fire,Fire Land Suppression,Utilities and Waste,Gas Electric and Steam,General Fund,18.87,Constellation New Energy - Gas Division,Day,CONSTELLATION NEW ENERGY - GAS DIVISION,8e6b0408-1dc7-4b8b-acf8-d37a7efe8f1c
784,784,2020/07/09 00:00:00+00,Fire,Fire Land Suppression,Utilities and Waste,Gas Electric and Steam,General Fund,27.09,Constellation New Energy - Gas Division,Day,CONSTELLATION NEW ENERGY - GAS DIVISION,6add5d2e-eade-4ba6-be08-fa27fcfed157
785,785,2020/07/09 00:00:00+00,Fire,Fire Land Suppression,Utilities and Waste,Gas Electric and Steam,General Fund,27.26,Constellation New Energy - Gas Division,Day,CONSTELLATION NEW ENERGY - GAS DIVISION,88bb4684-0faf-4e7b-a23a-bc21c61ae6d2
786,786,2020/07/09 00:00:00+00,Fire,Fire Land Suppression,Utilities and Waste,Gas Electric and Steam,General Fund,29.31,Constellation New Energy - Gas Division,Day,CONSTELLATION NEW ENERGY - GAS DIVISION,4cb9248d-07ab-47e2-b3b9-50c50002e2a0
787,787,2020/07/09 00:00:00+00,Fire,Fire Land Suppression,Utilities and Waste,Gas Electric and Steam,General Fund,29.98,Constellation New Energy - Gas Division,Day,CONSTELLATION NEW ENERGY - GAS DIVISION,457c1a57-d3c7-4524-b440-e904f796cd96
788,788,2020/07/09 00:00:00+00,Fire,Fire Land Suppression,Utilities and Waste,Gas Electric and Steam,General Fund,30.99,Constellation New Energy - Gas Division,Day,CONSTELLATION NEW ENERGY - GAS DIVISION,c702add5-0e99-4e87-bf96-8ef0e7fd8749
789,789,2020/07/09 00:00:00+00,Fire,Fire Land Suppression,Utilities and Waste,Gas Electric and Steam,General Fund,31.33,Constellation New Energy - Gas Division,Day,CONSTELLATION NEW ENERGY - GAS DIVISION,78b1101c-db65-4eda-9a06-1be0b5b622c9
790,790,2020/07/09 00:00:00+00,Fire,Fire Land Suppression,Utilities and Waste,Gas Electric and Steam,General Fund,32.71,Constellation New Energy - Gas Division,Day,CONSTELLATION NEW ENERGY - GAS DIVISION,40a3af0b-b85d-4614-af9a-767ca4573e25
791,791,2020/07/09 00:00:00+00,Fire,Fire Land Suppression,Utilities and Waste,Gas Electric and Steam,General Fund,33.99,Constellation New Energy - Gas Division,Day,CONSTELLATION NEW ENERGY - GAS DIVISION,54489cce-8600-4c08-854d-dbfc26b49dc2
792,792,2020/07/09 00:00:00+00,Fire,Fire Land Suppression,Utilities and Waste,Gas Electric and Steam,General Fund,41.64,Constellation New Energy - Gas Division,Day,CONSTELLATION NEW ENERGY - GAS DIVISION,52813f9c-40d5-43e7-b6bf-d98f602663b6
793,793,2020/07/09 00:00:00+00,Fire,Fire Land Suppression,Utilities and Waste,Gas Electric and Steam,General Fund,41.64,Constellation New Energy - Gas Division,Day,CONSTELLATION NEW ENERGY - GAS DIVISION,b5b44868-b1f1-454c-8cfa-e583b2ecc2bb
794,794,2020/07/09 00:00:00+00,Fire,Fire Land Suppression,Utilities and Waste,Gas Electric and Steam,General Fund,41.64,Constellation New Energy - Gas Division,Day,CONSTELLATION NEW ENERGY - GAS DIVISION,0986bdda-18cc-44d4-8d63-1c2b9b547c33
795,795,2020/07/09 00:00:00+00,Fire,Fire Land Suppression,Utilities and Waste,Gas Electric and Steam,General Fund,44.12,Constellation New Energy - Gas Division,Day,CONSTELLATION NEW ENERGY - GAS DIVISION,02ecf893-4200-419f-a40c-bca4f58e0e3b
796,796,2020/07/09 00:00:00+00,Fire,Fire Land Suppression,Utilities and Waste,Gas Electric and Steam,General Fund,44.83,Constellation New Energy - Gas Division,Day,CONSTELLATION NEW ENERGY - GAS DIVISION,dd46c1fe-d4d4-418c-865b-bbec11f7a807
797,797,2020/07/09 00:00:00+00,Fire,Fire Land Suppression,Utilities and Waste,Gas Electric and Steam,General Fund,51.72,Constellation New Energy - Gas Division,Day,CONSTELLATION NEW ENERGY - GAS DIVISION,a8c865e8-92e3-4d7d-8018-42bf566e1699
798,798,2020/07/09 00:00:00+00,Fire,Emergency Medical Services (EMS) Administration,Medical Supplies,Medical and Surgical Supplies,General Fund,56.88,Airgas USA LLC,Day,AIRGAS USA LLC,f6a7accf-2ebc-4316-96d0-1a5a2fb32278
799,799,2020/07/09 00:00:00+00,Fire,Emergency Medical Services (EMS) Administration,Medical Supplies,Medical and Surgical Supplies,General Fund,56.88,Airgas USA LLC,Day,AIRGAS USA LLC,0ee5792b-981d-40d3-a838-761d8fd87473
800,800,2020/07/09 00:00:00+00,Fire,Emergency Medical Services (EMS) Administration,Medical Supplies,Medical and Surgical Supplies,General Fund,57.84,Airgas USA LLC,Day,AIRGAS USA LLC,73cb4a60-bde2-4e51-8bdf-44ac922c2e2f
801,1001,2020/07/09 00:00:00+00,Health,Animal Enforcement,Professional Services,Payments to Sub-Contractors,General Fund,1350,No Opportunity Wasted,Day,NO OPPORTUNITY WASTED,8e177589-659a-48f1-a9ac-023be8ab0c6d
802,1002,2020/07/09 00:00:00+00,Health,Animal Enforcement,Professional Services,Payments to Sub-Contractors,General Fund,1425,No Opportunity Wasted,Day,NO OPPORTUNITY WASTED,6d7d6bbb-ee45-421c-9ef8-20857b90003d
803,1003,2020/07/09 00:00:00+00,Health,Oliver Senior Center,Professional Services,Professional Services,General Fund,1500,No Opportunity Wasted,Day,NO OPPORTUNITY WASTED,10a3f5b0-3e16-4ed9-88d1-75860dfdb0f6
804,1004,2020/07/09 00:00:00+00,Law,Transactions Contracts (Law),Office Operations,Rental of Business Machines,General Fund,56.47,Neo Technologies Inc,Day,NEO TECHNOLOGIES INC,8618648f-0334-4a79-9f31-4aa234e5a8ce
805,1005,2020/07/09 00:00:00+00,Enoch Pratt Free Library,Library Neighborhood Facility Services,Utilities and Waste,Gas Electric and Steam,General Fund,0.34,Constellation New Energy - Gas Division,Day,CONSTELLATION NEW ENERGY - GAS DIVISION,3c1a81df-b304-411f-aab1-4b99d6cd686f
806,1006,2020/07/09 00:00:00+00,Enoch Pratt Free Library,Library Neighborhood Facility Services,Utilities and Waste,Gas Electric and Steam,General Fund,0.49,Constellation New Energy - Gas Division,Day,CONSTELLATION NEW ENERGY - GAS DIVISION,65ac2a73-10f4-4307-883c-893de6321a5b
807,1007,2020/07/09 00:00:00+00,Enoch Pratt Free Library,Library Neighborhood Facility Services,Utilities and Waste,Gas Electric and Steam,General Fund,0.5,Constellation New Energy - Gas Division,Day,CONSTELLATION NEW ENERGY - GAS DIVISION,6971ed1b-9aaf-47e3-b4e4-db3d47f2438f
808,1008,2020/07/09 00:00:00+00,Enoch Pratt Free Library,Library Neighborhood Facility Services,Utilities and Waste,Gas Electric and Steam,General Fund,0.99,Constellation New Energy - Gas Division,Day,CONSTELLATION NEW ENERGY - GAS DIVISION,1aa0df88-a101-497d-bccf-c8c36e35dd98
809,1009,2020/07/09 00:00:00+00,Enoch Pratt Free Library,Library Neighborhood Facility Services,Utilities and Waste,Gas Electric and Steam,General Fund,48.51,Constellation New Energy - Gas Division,Day,CONSTELLATION NEW ENERGY - GAS DIVISION,6ca9b235-89d6-4654-806e-bbe2b8b0d87e
810,1010,2020/07/09 00:00:00+00,Enoch Pratt Free Library,Library Neighborhood Facility Services,Utilities and Waste,Gas Electric and Steam,General Fund,71.43,Constellation New Energy - Gas Division,Day,CONSTELLATION NEW ENERGY - GAS DIVISION,369fd40f-9b27-4566-8643-2f409af09d66
811,1011,2020/07/09 00:00:00+00,Enoch Pratt Free Library,Library Neighborhood Facility Services,Utilities and Waste,Gas Electric and Steam,General Fund,99.38,Constellation New Energy - Gas Division,Day,CONSTELLATION NEW ENERGY - GAS DIVISION,38842ddb-4814-4c6a-9f96-c2d35c1f0b15
812,1012,2020/07/09 00:00:00+00,Enoch Pratt Free Library,Library Neighborhood Facility Services,Utilities and Waste,Gas Electric and Steam,General Fund,125.12,Constellation New Energy - Gas Division,Day,CONSTELLATION NEW ENERGY - GAS DIVISION,132cf592-f71a-4c90-b0b2-363f4397bbf7
813,851,2020/07/09 00:00:00+00,Fire,Fire Land Suppression,Utilities and Waste,Gas Electric and Steam,General Fund,368.21,Constellation New Energy - Gas Division,Day,CONSTELLATION NEW ENERGY - GAS DIVISION,24b9af98-1f29-47b2-9764-787acffcdede
814,1013,2020/07/09 00:00:00+00,Enoch Pratt Free Library,Library Neighborhood Facility Services,Utilities and Waste,Gas Electric and Steam,General Fund,130.37,Constellation New Energy - Gas Division,Day,CONSTELLATION NEW ENERGY - GAS DIVISION,8c98069b-e772-4a01-a223-a7592280fe2a
815,1014,2020/07/09 00:00:00+00,Enoch Pratt Free Library,Library Neighborhood Facility Services,Utilities and Waste,Gas Electric and Steam,General Fund,136.81,Constellation New Energy - Gas Division,Day,CONSTELLATION NEW ENERGY - GAS DIVISION,da370604-af6a-4628-a93a-301b75501535
816,1015,2020/07/09 00:00:00+00,Enoch Pratt Free Library,Library Central Facility Services,Utilities and Waste,Gas Electric and Steam,General Fund,152.61,Constellation New Energy - Gas Division,Day,CONSTELLATION NEW ENERGY - GAS DIVISION,fbad3c46-050b-482e-95f3-c9787c5bda71
817,1016,2020/07/09 00:00:00+00,Enoch Pratt Free Library,Library Neighborhood Facility Services,Utilities and Waste,Gas Electric and Steam,General Fund,178.21,Constellation New Energy - Gas Division,Day,CONSTELLATION NEW ENERGY - GAS DIVISION,b4642704-17da-46e6-94ef-65d2a4bedc72
818,1017,2020/07/09 00:00:00+00,Enoch Pratt Free Library,Library Neighborhood Facility Services,Utilities and Waste,Gas Electric and Steam,General Fund,179.8,Constellation New Energy - Gas Division,Day,CONSTELLATION NEW ENERGY - GAS DIVISION,8c55729f-f78c-4215-9b4d-cf8f2e695d9d
819,1018,2020/07/09 00:00:00+00,Enoch Pratt Free Library,Library Central Facility Services,Utilities and Waste,Gas Electric and Steam,General Fund,193.59,Constellation New Energy - Gas Division,Day,CONSTELLATION NEW ENERGY - GAS DIVISION,3f9e047b-25fe-4221-adaf-7616a91f4869
820,1019,2020/07/09 00:00:00+00,Enoch Pratt Free Library,Library Neighborhood Facility Services,Utilities and Waste,Gas Electric and Steam,General Fund,199.1,Constellation New Energy - Gas Division,Day,CONSTELLATION NEW ENERGY - GAS DIVISION,02e76a2d-3800-4ac7-9e17-af7d0a31ca9f
821,1020,2020/07/09 00:00:00+00,Enoch Pratt Free Library,Library Neighborhood Facility Services,Utilities and Waste,Gas Electric and Steam,General Fund,220.19,Constellation New Energy - Gas Division,Day,CONSTELLATION NEW ENERGY - GAS DIVISION,a576ea1b-07df-4eb9-92c7-54cbd04a46d1
822,1021,2020/07/09 00:00:00+00,Enoch Pratt Free Library,Library Neighborhood Facility Services,Utilities and Waste,Gas Electric and Steam,General Fund,221.07,Constellation New Energy - Gas Division,Day,CONSTELLATION NEW ENERGY - GAS DIVISION,cea3b2a5-a8e0-494a-98ff-f8f392ab756c
823,1022,2020/07/09 00:00:00+00,Enoch Pratt Free Library,Library Neighborhood Facility Services,Utilities and Waste,Gas Electric and Steam,General Fund,233,Constellation New Energy - Gas Division,Day,CONSTELLATION NEW ENERGY - GAS DIVISION,47395c71-ece0-4612-9aed-90486d418aae
824,1023,2020/07/09 00:00:00+00,Enoch Pratt Free Library,Library Neighborhood Facility Services,Utilities and Waste,Gas Electric and Steam,General Fund,235.96,Constellation New Energy - Gas Division,Day,CONSTELLATION NEW ENERGY - GAS DIVISION,686fa5bf-e5e7-4490-94d3-5847e1873bdf
825,1024,2020/07/09 00:00:00+00,Enoch Pratt Free Library,Library Neighborhood Facility Services,Utilities and Waste,Gas Electric and Steam,General Fund,250.73,Constellation New Energy - Gas Division,Day,CONSTELLATION NEW ENERGY - GAS DIVISION,095b1612-5e78-4974-a212-f61a6e89718f
826,1025,2020/07/09 00:00:00+00,Enoch Pratt Free Library,Library Central Facility Services,Utilities and Waste,Gas Electric and Steam,General Fund,253.29,Constellation New Energy - Gas Division,Day,CONSTELLATION NEW ENERGY - GAS DIVISION,c9c94287-d36e-4344-809c-63d3b2602b62
827,1026,2020/07/09 00:00:00+00,Enoch Pratt Free Library,Library Neighborhood Facility Services,Utilities and Waste,Gas Electric and Steam,General Fund,257.38,Constellation New Energy - Gas Division,Day,CONSTELLATION NEW ENERGY - GAS DIVISION,3867e989-34a0-475e-b6b8-3e425b7f8635
828,1027,2020/07/09 00:00:00+00,Enoch Pratt Free Library,Library Neighborhood Facility Services,Utilities and Waste,Gas Electric and Steam,General Fund,265.8,Constellation New Energy - Gas Division,Day,CONSTELLATION NEW ENERGY - GAS DIVISION,e74a47b5-7ef6-4723-89df-c36edb7bc503
829,1028,2020/07/09 00:00:00+00,Enoch Pratt Free Library,Library Neighborhood Facility Services,Utilities and Waste,Gas Electric and Steam,General Fund,273.89,Constellation New Energy - Gas Division,Day,CONSTELLATION NEW ENERGY - GAS DIVISION,3aafcfcb-e28e-4e2c-b885-b43526f4f1dc
830,1029,2020/07/09 00:00:00+00,Enoch Pratt Free Library,Library Neighborhood Facility Services,Utilities and Waste,Gas Electric and Steam,General Fund,284.52,Constellation New Energy - Gas Division,Day,CONSTELLATION NEW ENERGY - GAS DIVISION,db8d02d8-dc2c-4599-a223-8002c3000fb6
831,1030,2020/07/09 00:00:00+00,Enoch Pratt Free Library,Library Neighborhood Facility Services,Utilities and Waste,Gas Electric and Steam,General Fund,285.34,Constellation New Energy - Gas Division,Day,CONSTELLATION NEW ENERGY - GAS DIVISION,c51f612c-0fe3-4657-90ad-703c01b9d8f5
832,1031,2020/07/09 00:00:00+00,Enoch Pratt Free Library,Library Neighborhood Facility Services,Utilities and Waste,Gas Electric and Steam,General Fund,289.65,Constellation New Energy - Gas Division,Day,CONSTELLATION NEW ENERGY - GAS DIVISION,129d030d-33a6-49ac-82ec-232ee4aef27e
833,1032,2020/07/09 00:00:00+00,Enoch Pratt Free Library,Library Neighborhood Facility Services,Utilities and Waste,Gas Electric and Steam,General Fund,299.39,Constellation New Energy - Gas Division,Day,CONSTELLATION NEW ENERGY - GAS DIVISION,a4eb942f-0ec9-4cab-9b20-8cf29233ce64
834,1033,2020/07/09 00:00:00+00,Enoch Pratt Free Library,Library Neighborhood Facility Services,Utilities and Waste,Gas Electric and Steam,General Fund,312.29,Constellation New Energy - Gas Division,Day,CONSTELLATION NEW ENERGY - GAS DIVISION,412f8557-b428-4153-a422-c8982d16b427
835,1034,2020/07/09 00:00:00+00,Enoch Pratt Free Library,Library Neighborhood Facility Services,Utilities and Waste,Gas Electric and Steam,General Fund,332.11,Constellation New Energy - Gas Division,Day,CONSTELLATION NEW ENERGY - GAS DIVISION,818bd84a-191b-43c0-b97e-4add9350372c
836,1035,2020/07/09 00:00:00+00,Enoch Pratt Free Library,Library Neighborhood Facility Services,Utilities and Waste,Gas Electric and Steam,General Fund,335.2,Constellation New Energy - Gas Division,Day,CONSTELLATION NEW ENERGY - GAS DIVISION,207c9eba-2dff-4798-a02d-ac909514b225
837,1036,2020/07/09 00:00:00+00,Enoch Pratt Free Library,Library Neighborhood Facility Services,Utilities and Waste,Gas Electric and Steam,General Fund,352.43,Constellation New Energy - Gas Division,Day,CONSTELLATION NEW ENERGY - GAS DIVISION,2634ee83-4abf-4ead-ad2d-82cb1fe7806f
838,1037,2020/07/09 00:00:00+00,Enoch Pratt Free Library,Library Neighborhood Facility Services,Utilities and Waste,Gas Electric and Steam,General Fund,355.16,Constellation New Energy - Gas Division,Day,CONSTELLATION NEW ENERGY - GAS DIVISION,c916b169-541a-41cc-81d1-4caa67c482c7
839,1038,2020/07/09 00:00:00+00,Enoch Pratt Free Library,Library Neighborhood Facility Services,Utilities and Waste,Gas Electric and Steam,General Fund,368.21,Constellation New Energy - Gas Division,Day,CONSTELLATION NEW ENERGY - GAS DIVISION,5b42ac78-2f3f-41bf-a310-ac20349e5410
